Department Family,Entity,Date of Payment,Expense Type,Expense Area,Supplier,Voluntary & Community Sector,SME Class,Sole Trader,Transaction number,Narrative,Postal Code,Amount in Sterling,Grant?
Communities & Local Government,DCLG,03/01/2012,Work In Progress Pre-Cert 40373 Spend,Neighbourhoods,BIRMINGHAM CITY COUNCIL (NOT RATES),,Large,,7600000531,ERDF Claim - 19 - P2,B1 1BB,"19,243.05",
Communities & Local Government,DCLG,03/01/2012,Agency Staff,Neighbourhoods,CAPITA RESOURCING LTD,,Large,,5106172674,HRA Reform Adviser,SL6 1DP,643.50,
Communities & Local Government,DCLG,03/01/2012,Agency Staff,Neighbourhoods,CAPITA RESOURCING LTD,,Large,,5106172675,CPD 0492030 Capita MSP,SL6 1DP,"2,574.00",
Communities & Local Government,DCLG,03/01/2012,Agency Staff,Neighbourhoods,CAPITA RESOURCING LTD,,Large,,5106172676,CPD 0492030 Capita MSP,SL6 1DP,"2,574.00",
Communities & Local Government,DCLG,03/01/2012,Agency Staff,Neighbourhoods,CAPITA RESOURCING LTD,,Large,,5106172677,CPD 0492030 Capita MSP,SL6 1DP,"2,574.00",
Communities & Local Government,DCLG,03/01/2012,Agency Staff,Neighbourhoods,CAPITA RESOURCING LTD,,Large,,5106172683,DayRate INTERREG 2Seas-Territorial Facil,SL6 1DP,"1,034.78",
Communities & Local Government,DCLG,03/01/2012,Agency Staff,Neighbourhoods,CAPITA RESOURCING LTD,,Large,,5106172683,Expenses INTERREG 2Seas-Territorial Faci,SL6 1DP,24.72,
Communities & Local Government,DCLG,03/01/2012,Agency Staff,Neighbourhoods,CAPITA RESOURCING LTD,,Large,,5106172692,DayRate ERREG2 Seas-Territorial,SL6 1DP,"1,044.00",
Communities & Local Government,DCLG,03/01/2012,Agency Staff,Finance & Corporate Services,CAPITA RESOURCING LTD,,Large,,5106172673,Contractor Transition Accountant,SL6 1DP,"4,704.00",
Communities & Local Government,DCLG,03/01/2012,Agency Staff,Finance & Corporate Services,CAPITA RESOURCING LTD,,Large,,5106172681,CPD 0492030 Capita MSP,SL6 1DP,643.51,
Communities & Local Government,DCLG,03/01/2012,Agency Staff,Finance & Corporate Services,CAPITA RESOURCING LTD,,Large,,5106172685,Contractor Internal Audit,SL6 1DP,"2,235.60",
Communities & Local Government,DCLG,03/01/2012,Agency Staff,Finance & Corporate Services,CAPITA RESOURCING LTD,,Large,,5106172693,Transition Accountant,SL6 1DP,"4,704.00",
Communities & Local Government,DCLG,03/01/2012,Agency Staff,Finance & Corporate Services,CAPITA RESOURCING LTD,,Large,,5106172694,Contractor IAExtension,SL6 1DP,"4,752.00",
Communities & Local Government,DCLG,03/01/2012,Agency Staff,Finance & Corporate Services,CAPITA RESOURCING LTD,,Large,,5106172694,Expenses,SL6 1DP,24.24,
Communities & Local Government,DCLG,03/01/2012,Agency Staff,Finance & Corporate Services,CAPITA RESOURCING LTD,,Large,,5106172698,Contractor IAExtension,SL6 1DP,"3,589.44",
Communities & Local Government,DCLG,03/01/2012,Agency Staff,Finance & Corporate Services,CAPITA RESOURCING LTD,,Large,,5106172698,Expenses,SL6 1DP,77.89,
Communities & Local Government,DCLG,03/01/2012,Agency Staff,Finance & Corporate Services,CAPITA RESOURCING LTD,,Large,,5106172704,Contractor IAExtension,SL6 1DP,"1,863.00",
Communities & Local Government,DCLG,03/01/2012,Agency Staff,Finance & Corporate Services,CAPITA RESOURCING LTD,,Large,,5106172704,Expenses,SL6 1DP,13.14,
Communities & Local Government,DCLG,03/01/2012,Domestic Services,Finance & Corporate Services,TAYLOR WOODROW CONSTRUCTION,,Large,,5106172571,Rivergate Cleaning Nov-Dec11,WD24 4WW,"9,285.56",
Communities & Local Government,DCLG,03/01/2012,Fixed Maintenance,Localism,VT FLAGSHIP INFRASTRUCTURE,,Large,,5106172609,20% EoE FM Fixed Service Yr 3,BS3 2HQ,"34,315.69",
Communities & Local Government,DCLG,03/01/2012,Fixed Maintenance,Localism,VT FLAGSHIP INFRASTRUCTURE,,Large,,5106172634,Y&H Fixed Maint VO to Oct 11 &to Mar 12,BS3 2HQ,"35,868.86",
Communities & Local Government,DCLG,03/01/2012,Fixed Maintenance,Localism,VT FLAGSHIP INFRASTRUCTURE,,Large,,5106172636,20% EoE FM Fixed Service Yr 3,BS3 2HQ,"34,315.69",
Communities & Local Government,DCLG,03/01/2012,Fixed Maintenance,Localism,VT FLAGSHIP INFRASTRUCTURE,,Large,,5106172637,NE FM Fixed Service Yr 2,BS3 2HQ,"35,856.55",
Communities & Local Government,DCLG,03/01/2012,Fixed Maintenance,Finance & Corporate Services,TAYLOR WOODROW CONSTRUCTION,,Large,,5106172571,Rivergate PPM & Reactive Maintenance Nov,WD24 4WW,"8,857.44",
Communities & Local Government,DCLG,03/01/2012,Office Supplies,Finance & Corporate Services,TAURUS PRINT & DESIGN LTD,,Small,,5106172684,Ministerial team - Letterheaded A4 paper Crox,KT14 7LF,"1,096.80",
Communities & Local Government,DCLG,03/01/2012,Courier Services,Finance & Corporate Services,TAYLOR WOODROW CONSTRUCTION,,Large,,5106172571,Rivergate Postal Nov-Dec11,WD24 4WW,"3,838.71",
Communities & Local Government,DCLG,03/01/2012,Security,Finance & Corporate Services,TAYLOR WOODROW CONSTRUCTION,,Large,,5106172571,Rivergate Reception Nov-Dec11,WD24 4WW,"2,607.03",
Communities & Local Government,DCLG,03/01/2012,Security,Finance & Corporate Services,TAYLOR WOODROW CONSTRUCTION,,Large,,5106172571,Rivergate Security Nov-Dec11,WD24 4WW,"8,885.44",
Communities & Local Government,DCLG,03/01/2012,Vehicle Maintenance,Localism,BABCOCK CRITICAL SERVICES LTD,,Large,,5106172703,Planned Fire Vehicle Maintenance,NG15 0DR,"597,849.78",
Communities & Local Government,DCLG,03/01/2012,Accommodation Service Charges,Finance & Corporate Services,LAND SECURITIES PROPERTIES LTD,,Large,,2100212271,Eland House Insurance Contribution 11-12,WC2N 5AF,"-3,927.00",
Communities & Local Government,DCLG,03/01/2012,Accommodation Service Charges,Finance & Corporate Services,LAND SECURITIES PROPERTIES LTD,,Large,,5106172536,Eland House Insurance Contribution 11-12,WC2N 5AF,"3,927.00",
Communities & Local Government,DCLG,03/01/2012,Facilities Management (ISD use only),Finance & Corporate Services,TAYLOR WOODROW CONSTRUCTION,,Large,,5106172571,Rivergate Helpdesk Nov-Dec11,WD24 4WW,644.59,
Communities & Local Government,DCLG,03/01/2012,Facilities Management (ISD use only),Finance & Corporate Services,TAYLOR WOODROW CONSTRUCTION,,Large,,5106172571,Rivergate Management Nov-Dec11,WD24 4WW,"6,663.20",
Communities & Local Government,DCLG,03/01/2012,Facilities Management (ISD use only),Finance & Corporate Services,TAYLOR WOODROW CONSTRUCTION,,Large,,5106172571,Rivergate Reprographics Nov-Dec11,WD24 4WW,"2,700.18",
Communities & Local Government,DCLG,03/01/2012,LA PFI special grant payable,Localism,KNOWSLEY MBC,,,,5000184839,Grant Payable by Exchequer,L36 9YZ,"328,325.00",Yes
Communities & Local Government,DCLG,04/01/2012,Fixed Maintenance,Finance & Corporate Services,SABIEN TECHNOLOGY LTD,,Small,,5106172497,Removal of M2G Belgrave,WD17 1JJ,"2,520.00",
Communities & Local Government,DCLG,04/01/2012,Office Supplies,Neighbourhoods,X M A LTD,,Large,,5106172374,Rioch Toners,NG11 7EP,"2,821.85",
Communities & Local Government,DCLG,04/01/2012,Courier Services,Finance & Corporate Services,GOVERNMENT CAR & DESPATCH AGENCY,,,,5106172139,Mail Scanning inc for 11-12,SW8 5AX,"6,284.00",
Communities & Local Government,DCLG,04/01/2012,Courier Services,Finance & Corporate Services,GOVERNMENT CAR & DESPATCH AGENCY,,,,5106172140,Mail Scanning inc for 11-12,SW8 5AX,"1,723.50",
Communities & Local Government,DCLG,04/01/2012,Professional services,Localism,VALUATION OFFICE AGENCY,,,,2100212277,Payment for January work on NNDR and CTax,W1B 5BU,"12,650,000.00",
Communities & Local Government,DCLG,04/01/2012,Professional services,Finance & Corporate Services,CARDINUS RISK MANAGEMENT LIMITED,,Medium,,2100212297,Training Fire Service Management,RH19 3BE,"-5,812.33",
Communities & Local Government,DCLG,04/01/2012,Professional services,Finance & Corporate Services,CARDINUS RISK MANAGEMENT LIMITED,,Medium,,5106170646,Training Fire Service Management,RH19 3BE,"5,812.33",
Communities & Local Government,DCLG,04/01/2012,Software Licences,Neighbourhoods,RIGHTNOW TECHNOLOGIES (UK) LTD,,Large,,5106172689,Software Licences True-Up,SL6 3QQ,600.00,
Communities & Local Government,DCLG,04/01/2012,Variable Maintenance < 15k,Finance & Corporate Services,MITIE FAC SERV LTD (STH WEST & WALE,,Large,,5106172710,SPP Variable Maintenance,BS16 7FH,703.13,
Communities & Local Government,DCLG,04/01/2012,Telephone call costs,Finance & Corporate Services,DAMOVO UK LTD,,Large,,5106172715,Telephony Charges,RH12 4QP,840.00,
Communities & Local Government,DCLG,04/01/2012,Telephone call costs,Finance & Corporate Services,VERIZON UK LTD,,Large,,5106171367,20% Verizon charges for RAS services,RG2 6DA,814.91,
Communities & Local Government,DCLG,04/01/2012,Electricity,Finance & Corporate Services,EDF ENERGY 1 LIMITED,,Large,,5106172701,Electricity charges,PL3 5XQ,"8,728.16",
Communities & Local Government,DCLG,04/01/2012,Electricity,Finance & Corporate Services,EDF ENERGY 1 LIMITED,,Large,,5106172701,Non VAT charges,PL3 5XQ,82.24,
Communities & Local Government,DCLG,04/01/2012,Electricity,Finance & Corporate Services,EDF ENERGY 1 LIMITED,,Large,,5106172713,Bridge House Electricity 11-12,PL3 5XQ,"7,385.18",
Communities & Local Government,DCLG,04/01/2012,Web Services,Finance & Corporate Services,DIGIRATI LTD,,Micro,,5106171358,6 month monthy cost @ 15k per monjth,G1 3DX,"4,393.20",
Communities & Local Government,DCLG,04/01/2012,Web Services,Finance & Corporate Services,DIGIRATI LTD,,Micro,,5106171760,6 month monthy cost @ 15k per monjth,G1 3DX,"1,635.20",
Communities & Local Government,DCLG,04/01/2012,IT - Service Contracts,Neighbourhoods,I B M UK LTD,,Large,,5106172709,Admin Running Costs Nov11-Oct12,PO6 3AE,"32,390.74",
Communities & Local Government,DCLG,04/01/2012,Grant in Aid to NDPBs (non budget),Localism,VALUATION TRIBUNAL SERVICE,,,,2100212279,Claim in respect to January 2012,E1 1DU,"682,508.00",Yes
Communities & Local Government,DCLG,04/01/2012,Grant in Aid to NDPBs (non budget),Neighbourhoods,HOMES & COMMUNITIES AGENCY,,,,2100212270,HCA Claim 40,NE11 0NA,"6,554,247.00",Yes
Communities & Local Government,DCLG,04/01/2012,Steady State Service Provision,Localism,FIRE & RISK MANAGEMENT SUPPORT SERV,,Medium,,5106172543,PROVISION OF SUPPORT FOR THE FIRE SERVIC,SK8 5JA,"5,262.50",
Communities & Local Government,DCLG,04/01/2012,Property/Estates Consultancy,Neighbourhoods,DAVIS LANGDON LLP,,Large,,5106172530,QS Services Treleigh 203438,WC1V 6QS,649.80,
Communities & Local Government,DCLG,05/01/2012,Work In Progress Pre-Cert 40373 Spend,Neighbourhoods,BUSINES & ENTERPRISE NORTH EAST,,,,7600000533,ERDF Claim - 19 - P2,SR7 7TT,"625,454.76",
Communities & Local Government,DCLG,05/01/2012,Work In Progress Pre-Cert 40373 Spend,Neighbourhoods,ONE NORTH EAST (FINAL BENEFICARY),,,,7600000532,ERDF Claim - 8 - P2,NE15 8NY,"62,173.50",
Communities & Local Government,DCLG,05/01/2012,NNDR Billing Authorities Receipts,Treasury,BARKING & DAGENHAM LB,,,,5000183898,Grant Payable by Exchequer,RM10 7BY,"-2,408,327.00",Yes
Communities & Local Government,DCLG,05/01/2012,NNDR Billing Authorities Receipts,Treasury,BARNSLEY MBC,,,,5000183917,Grant Payable by Exchequer,S70 2AQ,"-2,232,759.00",Yes
Communities & Local Government,DCLG,05/01/2012,NNDR Billing Authorities Receipts,Treasury,BIRMINGHAM CITY CNCL,,,,5000184000,Grant Payable by Exchequer,B3 3AB,"-18,024,101.00",Yes
Communities & Local Government,DCLG,05/01/2012,NNDR Billing Authorities Receipts,Treasury,BLACKBURN WITH DARWEN BC,,,,5000184020,Grant Payable by Exchequer,BB1 7DY,"-2,001,481.00",Yes
Communities & Local Government,DCLG,05/01/2012,NNDR Billing Authorities Receipts,Treasury,BLACKPOOL BC,,,,5000184030,Grant Payable by Exchequer,FY1 1NA,"-2,162,888.00",Yes
Communities & Local Government,DCLG,05/01/2012,NNDR Billing Authorities Receipts,Treasury,BOLTON MBC,,,,5000184051,Grant Payable by Exchequer,BL1 1RU,"-3,923,366.00",Yes
Communities & Local Government,DCLG,05/01/2012,NNDR Billing Authorities Receipts,Treasury,BRADFORD MBC,,,,5000184088,Grant Payable by Exchequer,BD1 1HX,"-6,106,844.00",Yes
Communities & Local Government,DCLG,05/01/2012,NNDR Billing Authorities Receipts,Treasury,BRENT LB,,,,5000184118,Grant Payable by Exchequer,HA9 9EZ,"-23,649.00",Yes
Communities & Local Government,DCLG,05/01/2012,NNDR Billing Authorities Receipts,Treasury,BRENT LB,,,,5000184123,Grant Payable by Exchequer,HA9 9EZ,"-4,394,201.00",Yes
Communities & Local Government,DCLG,05/01/2012,NNDR Billing Authorities Receipts,Treasury,BURY MBC,,,,5000184238,Grant Payable by Exchequer,BL9 0SP,"-2,314,743.00",Yes
Communities & Local Government,DCLG,05/01/2012,NNDR Billing Authorities Receipts,Treasury,CALDERDALE MBC,,,,5000184253,Grant Payable by Exchequer,HX1 1YP,"-2,568,220.00",Yes
Communities & Local Government,DCLG,05/01/2012,NNDR Billing Authorities Receipts,Treasury,COVENTRY CITY CNCL,,,,5000184508,Grant Payable by Exchequer,CV1 2QL,"-5,031,816.00",Yes
Communities & Local Government,DCLG,05/01/2012,NNDR Billing Authorities Receipts,Treasury,DARLINGTON BC,,,,5000183806,Grant Payable by Exchequer,TS19 1JA,"-1,474,367.00",Yes
Communities & Local Government,DCLG,05/01/2012,NNDR Billing Authorities Receipts,Treasury,DERBY CITY CNCL,,,,5000183846,Grant Payable by Exchequer,DE1 2FS,"-3,837,422.00",Yes
Communities & Local Government,DCLG,05/01/2012,NNDR Billing Authorities Receipts,Treasury,DONCASTER MBC,,,,5000183900,Grant Payable by Exchequer,DN1 3QA,"-3,711,174.00",Yes
Communities & Local Government,DCLG,05/01/2012,NNDR Billing Authorities Receipts,Treasury,DUDLEY MBC,,,,5000183930,Grant Payable by Exchequer,DY1 1HF,"-4,202,726.00",Yes
Communities & Local Government,DCLG,05/01/2012,NNDR Billing Authorities Receipts,Treasury,EAST RIDING OF YORKS,,,,5000184035,Grant Payable by Exchequer,HU17 9AB,"-3,621,165.00",Yes
Communities & Local Government,DCLG,05/01/2012,NNDR Billing Authorities Receipts,Treasury,ENFIELD LB,,,,5000184104,Grant Payable by Exchequer,EN1 3XF,"-4,526,974.00",Yes
Communities & Local Government,DCLG,05/01/2012,NNDR Billing Authorities Receipts,Treasury,GATESHEAD MBC,,,,5000184220,Grant Payable by Exchequer,NE8 1HH,"-3,810,435.00",Yes
Communities & Local Government,DCLG,05/01/2012,NNDR Billing Authorities Receipts,Treasury,GREENWICH LB,,,,5000184296,Grant Payable by Exchequer,SE18 6RA,"-2,701,499.00",Yes
Communities & Local Government,DCLG,05/01/2012,NNDR Billing Authorities Receipts,Treasury,LONDON BOROUGH OF HACKNEY,,,,5000184325,Grant Payable by Exchequer,E8 4RU,"-3,538,691.00",Yes
Communities & Local Government,DCLG,05/01/2012,NNDR Billing Authorities Receipts,Treasury,HALTON BC,,,,5000184330,Grant Payable by Exchequer,WA8 7QF,"-2,088,779.00",Yes
Communities & Local Government,DCLG,05/01/2012,NNDR Billing Authorities Receipts,Treasury,HARINGEY LB,,,,5000184390,Grant Payable by Exchequer,N22 7TR,"-2,773,967.00",Yes
Communities & Local Government,DCLG,05/01/2012,NNDR Billing Authorities Receipts,Treasury,HARROW LB,,,,5000184420,Grant Payable by Exchequer,HA1 2UZ,"-2,174,733.00",Yes
Communities & Local Government,DCLG,05/01/2012,NNDR Billing Authorities Receipts,Treasury,HARTLEPOOL BOROUGH COUNCIL,,,,5000184435,Grant Payable by Exchequer,TS24 7BT,"-1,210,169.00",Yes
Communities & Local Government,DCLG,05/01/2012,NNDR Billing Authorities Receipts,Treasury,HEREFORDSHIRE DISTRICT COUNCIL,,,,5000184485,Grant Payable by Exchequer,HR1 1SH,"-2,028,173.00",Yes
Communities & Local Government,DCLG,05/01/2012,NNDR Billing Authorities Receipts,Treasury,ISLE OF WIGHT CNCL,,,,5000183843,Grant Payable by Exchequer,PO30 1UD,"-1,513,100.00",Yes
Communities & Local Government,DCLG,05/01/2012,NNDR Billing Authorities Receipts,Treasury,ISLES OF SCILLY COUNCIL,,,,5000183865,Grant Payable by Exchequer,TR21 0LW,"-58,689.00",Yes
Communities & Local Government,DCLG,05/01/2012,NNDR Billing Authorities Receipts,Treasury,HULL CITY COUNCIL,,,,5000183937,Grant Payable by Exchequer,HU1 2AA,"-4,236,448.00",Yes
Communities & Local Government,DCLG,05/01/2012,NNDR Billing Authorities Receipts,Treasury,KIRKLEES MBC,,,,5000183957,Grant Payable by Exchequer,HD1 2YU,"-4,706,317.00",Yes
Communities & Local Government,DCLG,05/01/2012,NNDR Billing Authorities Receipts,Treasury,KNOWSLEY MBC,,,,5000183962,Grant Payable by Exchequer,L36 9YZ,"-1,732,595.00",Yes
Communities & Local Government,DCLG,05/01/2012,NNDR Billing Authorities Receipts,Treasury,LONDON BOROUGH OF LAMBETH,,,,5000183972,Grant Payable by Exchequer,SW2 1RL,"-4,990,042.00",Yes
Communities & Local Government,DCLG,05/01/2012,NNDR Billing Authorities Receipts,Treasury,LEICESTER CITY CNCL,,,,5000184022,Grant Payable by Exchequer,LE1 6ZG,"-4,679,058.00",Yes
Communities & Local Government,DCLG,05/01/2012,NNDR Billing Authorities Receipts,Treasury,LEWISHAM LB,,,,5000184057,Grant Payable by Exchequer,SE6 4RU,"-2,167,147.00",Yes
Communities & Local Government,DCLG,05/01/2012,NNDR Billing Authorities Receipts,Treasury,LIVERPOOL CITY COUNCIL,,,,5000184096,Grant Payable by Exchequer,L1 6JD,"-8,243,024.00",Yes
Communities & Local Government,DCLG,05/01/2012,NNDR Billing Authorities Receipts,Treasury,LUTON BC,,,,5000184101,Grant Payable by Exchequer,LU1 1DX,"-2,898,482.00",Yes
Communities & Local Government,DCLG,05/01/2012,NNDR Billing Authorities Receipts,Treasury,MIDDLESBROUGH BC,,,,5000184250,Grant Payable by Exchequer,TS1 9GA,"-1,858,198.00",Yes
Communities & Local Government,DCLG,05/01/2012,NNDR Billing Authorities Receipts,Treasury,LONDON BOROUGH OF NEWHAM,,Large,,5000184332,Grant Payable by Exchequer,E16 2QU,"-3,874,392.00",Yes
Communities & Local Government,DCLG,05/01/2012,NNDR Billing Authorities Receipts,Treasury,NORTH TYNESIDE MBC,,,,5000184441,Grant Payable by Exchequer,NE30 1AE,"-2,552,592.00",Yes
Communities & Local Government,DCLG,05/01/2012,NNDR Billing Authorities Receipts,Treasury,NOTTINGHAM CITY COUNCIL,,,,5000184507,Grant Payable by Exchequer,NG1 7DW,"-5,561,108.00",Yes
Communities & Local Government,DCLG,05/01/2012,NNDR Billing Authorities Receipts,Treasury,OLDHAM MBC,,,,5000183804,Grant Payable by Exchequer,OL1 1UH,"-2,613,945.00",Yes
Communities & Local Government,DCLG,05/01/2012,NNDR Billing Authorities Receipts,Treasury,PLYMOUTH CITY CNCL,,,,5000183862,Grant Payable by Exchequer,PL1 2AA,"-3,863,294.00",Yes
Communities & Local Government,DCLG,05/01/2012,NNDR Billing Authorities Receipts,Treasury,LONDON BOROUGH OF REDBRIDGE,,,,5000183929,Grant Payable by Exchequer,IG1 1NN,"-2,367,906.00",Yes
Communities & Local Government,DCLG,05/01/2012,NNDR Billing Authorities Receipts,Treasury,REDCAR & CLEVELAND BOROUGH COUNCIL,,,,5000183939,Grant Payable by Exchequer,TS6 9AR,"-2,003,270.00",Yes
Communities & Local Government,DCLG,05/01/2012,NNDR Billing Authorities Receipts,Treasury,REDCAR & CLEVELAND BOROUGH COUNCIL,,,,5000183944,Grant Payable by Exchequer,TS6 9AR,"-224,838.00",Yes
Communities & Local Government,DCLG,05/01/2012,NNDR Billing Authorities Receipts,Treasury,ROCHDALE MBC,,,,5000184004,Grant Payable by Exchequer,OL16 1LQ,"-2,796,068.00",Yes
Communities & Local Government,DCLG,05/01/2012,NNDR Billing Authorities Receipts,Treasury,ROTHERHAM MBC,,,,5000184043,Grant Payable by Exchequer,S65 1UF,"-3,068,751.00",Yes
Communities & Local Government,DCLG,05/01/2012,NNDR Billing Authorities Receipts,Treasury,SALFORD CITY CNCL,,,,5000184115,Grant Payable by Exchequer,M27 5AW,"-3,681,931.00",Yes
Communities & Local Government,DCLG,05/01/2012,NNDR Billing Authorities Receipts,Treasury,SANDWELL MBC,,,,5000184120,Grant Payable by Exchequer,B69 3BS,"-4,129,768.00",Yes
Communities & Local Government,DCLG,05/01/2012,NNDR Billing Authorities Receipts,Treasury,SEFTON MBC,,,,5000184153,Grant Payable by Exchequer,L20 3NQ,"-3,117,344.00",Yes
Communities & Local Government,DCLG,05/01/2012,NNDR Billing Authorities Receipts,Treasury,SHEFFIELD CITY CNCL,,,,5000184188,Grant Payable by Exchequer,S1 1UR,"-9,052,917.00",Yes
Communities & Local Government,DCLG,05/01/2012,NNDR Billing Authorities Receipts,Treasury,SOUTH TYNESIDE COUNCIL,,,,5000184387,Grant Payable by Exchequer,NE33 2RL,"-1,281,324.00",Yes
Communities & Local Government,DCLG,05/01/2012,NNDR Billing Authorities Receipts,Treasury,SOUTHEND ON SEA BC,,,,5000184417,Grant Payable by Exchequer,SS2 6EP,"-2,099,874.00",Yes
Communities & Local Government,DCLG,05/01/2012,NNDR Billing Authorities Receipts,Treasury,ST HELENS MBC,,,,5000184467,Grant Payable by Exchequer,WA10 1HP,"-2,165,419.00",Yes
Communities & Local Government,DCLG,05/01/2012,NNDR Billing Authorities Receipts,Treasury,STAFFORD BC,,,,5000184477,Grant Payable by Exchequer,ST16 3AQ,"867,416.00",Yes
Communities & Local Government,DCLG,05/01/2012,NNDR Billing Authorities Receipts,Treasury,STAFFORD BC,,,,5000184482,Grant Payable by Exchequer,ST16 3AQ,"-2,114,881.00",Yes
Communities & Local Government,DCLG,05/01/2012,NNDR Billing Authorities Receipts,Treasury,STAFFORD BC,,,,5000184486,Grant Payable by Exchequer,ST16 3AQ,"2,410,121.00",Yes
Communities & Local Government,DCLG,05/01/2012,NNDR Billing Authorities Receipts,Treasury,STOKE ON TRENT CITY COUNCIL,,,,5000184546,Grant Payable by Exchequer,ST4 1RJ,"-3,768,386.00",Yes
Communities & Local Government,DCLG,05/01/2012,NNDR Billing Authorities Receipts,Treasury,SUNDERLAND DC,,,,5000183838,Grant Payable by Exchequer,SR2 7DN,"-3,767,423.00",Yes
Communities & Local Government,DCLG,05/01/2012,NNDR Billing Authorities Receipts,Treasury,TAMESIDE MBC,,,,5000183911,Grant Payable by Exchequer,OL6 6DL,"-2,564,301.00",Yes
Communities & Local Government,DCLG,05/01/2012,NNDR Billing Authorities Receipts,Treasury,TORBAY BC,,,,5000184059,Grant Payable by Exchequer,TQ1 3DR,"-1,652,248.00",Yes
Communities & Local Government,DCLG,05/01/2012,NNDR Billing Authorities Receipts,Treasury,WALSALL MBC,,,,5000184161,Grant Payable by Exchequer,WS1 1TW,"-3,062,118.00",Yes
Communities & Local Government,DCLG,05/01/2012,NNDR Billing Authorities Receipts,Treasury,WALTHAM FOREST LB,,,,5000184165,Grant Payable by Exchequer,E17 4JA,"-2,368,086.00",Yes
Communities & Local Government,DCLG,05/01/2012,NNDR Billing Authorities Receipts,Treasury,WANDSWORTH LB,,,,5000184180,Grant Payable by Exchequer,SW18 2PU,"-4,577,526.00",Yes
Communities & Local Government,DCLG,05/01/2012,NNDR Billing Authorities Receipts,Treasury,WIGAN MBC,,,,5000184399,Grant Payable by Exchequer,WN1 1YD,"-3,489,268.00",Yes
Communities & Local Government,DCLG,05/01/2012,NNDR Billing Authorities Receipts,Treasury,WIRRAL MBC,,,,5000184439,Grant Payable by Exchequer,L41 6BU,"-3,021,485.00",Yes
Communities & Local Government,DCLG,05/01/2012,NNDR Billing Authorities Receipts,Treasury,WOLVERHAMPTON MBC,,,,5000184469,Grant Payable by Exchequer,WV1 1RL,"-3,179,666.00",Yes
Communities & Local Government,DCLG,05/01/2012,NNDR Billing Authorities Receipts,Treasury,CORNWALL COUNCIL,,,,5000183810,Grant Payable by Exchequer,TR1 3AY,"-6,540,062.00",Yes
Communities & Local Government,DCLG,05/01/2012,NNDR Billing Authorities Receipts,Treasury,DURHAM COUNTY COUNCIL,,,,5000183816,Grant Payable by Exchequer,DH1 5UE,"-4,854,722.00",Yes
Communities & Local Government,DCLG,05/01/2012,NNDR Billing Authorities Receipts,Treasury,NORTHUMBERLAND,,,,5000183836,Grant Payable by Exchequer,NE61 2EF,"-3,234,199.00",Yes
Communities & Local Government,DCLG,05/01/2012,NNDR Billing Authorities Receipts,Treasury,SHROPSHIRE COUNCIL,,Large,,5000183848,Grant Payable by Exchequer,SY2 6ND,"-3,306,770.00",Yes
Communities & Local Government,DCLG,05/01/2012,Agency Staff,Localism,CAPITA RESOURCING LTD,,Large,,5106172755,Expert adviser,SL6 1DP,"3,726.00",
Communities & Local Government,DCLG,05/01/2012,Agency Staff,Neighbourhoods,CAPITA RESOURCING LTD,,Large,,5106172753,DayRate ERREG2 Seas-Territorial,SL6 1DP,"1,044.00",
Communities & Local Government,DCLG,05/01/2012,Agency Staff,Finance & Corporate Services,MICHAEL PAGE INTERNATIONAL,,Large,,5106172730,Interim Internal Audit,SL1 3SA,"1,929.48",
Communities & Local Government,DCLG,05/01/2012,Agency Staff,Finance & Corporate Services,CAPITA RESOURCING LTD,,Large,,5106172744,Contractor Internal Audit,SL6 1DP,"1,341.36",
Communities & Local Government,DCLG,05/01/2012,Agency Staff,Finance & Corporate Services,CAPITA RESOURCING LTD,,Large,,5106172744,Expenses,SL6 1DP,21.60,
Communities & Local Government,DCLG,05/01/2012,Agency Staff,Finance & Corporate Services,CAPITA RESOURCING LTD,,Large,,5106172746,Contractor IAExtension,SL6 1DP,"1,863.00",
Communities & Local Government,DCLG,05/01/2012,Agency Staff,Finance & Corporate Services,CAPITA RESOURCING LTD,,Large,,5106172748,Contractor IAExtension,SL6 1DP,950.40,
Communities & Local Government,DCLG,05/01/2012,Agency Staff,Finance & Corporate Services,CAPITA RESOURCING LTD,,Large,,5106172751,Contractor IAExtension,SL6 1DP,"1,794.72",
Communities & Local Government,DCLG,05/01/2012,Agency Staff,Finance & Corporate Services,CAPITA RESOURCING LTD,,Large,,5106172757,ICT Contractor,SL6 1DP,"2,794.50",
Communities & Local Government,DCLG,05/01/2012,Domestic Services,Finance & Corporate Services,MITIE SECURITY LTD,,Large,,5106172728,Hemel Hempstead Cleaning 11-12,MK5 6LB,"1,094.38",
Communities & Local Government,DCLG,05/01/2012,"IT - PC, Network & Hardware",Finance & Corporate Services,DELL CORPORATION LTD,,Large,,5106172668,Dell Docking Stations x10 (Cambridge),RG12 1LF,"1,108.44",
Communities & Local Government,DCLG,05/01/2012,"IT - PC, Network & Hardware",Finance & Corporate Services,DELL CORPORATION LTD,,Large,,5106172690,Dell Docking Stations x34 (Warrington),RG12 1LF,"3,768.70",
Communities & Local Government,DCLG,05/01/2012,"IT - PC, Network & Hardware",Finance & Corporate Services,DELL CORPORATION LTD,,Large,,5106172722,Dell Docking Stations x 7 (Birmingham),RG12 1LF,775.91,
Communities & Local Government,DCLG,05/01/2012,"IT - PC, Network & Hardware",Finance & Corporate Services,DELL CORPORATION LTD,,Large,,5106172723,Dell Docking Stations x5 (Sheffield),RG12 1LF,554.22,
Communities & Local Government,DCLG,05/01/2012,Office Machinery (<5000),Neighbourhoods,DANWOOD GROUP LTD,,Large,,5106172539,Photocopiers and Faxes,LN6 3DG,994.32,
Communities & Local Government,DCLG,05/01/2012,Professional services,Finance & Corporate Services,E C HARRIS LLP,,Large,,5106172729,"Provision of H& S, Fire advice - Year 1",N1 9AB,"8,754.00",
Communities & Local Government,DCLG,05/01/2012,Publications,Finance & Corporate Services,JONES YARRELL LEADENHALL LTD,,Large,,5106172540,Annual Magazine/Newspaper costs - Comms,E3 3JH,800.17,
Communities & Local Government,DCLG,05/01/2012,Research,Neighbourhoods,E C HARRIS LLP,,Large,,5106172749,Cat 2 and 3 call off work,N1 9AB,"4,350.00",
Communities & Local Government,DCLG,05/01/2012,Safety equipment,Finance & Corporate Services,CHUBB FIRE LTD,,Large,,5106172721,Fire Equipment Services,LU1 1UR,"2,652.23",
Communities & Local Government,DCLG,05/01/2012,Security,Finance & Corporate Services,MITIE SECURITY LTD,,Large,,5106172726,Hemel Hempstead Security 11-12,MK5 6LB,"4,246.40",
Communities & Local Government,DCLG,05/01/2012,Software Licences,Neighbourhoods,BRAMBLE. CC,,Micro,,5106172765,Implement SugarCRM Yr 1,SE1 7SP,"17,292.00",
Communities & Local Government,DCLG,05/01/2012,Training,Finance & Corporate Services,SWEET & MAXWELL LTD,,Large,,5106172763,Planning Law Conference,SP10 9AH,540.00,
Communities & Local Government,DCLG,05/01/2012,Training,Finance & Corporate Services,FAIRPLACE LIMITED,,Medium,,5106172741,Restructuring Support Workshops,EC3V 3PQ,900.00,
Communities & Local Government,DCLG,05/01/2012,Vehicle hire,Neighbourhoods,ARVAL,,Large,,2100212301,Vehicle Hire 28.12.11,SN5 6PE,539.52,
Communities & Local Government,DCLG,05/01/2012,National Non Domestic Rates (NNDR) Payments,Localism,AVON & SOMERSET POLICE AUTHORITY,,,,5000183866,Grant Payable by Exchequer,TA1 4DY,"2,334,699.00",Yes
Communities & Local Government,DCLG,05/01/2012,National Non Domestic Rates (NNDR) Payments,Localism,AVON FIRE AUTHORITY,,,,5000183872,Grant Payable by Exchequer,BS1 6EU,"817,880.00",Yes
Communities & Local Government,DCLG,05/01/2012,National Non Domestic Rates (NNDR) Payments,Localism,BARKING & DAGENHAM LB,,,,5000183902,Grant Payable by Exchequer,RM10 7BY,"3,847,942.00",Yes
Communities & Local Government,DCLG,05/01/2012,National Non Domestic Rates (NNDR) Payments,Localism,BARNSLEY MBC,,,,5000183922,Grant Payable by Exchequer,S70 2AQ,"3,975,684.00",Yes
Communities & Local Government,DCLG,05/01/2012,National Non Domestic Rates (NNDR) Payments,Localism,BEDS & LUTON FIRE & RESCUE SERVICE,,,,5000183978,Grant Payable by Exchequer,MK42 7NR,"394,763.00",Yes
Communities & Local Government,DCLG,05/01/2012,National Non Domestic Rates (NNDR) Payments,Localism,BEDFORDSHIRE POLICE AUTH,,,,5000183983,Grant Payable by Exchequer,MK43 9AX,"1,061,934.00",Yes
Communities & Local Government,DCLG,05/01/2012,National Non Domestic Rates (NNDR) Payments,Localism,ROYAL BERKSHIRE FIRE AUTHORITY,,,,5000183988,Grant Payable by Exchequer,RG30 4FS,"536,368.00",Yes
Communities & Local Government,DCLG,05/01/2012,National Non Domestic Rates (NNDR) Payments,Localism,BIRMINGHAM CITY CNCL,,,,5000184005,Grant Payable by Exchequer,B3 3AB,"25,079,983.00",Yes
Communities & Local Government,DCLG,05/01/2012,National Non Domestic Rates (NNDR) Payments,Localism,BLACKBURN WITH DARWEN BC,,,,5000184025,Grant Payable by Exchequer,BB1 7DY,"2,995,303.00",Yes
Communities & Local Government,DCLG,05/01/2012,National Non Domestic Rates (NNDR) Payments,Localism,BLACKPOOL BC,,,,5000184036,Grant Payable by Exchequer,FY1 1NA,"3,135,551.00",Yes
Communities & Local Government,DCLG,05/01/2012,National Non Domestic Rates (NNDR) Payments,Localism,BOLTON MBC,,,,5000184056,Grant Payable by Exchequer,BL1 1RU,"4,645,991.00",Yes
Communities & Local Government,DCLG,05/01/2012,National Non Domestic Rates (NNDR) Payments,Localism,BRADFORD MBC,,,,5000184093,Grant Payable by Exchequer,BD1 1HX,"9,937,171.00",Yes
Communities & Local Government,DCLG,05/01/2012,National Non Domestic Rates (NNDR) Payments,Localism,BRENT LB,,,,5000184128,Grant Payable by Exchequer,HA9 9EZ,"6,019,971.00",Yes
Communities & Local Government,DCLG,05/01/2012,National Non Domestic Rates (NNDR) Payments,Localism,BUCKS & MILTON KEYNES FIRE AUTH,,,,5000184214,Grant Payable by Exchequer,HP20 1BD,"379,904.00",Yes
Communities & Local Government,DCLG,05/01/2012,National Non Domestic Rates (NNDR) Payments,Localism,BUCKINGHAMSHIRE CC,,,,5000184219,Grant Payable by Exchequer,HP20 1UD,"2,411,285.00",Yes
Communities & Local Government,DCLG,05/01/2012,National Non Domestic Rates (NNDR) Payments,Localism,BURY MBC,,,,5000184243,Grant Payable by Exchequer,BL9 0SP,"2,460,534.00",Yes
Communities & Local Government,DCLG,05/01/2012,National Non Domestic Rates (NNDR) Payments,Localism,CALDERDALE MBC,,,,5000184248,Grant Payable by Exchequer,HX1 1YP,"2,988,849.00",Yes
Communities & Local Government,DCLG,05/01/2012,National Non Domestic Rates (NNDR) Payments,Localism,CAMBS & PETERBOROUGH FIRE AUTHORITY,,,,5000184268,Grant Payable by Exchequer,PE29 2NA,"474,285.00",Yes
Communities & Local Government,DCLG,05/01/2012,National Non Domestic Rates (NNDR) Payments,Localism,CAMBRIDGESHIRE POLICE AUT,,,,5000184273,Grant Payable by Exchequer,P18 8NP,"1,077,894.00",Yes
Communities & Local Government,DCLG,05/01/2012,National Non Domestic Rates (NNDR) Payments,Localism,CAMBRIDGESHIRE COUNTY CNCL,,,,5000184278,Grant Payable by Exchequer,CB3 0AP,"4,359,262.00",Yes
Communities & Local Government,DCLG,05/01/2012,National Non Domestic Rates (NNDR) Payments,Localism,CHESHIRE FIRE AUTHORITY,,,,5000184373,Grant Payable by Exchequer,CW7 2FQ,"677,391.00",Yes
Communities & Local Government,DCLG,05/01/2012,National Non Domestic Rates (NNDR) Payments,Localism,CHESHIRE POLICE AUTHORITY,,,,5000184378,Grant Payable by Exchequer,CW7 2UA,"1,931,486.00",Yes
Communities & Local Government,DCLG,05/01/2012,National Non Domestic Rates (NNDR) Payments,Localism,CLEVELAND FIRE AUTHORITY,,,,5000184453,Grant Payable by Exchequer,TS25 5TB,"734,956.00",Yes
Communities & Local Government,DCLG,05/01/2012,National Non Domestic Rates (NNDR) Payments,Localism,CLEVELAND POLICE AUTHORITY,,,,5000184458,Grant Payable by Exchequer,TS1 2JX,"1,678,661.00",Yes
Communities & Local Government,DCLG,05/01/2012,National Non Domestic Rates (NNDR) Payments,Localism,COVENTRY CITY CNCL,,,,5000184503,Grant Payable by Exchequer,CV1 2QL,"5,743,248.00",Yes
Communities & Local Government,DCLG,05/01/2012,National Non Domestic Rates (NNDR) Payments,Localism,CUMBRIA COUNTY CNCL,,,,5000184544,Grant Payable by Exchequer,CA3 8NA,"5,752,172.00",Yes
Communities & Local Government,DCLG,05/01/2012,National Non Domestic Rates (NNDR) Payments,Localism,CUMBRIA POLICE AUTHORITY,,,,5000183787,Grant Payable by Exchequer,CA10 2AU,"1,310,831.00",Yes
Communities & Local Government,DCLG,05/01/2012,National Non Domestic Rates (NNDR) Payments,Localism,DARLINGTON BC,,,,5000183812,Grant Payable by Exchequer,TS19 1JA,"1,497,513.00",Yes
Communities & Local Government,DCLG,05/01/2012,National Non Domestic Rates (NNDR) Payments,Localism,DERBY CITY CNCL,,,,5000183840,Grant Payable by Exchequer,DE1 2FS,"4,104,260.00",Yes
Communities & Local Government,DCLG,05/01/2012,National Non Domestic Rates (NNDR) Payments,Localism,DERBYSHIRE FIRE AUTHORITY,,,,5000183852,Grant Payable by Exchequer,DE55 1RH,"654,056.00",Yes
Communities & Local Government,DCLG,05/01/2012,National Non Domestic Rates (NNDR) Payments,Localism,DERBYSHIRE POLICE AUTHORITY,,,,5000183857,Grant Payable by Exchequer,DE5 3RS,"1,663,309.00",Yes
Communities & Local Government,DCLG,05/01/2012,National Non Domestic Rates (NNDR) Payments,Localism,DERBYSHIRE COUNTYCOUNCIL,,,,5000183863,Grant Payable by Exchequer,DE4 3AH,"7,464,909.00",Yes
Communities & Local Government,DCLG,05/01/2012,National Non Domestic Rates (NNDR) Payments,Localism,DEVON & CORNWALL POLICE A,,,,5000183880,Grant Payable by Exchequer,EX2 5YT,"2,622,644.00",Yes
Communities & Local Government,DCLG,05/01/2012,National Non Domestic Rates (NNDR) Payments,Localism,DEVON COUNTY CNCL,,,,5000183885,Grant Payable by Exchequer,EX2 4QJ,"6,744,806.00",Yes
Communities & Local Government,DCLG,05/01/2012,National Non Domestic Rates (NNDR) Payments,Localism,DEVON & SOMERSET FIRE & RESCUE SERV,,,,5000183890,Grant Payable by Exchequer,EX3 0NW,"1,120,990.00",Yes
Communities & Local Government,DCLG,05/01/2012,National Non Domestic Rates (NNDR) Payments,Localism,DONCASTER MBC,,,,5000183895,Grant Payable by Exchequer,DN1 3QA,"5,259,054.00",Yes
Communities & Local Government,DCLG,05/01/2012,National Non Domestic Rates (NNDR) Payments,Localism,DORSET COUNTY CNCL,,,,5000183905,Grant Payable by Exchequer,DT1 1XJ,"2,373,292.00",Yes
Communities & Local Government,DCLG,05/01/2012,National Non Domestic Rates (NNDR) Payments,Localism,DORSET FIRE AUTHORITY,,,,5000183910,Grant Payable by Exchequer,DT1 1FB,"394,893.00",Yes
Communities & Local Government,DCLG,05/01/2012,National Non Domestic Rates (NNDR) Payments,Localism,DORSET POLICE AUTHORITY,,,,5000183915,Grant Payable by Exchequer,DT2 8DZ,"762,984.00",Yes
Communities & Local Government,DCLG,05/01/2012,National Non Domestic Rates (NNDR) Payments,Localism,DUDLEY MBC,,,,5000183935,Grant Payable by Exchequer,DY1 1HF,"4,648,571.00",Yes
Communities & Local Government,DCLG,05/01/2012,National Non Domestic Rates (NNDR) Payments,Localism,CO DURHAM & DARLINGTON FIRE AND RES,,,,5000183940,Grant Payable by Exchequer,DH1 5UE,"477,102.00",Yes
Communities & Local Government,DCLG,05/01/2012,National Non Domestic Rates (NNDR) Payments,Localism,DURHAM POLICE AUTHORITY,,,,5000183945,Grant Payable by Exchequer,DH1 5TT,"1,610,131.00",Yes
Communities & Local Government,DCLG,05/01/2012,National Non Domestic Rates (NNDR) Payments,Localism,EAST RIDING OF YORKS,,,,5000184031,Grant Payable by Exchequer,HU17 9AB,"3,720,650.00",Yes
Communities & Local Government,DCLG,05/01/2012,National Non Domestic Rates (NNDR) Payments,Localism,EAST SUSSEX COUNTY CNCL,,,,5000184050,Grant Payable by Exchequer,BN7 1SF,"4,274,856.00",Yes
Communities & Local Government,DCLG,05/01/2012,National Non Domestic Rates (NNDR) Payments,Localism,EAST SUSSEX FIRE & RESCUE SERVICE,,,,5000184055,Grant Payable by Exchequer,BN21 1EU,"501,972.00",Yes
Communities & Local Government,DCLG,05/01/2012,National Non Domestic Rates (NNDR) Payments,Localism,ENFIELD LB,,,,5000184099,Grant Payable by Exchequer,EN1 3XF,"4,754,626.00",Yes
Communities & Local Government,DCLG,05/01/2012,National Non Domestic Rates (NNDR) Payments,Localism,ESSEX COUNTY CNCL,,,,5000184139,Grant Payable by Exchequer,CM1 1JZ,"10,294,383.00",Yes
Communities & Local Government,DCLG,05/01/2012,National Non Domestic Rates (NNDR) Payments,Localism,ESSEX FIRE AUTHORITY,,,,5000184144,Grant Payable by Exchequer,CM8 3HB,"1,172,529.00",Yes
Communities & Local Government,DCLG,05/01/2012,National Non Domestic Rates (NNDR) Payments,Localism,ESSEX POLICE AUTHORITY,,,,5000184149,Grant Payable by Exchequer,CM2 6DA,"2,383,553.00",Yes
Communities & Local Government,DCLG,05/01/2012,National Non Domestic Rates (NNDR) Payments,Localism,GATESHEAD MBC,,,,5000184215,Grant Payable by Exchequer,NE8 1HH,"3,842,656.00",Yes
Communities & Local Government,DCLG,05/01/2012,National Non Domestic Rates (NNDR) Payments,Localism,GREATER LONDON AUTHORITY,,,,5000184235,Grant Payable by Exchequer,SE10 1AJ,"32,577,710.00",Yes
Communities & Local Government,DCLG,05/01/2012,National Non Domestic Rates (NNDR) Payments,Localism,GLOUCESTERSHIRE COUNTY CNCL,,,,5000184251,Grant Payable by Exchequer,GL1 2TG,"5,001,299.00",Yes
Communities & Local Government,DCLG,05/01/2012,National Non Domestic Rates (NNDR) Payments,Localism,GLOUCESTERSHIRE POLICE AUTHORITY,,,,5000184256,Grant Payable by Exchequer,GL2 2AN,"811,173.00",Yes
Communities & Local Government,DCLG,05/01/2012,National Non Domestic Rates (NNDR) Payments,Localism,GREENWICH LB,,,,5000184301,Grant Payable by Exchequer,SE18 6RA,"6,023,703.00",Yes
Communities & Local Government,DCLG,05/01/2012,National Non Domestic Rates (NNDR) Payments,Localism,LONDON BOROUGH OF HACKNEY,,,,5000184320,Grant Payable by Exchequer,E8 4RU,"8,161,819.00",Yes
Communities & Local Government,DCLG,05/01/2012,National Non Domestic Rates (NNDR) Payments,Localism,HALTON BC,,,,5000184335,Grant Payable by Exchequer,WA8 7QF,"2,431,728.00",Yes
Communities & Local Government,DCLG,05/01/2012,National Non Domestic Rates (NNDR) Payments,Localism,HAMPSHIRE COUNTY COUNCIL,,,,5000184360,Grant Payable by Exchequer,SO23 8UB,"6,736,282.00",Yes
Communities & Local Government,DCLG,05/01/2012,National Non Domestic Rates (NNDR) Payments,Localism,HAMPSHIRE FIRE & RESCUE AUTHORITY,,,,5000184365,Grant Payable by Exchequer,SO23 8UB,"1,064,304.00",Yes
Communities & Local Government,DCLG,05/01/2012,National Non Domestic Rates (NNDR) Payments,Localism,HAMPSHIRE POLICE AUTHORITY,,,,5000184370,Grant Payable by Exchequer,SO23 8UB,"2,695,515.00",Yes
Communities & Local Government,DCLG,05/01/2012,National Non Domestic Rates (NNDR) Payments,Localism,HARINGEY LB,,,,5000184385,Grant Payable by Exchequer,N22 7TR,"5,559,539.00",Yes
Communities & Local Government,DCLG,05/01/2012,National Non Domestic Rates (NNDR) Payments,Localism,HARROW LB,,,,5000184415,Grant Payable by Exchequer,HA1 2UZ,"2,544,462.00",Yes
Communities & Local Government,DCLG,05/01/2012,National Non Domestic Rates (NNDR) Payments,Localism,HARTLEPOOL BOROUGH COUNCIL,,,,5000184440,Grant Payable by Exchequer,TS24 7BT,"1,887,138.00",Yes
Communities & Local Government,DCLG,05/01/2012,National Non Domestic Rates (NNDR) Payments,Localism,HEREFORD WORCESTER FIRE BRIGADE,,,,5000184475,Grant Payable by Exchequer,WR1 2HQ,"377,616.00",Yes
Communities & Local Government,DCLG,05/01/2012,National Non Domestic Rates (NNDR) Payments,Localism,HEREFORDSHIRE DISTRICT COUNCIL,,,,5000184480,Grant Payable by Exchequer,HR1 1SH,"2,183,980.00",Yes
Communities & Local Government,DCLG,05/01/2012,National Non Domestic Rates (NNDR) Payments,Localism,HERTFORDSHIRE POLICE AUTH,,,,5000184490,Grant Payable by Exchequer,AL8 6XF,"1,615,388.00",Yes
Communities & Local Government,DCLG,05/01/2012,National Non Domestic Rates (NNDR) Payments,Localism,HERTFORDSHIRE CONTY CNCL,,,,5000184495,Grant Payable by Exchequer,SG13 8DQ,"7,282,849.00",Yes
Communities & Local Government,DCLG,05/01/2012,National Non Domestic Rates (NNDR) Payments,Localism,HUMBERSIDE FIRE & RESCUE SERVICE,,,,5000183801,Grant Payable by Exchequer,HU4 7BB,"929,810.00",Yes
Communities & Local Government,DCLG,05/01/2012,National Non Domestic Rates (NNDR) Payments,Localism,HUMBERSIDE POLICE,,,,5000183807,Grant Payable by Exchequer,HU5 5SF,"2,015,173.00",Yes
Communities & Local Government,DCLG,05/01/2012,National Non Domestic Rates (NNDR) Payments,Localism,ISLE OF WIGHT CNCL,,,,5000183837,Grant Payable by Exchequer,PO30 1UD,"2,307,492.00",Yes
Communities & Local Government,DCLG,05/01/2012,National Non Domestic Rates (NNDR) Payments,Localism,ISLES OF SCILLY COUNCIL,,,,5000183861,Grant Payable by Exchequer,TR21 0LW,"94,303.00",Yes
Communities & Local Government,DCLG,05/01/2012,National Non Domestic Rates (NNDR) Payments,Localism,KENT COUNTY CNCL,,,,5000183892,Grant Payable by Exchequer,ME14 1XQ,"11,465,407.00",Yes
Communities & Local Government,DCLG,05/01/2012,National Non Domestic Rates (NNDR) Payments,Localism,KENT & MEDWAY TOWNS FIRE AUTHORITY,,,,5000183897,Grant Payable by Exchequer,ME15 6XB,"1,031,110.00",Yes
Communities & Local Government,DCLG,05/01/2012,National Non Domestic Rates (NNDR) Payments,Localism,KENT POLICE AUTHORITY,,,,5000183903,Grant Payable by Exchequer,ME15 9BZ,"2,961,759.00",Yes
Communities & Local Government,DCLG,05/01/2012,National Non Domestic Rates (NNDR) Payments,Localism,HULL CITY COUNCIL,,,,5000183933,Grant Payable by Exchequer,HU1 2AA,"5,657,546.00",Yes
Communities & Local Government,DCLG,05/01/2012,National Non Domestic Rates (NNDR) Payments,Localism,KIRKLEES MBC,,,,5000183952,Grant Payable by Exchequer,HD1 2YU,"5,776,631.00",Yes
Communities & Local Government,DCLG,05/01/2012,National Non Domestic Rates (NNDR) Payments,Localism,KNOWSLEY MBC,,,,5000183967,Grant Payable by Exchequer,L36 9YZ,"4,291,778.00",Yes
Communities & Local Government,DCLG,05/01/2012,National Non Domestic Rates (NNDR) Payments,Localism,LONDON BOROUGH OF LAMBETH,,,,5000183977,Grant Payable by Exchequer,SW2 1RL,"8,011,396.00",Yes
Communities & Local Government,DCLG,05/01/2012,National Non Domestic Rates (NNDR) Payments,Localism,LANCASHIRE COUNTY CNCL,,,,5000183982,Grant Payable by Exchequer,PR1 8RD,"12,107,483.00",Yes
Communities & Local Government,DCLG,05/01/2012,National Non Domestic Rates (NNDR) Payments,Localism,LANCASHIRE COMBINED FIRE AUTHORITY,,,,5000183987,Grant Payable by Exchequer,PR2 3LH,"1,134,014.00",Yes
Communities & Local Government,DCLG,05/01/2012,National Non Domestic Rates (NNDR) Payments,Localism,LANCASHIRE POLICE AUTHORITY,,,,5000183992,Grant Payable by Exchequer,PR1 OLD,"3,365,291.00",Yes
Communities & Local Government,DCLG,05/01/2012,National Non Domestic Rates (NNDR) Payments,Localism,LEICESTER CITY CNCL,,,,5000184017,Grant Payable by Exchequer,LE1 6ZG,"6,888,559.00",Yes
Communities & Local Government,DCLG,05/01/2012,National Non Domestic Rates (NNDR) Payments,Localism,LEICS LEICESTERSHIRE RUTLAND CFA,,,,5000184027,Grant Payable by Exchequer,LE3 8HD,"660,792.00",Yes
Communities & Local Government,DCLG,05/01/2012,National Non Domestic Rates (NNDR) Payments,Localism,LEICESTERSHIRE POLICE AUTHORITY,,,,5000184032,Grant Payable by Exchequer,LE99 1A2,"1,740,836.00",Yes
Communities & Local Government,DCLG,05/01/2012,National Non Domestic Rates (NNDR) Payments,Localism,LEICESTERSHIRE COUNTY CNCL,,,,5000184037,Grant Payable by Exchequer,LE3 8RB,"3,948,323.00",Yes
Communities & Local Government,DCLG,05/01/2012,National Non Domestic Rates (NNDR) Payments,Localism,LEWISHAM LB,,,,5000184052,Grant Payable by Exchequer,SE6 4RU,"6,769,301.00",Yes
Communities & Local Government,DCLG,05/01/2012,National Non Domestic Rates (NNDR) Payments,Localism,LINCOLNSHIRE POLICE AUTH,,,,5000184082,Grant Payable by Exchequer,LN5 7PH,"893,116.00",Yes
Communities & Local Government,DCLG,05/01/2012,National Non Domestic Rates (NNDR) Payments,Localism,LINCOLNSHIRE COUNTY CNCL,,,,5000184087,Grant Payable by Exchequer,LN1 1YG,"7,668,288.00",Yes
Communities & Local Government,DCLG,05/01/2012,National Non Domestic Rates (NNDR) Payments,Localism,LIVERPOOL CITY COUNCIL,,,,5000184091,Grant Payable by Exchequer,L1 6JD,"12,337,683.00",Yes
Communities & Local Government,DCLG,05/01/2012,National Non Domestic Rates (NNDR) Payments,Localism,LUTON BC,,,,5000184106,Grant Payable by Exchequer,LU1 1DX,"3,307,710.00",Yes
Communities & Local Government,DCLG,05/01/2012,National Non Domestic Rates (NNDR) Payments,Localism,GREATER MANCHESTER FIRE,,,,5000184152,Grant Payable by Exchequer,M27 2US,"2,473,793.00",Yes
Communities & Local Government,DCLG,05/01/2012,National Non Domestic Rates (NNDR) Payments,Localism,GREATER MANCHESTER POL AUTH,,,,5000184157,Grant Payable by Exchequer,M16 0RE,"7,983,704.00",Yes
Communities & Local Government,DCLG,05/01/2012,National Non Domestic Rates (NNDR) Payments,Localism,MERSEYSIDE FIRE & RESCUE SERVICE,,,,5000184202,Grant Payable by Exchequer,L30 4YD,"1,520,527.00",Yes
Communities & Local Government,DCLG,05/01/2012,National Non Domestic Rates (NNDR) Payments,Localism,MERSEYSIDE POLICE AUTH,,,,5000184207,Grant Payable by Exchequer,L69 1JD,"4,843,371.00",Yes
Communities & Local Government,DCLG,05/01/2012,National Non Domestic Rates (NNDR) Payments,Localism,MIDDLESBROUGH BC,,,,5000184255,Grant Payable by Exchequer,TS1 9GA,"3,132,972.00",Yes
Communities & Local Government,DCLG,05/01/2012,National Non Domestic Rates (NNDR) Payments,Localism,LONDON BOROUGH OF NEWHAM,,Large,,5000184336,Grant Payable by Exchequer,E16 2QU,"7,979,615.00",Yes
Communities & Local Government,DCLG,05/01/2012,National Non Domestic Rates (NNDR) Payments,Localism,NORFOLK COUNTY COUNCIL,,,,5000184341,Grant Payable by Exchequer,NR1 2DW,"9,322,652.00",Yes
Communities & Local Government,DCLG,05/01/2012,National Non Domestic Rates (NNDR) Payments,Localism,NORFOLK POLICE AUTHORITY,,,,5000184346,Grant Payable by Exchequer,NR18 0WW,"1,201,937.00",Yes
Communities & Local Government,DCLG,05/01/2012,National Non Domestic Rates (NNDR) Payments,Localism,NORTH TYNESIDE MBC,,,,5000184436,Grant Payable by Exchequer,NE30 1AE,"3,285,455.00",Yes
Communities & Local Government,DCLG,05/01/2012,National Non Domestic Rates (NNDR) Payments,Localism,NORTH YORKSHIRE CC,,,,5000184455,Grant Payable by Exchequer,DL7 8AL,"4,435,829.00",Yes
Communities & Local Government,DCLG,05/01/2012,National Non Domestic Rates (NNDR) Payments,Localism,NORTH YORKSHIRE FIRE & RESCUE AUTH,,,,5000184460,Grant Payable by Exchequer,DL6 1AB,"442,868.00",Yes
Communities & Local Government,DCLG,05/01/2012,National Non Domestic Rates (NNDR) Payments,Localism,NORTH YORKSHIRE POLICE AUTHORITY,,,,5000184466,Grant Payable by Exchequer,DL7 9HA,"1,150,489.00",Yes
Communities & Local Government,DCLG,05/01/2012,National Non Domestic Rates (NNDR) Payments,Localism,NORTHAMPTONSHIRE COUNTY COUNCIL,,,,5000184481,Grant Payable by Exchequer,NN4 7DB,"6,114,613.00",Yes
Communities & Local Government,DCLG,05/01/2012,National Non Domestic Rates (NNDR) Payments,Localism,NORTHAMPTONSHIRE POLICE AUTH,,,,5000184487,Grant Payable by Exchequer,NN1 5DQ,"1,045,478.00",Yes
Communities & Local Government,DCLG,05/01/2012,National Non Domestic Rates (NNDR) Payments,Localism,NORTHUMBRIA POLICE AUTH,,,,5000184492,Grant Payable by Exchequer,NE1 8DL,"4,597,148.00",Yes
Communities & Local Government,DCLG,05/01/2012,National Non Domestic Rates (NNDR) Payments,Localism,NOTTINGHAM CITY COUNCIL,,,,5000184512,Grant Payable by Exchequer,NG1 7DW,"6,705,419.00",Yes
Communities & Local Government,DCLG,05/01/2012,National Non Domestic Rates (NNDR) Payments,Localism,NOTTINGHAMSHIRE COUNTY CNCL,,,,5000184517,Grant Payable by Exchequer,NG1 4BU,"7,210,705.00",Yes
Communities & Local Government,DCLG,05/01/2012,National Non Domestic Rates (NNDR) Payments,Localism,NOTTS & CITY NOTTINGHAM FIRE AUTH,,,,5000184522,Grant Payable by Exchequer,NG5 8PD,"821,252.00",Yes
Communities & Local Government,DCLG,05/01/2012,National Non Domestic Rates (NNDR) Payments,Localism,NOTTINGHAMSHIRE POLICE AU,,,,5000184527,Grant Payable by Exchequer,NG5 8PP,"2,069,142.00",Yes
Communities & Local Government,DCLG,05/01/2012,National Non Domestic Rates (NNDR) Payments,Localism,OLDHAM MBC,,,,5000183809,Grant Payable by Exchequer,OL1 1UH,"4,441,776.00",Yes
Communities & Local Government,DCLG,05/01/2012,National Non Domestic Rates (NNDR) Payments,Localism,OXFORDSHIRE CC,,,,5000183827,Grant Payable by Exchequer,OX4 2GQ,"4,432,506.00",Yes
Communities & Local Government,DCLG,05/01/2012,National Non Domestic Rates (NNDR) Payments,Localism,PLYMOUTH CITY CNCL,,,,5000183856,Grant Payable by Exchequer,PL1 2AA,"4,075,846.00",Yes
Communities & Local Government,DCLG,05/01/2012,National Non Domestic Rates (NNDR) Payments,Localism,LONDON BOROUGH OF REDBRIDGE,,,,5000183924,Grant Payable by Exchequer,IG1 1NN,"3,667,857.00",Yes
Communities & Local Government,DCLG,05/01/2012,National Non Domestic Rates (NNDR) Payments,Localism,REDCAR & CLEVELAND BOROUGH COUNCIL,,,,5000183934,Grant Payable by Exchequer,TS6 9AR,"2,467,129.00",Yes
Communities & Local Government,DCLG,05/01/2012,National Non Domestic Rates (NNDR) Payments,Localism,ROCHDALE MBC,,,,5000183999,Grant Payable by Exchequer,OL16 1LQ,"4,192,519.00",Yes
Communities & Local Government,DCLG,05/01/2012,National Non Domestic Rates (NNDR) Payments,Localism,ROTHERHAM MBC,,,,5000184038,Grant Payable by Exchequer,S65 1UF,"4,469,153.00",Yes
Communities & Local Government,DCLG,05/01/2012,National Non Domestic Rates (NNDR) Payments,Localism,SALFORD CITY CNCL,,,,5000184110,Grant Payable by Exchequer,M27 5AW,"4,921,346.00",Yes
Communities & Local Government,DCLG,05/01/2012,National Non Domestic Rates (NNDR) Payments,Localism,SANDWELL MBC,,,,5000184125,Grant Payable by Exchequer,B69 3BS,"6,767,060.00",Yes
Communities & Local Government,DCLG,05/01/2012,National Non Domestic Rates (NNDR) Payments,Localism,SEFTON MBC,,,,5000184158,Grant Payable by Exchequer,L20 3NQ,"4,581,693.00",Yes
Communities & Local Government,DCLG,05/01/2012,National Non Domestic Rates (NNDR) Payments,Localism,SHEFFIELD CITY CNCL,,,,5000184183,Grant Payable by Exchequer,S1 1UR,"10,293,333.00",Yes
Communities & Local Government,DCLG,05/01/2012,National Non Domestic Rates (NNDR) Payments,Localism,SHROPSHIRE & WREKIN FIRE AUTHORITY,,,,5000184203,Grant Payable by Exchequer,SY1 2HJ,"271,488.00",Yes
Communities & Local Government,DCLG,05/01/2012,National Non Domestic Rates (NNDR) Payments,Localism,SOMERSET COUNTY CNCL,,,,5000184228,Grant Payable by Exchequer,TA1 4DY,"4,722,716.00",Yes
Communities & Local Government,DCLG,05/01/2012,National Non Domestic Rates (NNDR) Payments,Localism,SOUTH TYNESIDE COUNCIL,,,,5000184382,Grant Payable by Exchequer,NE33 2RL,"3,267,654.00",Yes
Communities & Local Government,DCLG,05/01/2012,National Non Domestic Rates (NNDR) Payments,Localism,SOUTH YORKSHIRE FIRE & CD,,,,5000184392,Grant Payable by Exchequer,S1 3FG,"1,207,446.00",Yes
Communities & Local Government,DCLG,05/01/2012,National Non Domestic Rates (NNDR) Payments,Localism,SOUTH YORKSHIRE P A,,,,5000184397,Grant Payable by Exchequer,S3 8LY,"3,429,603.00",Yes
Communities & Local Government,DCLG,05/01/2012,National Non Domestic Rates (NNDR) Payments,Localism,SOUTHEND ON SEA BC,,,,5000184412,Grant Payable by Exchequer,SS2 6EP,"2,322,687.00",Yes
Communities & Local Government,DCLG,05/01/2012,National Non Domestic Rates (NNDR) Payments,Localism,ST HELENS MBC,,,,5000184462,Grant Payable by Exchequer,WA10 1HP,"3,302,065.00",Yes
Communities & Local Government,DCLG,05/01/2012,National Non Domestic Rates (NNDR) Payments,Localism,STAFFORD BC,,,,5000184472,Grant Payable by Exchequer,ST16 3AQ,"234,901.00",Yes
Communities & Local Government,DCLG,05/01/2012,National Non Domestic Rates (NNDR) Payments,Localism,STAFFORDSHIRE COUNTY CNCL,,,,5000184491,Grant Payable by Exchequer,ST16 2LH,"6,342,783.00",Yes
Communities & Local Government,DCLG,05/01/2012,National Non Domestic Rates (NNDR) Payments,Localism,STAFFORDSHIRE  FIRE & RESCUE SERV,,,,5000184496,Grant Payable by Exchequer,ST15 0BS,"672,712.00",Yes
Communities & Local Government,DCLG,05/01/2012,National Non Domestic Rates (NNDR) Payments,Localism,STAFFORDSHIRE POLICE AUTHORITY,,,,5000184511,Grant Payable by Exchequer,ST16 2NF,"1,775,402.00",Yes
Communities & Local Government,DCLG,05/01/2012,National Non Domestic Rates (NNDR) Payments,Localism,STOKE ON TRENT CITY COUNCIL,,,,5000184549,Grant Payable by Exchequer,ST4 1RJ,"4,719,610.00",Yes
Communities & Local Government,DCLG,05/01/2012,National Non Domestic Rates (NNDR) Payments,Localism,SUFFOLK COUNTY CNCL,,,,5000183814,Grant Payable by Exchequer,IP4 2JP,"6,722,445.00",Yes
Communities & Local Government,DCLG,05/01/2012,National Non Domestic Rates (NNDR) Payments,Localism,SUFFOLK POLICE AUTHORITY,,,,5000183832,Grant Payable by Exchequer,IP5 3QS,"989,220.00",Yes
Communities & Local Government,DCLG,05/01/2012,National Non Domestic Rates (NNDR) Payments,Localism,SUNDERLAND DC,,,,5000183844,Grant Payable by Exchequer,SR2 7DN,"5,736,629.00",Yes
Communities & Local Government,DCLG,05/01/2012,National Non Domestic Rates (NNDR) Payments,Localism,SURREY COUNTY CNCL,,,,5000183850,Grant Payable by Exchequer,KT1 2EA,"5,531,607.00",Yes
Communities & Local Government,DCLG,05/01/2012,National Non Domestic Rates (NNDR) Payments,Localism,SURREY POLICE AUTHORITY,,,,5000183870,Grant Payable by Exchequer,KT1 2EA,"1,279,499.00",Yes
Communities & Local Government,DCLG,05/01/2012,National Non Domestic Rates (NNDR) Payments,Localism,SUSSEX POLICE AUTHORITY,,,,5000183876,Grant Payable by Exchequer,PO19 1RG,"2,389,389.00",Yes
Communities & Local Government,DCLG,05/01/2012,National Non Domestic Rates (NNDR) Payments,Localism,TAMESIDE MBC,,,,5000183916,Grant Payable by Exchequer,OL6 6DL,"3,872,407.00",Yes
Communities & Local Government,DCLG,05/01/2012,National Non Domestic Rates (NNDR) Payments,Localism,THAMES VALLEY POLICE AUTHORITY,,,,5000184008,Grant Payable by Exchequer,OX5 2NX,"3,243,710.00",Yes
Communities & Local Government,DCLG,05/01/2012,National Non Domestic Rates (NNDR) Payments,Localism,TORBAY BC,,,,5000184054,Grant Payable by Exchequer,TQ1 3DR,"2,264,947.00",Yes
Communities & Local Government,DCLG,05/01/2012,National Non Domestic Rates (NNDR) Payments,Localism,TYNE & WEAR FIRE AUTHORITY,,,,5000184107,Grant Payable by Exchequer,SR2 7DN,"1,168,013.00",Yes
Communities & Local Government,DCLG,05/01/2012,National Non Domestic Rates (NNDR) Payments,Localism,WALSALL MBC,,,,5000184156,Grant Payable by Exchequer,WS1 1TW,"4,974,829.00",Yes
Communities & Local Government,DCLG,05/01/2012,National Non Domestic Rates (NNDR) Payments,Localism,WALTHAM FOREST LB,,,,5000184170,Grant Payable by Exchequer,E17 4JA,"4,569,245.00",Yes
Communities & Local Government,DCLG,05/01/2012,National Non Domestic Rates (NNDR) Payments,Localism,WANDSWORTH LB,,,,5000184175,Grant Payable by Exchequer,SW18 2PU,"5,539,858.00",Yes
Communities & Local Government,DCLG,05/01/2012,National Non Domestic Rates (NNDR) Payments,Localism,WARWICKSHIRE COUNTY CNCL,,,,5000184206,Grant Payable by Exchequer,CV34 4RH,"3,894,208.00",Yes
Communities & Local Government,DCLG,05/01/2012,National Non Domestic Rates (NNDR) Payments,Localism,WARWICKSHIRE POLICE AUTHORITY,,,,5000184211,Grant Payable by Exchequer,CV35 7QB,"729,321.00",Yes
Communities & Local Government,DCLG,05/01/2012,National Non Domestic Rates (NNDR) Payments,Localism,WEST MERCIA POLICE AUTH,,,,5000184326,Grant Payable by Exchequer,WR5 2NP,"1,888,972.00",Yes
Communities & Local Government,DCLG,05/01/2012,National Non Domestic Rates (NNDR) Payments,Localism,WEST MIDLANDS FIRE & CIVIL DEFENCE,,,,5000184331,Grant Payable by Exchequer,B4 7DE,"2,653,680.00",Yes
Communities & Local Government,DCLG,05/01/2012,National Non Domestic Rates (NNDR) Payments,Localism,WEST MIDLANDS POLICE AUTH,,,,5000184339,Grant Payable by Exchequer,B4 6NQ,"8,160,239.00",Yes
Communities & Local Government,DCLG,05/01/2012,National Non Domestic Rates (NNDR) Payments,Localism,WEST SUSSEX CC,,,,5000184364,Grant Payable by Exchequer,PO19 1RG,"4,391,896.00",Yes
Communities & Local Government,DCLG,05/01/2012,National Non Domestic Rates (NNDR) Payments,Localism,W YORKSHIRE FIRE & RESCUE AUTH,,,,5000184369,Grant Payable by Exchequer,BD11 2DY,"1,894,566.00",Yes
Communities & Local Government,DCLG,05/01/2012,National Non Domestic Rates (NNDR) Payments,Localism,WEST YORKSHIRE POLICE AUTHORITY,,,,5000184374,Grant Payable by Exchequer,WF1 3QP,"5,474,645.00",Yes
Communities & Local Government,DCLG,05/01/2012,National Non Domestic Rates (NNDR) Payments,Localism,WIGAN MBC,,,,5000184404,Grant Payable by Exchequer,WN1 1YD,"4,898,893.00",Yes
Communities & Local Government,DCLG,05/01/2012,National Non Domestic Rates (NNDR) Payments,Localism,WILTSHIRE & SWINDON FIRE AUTHORITY,,,,5000184409,Grant Payable by Exchequer,SN10 5PP,"330,567.00",Yes
Communities & Local Government,DCLG,05/01/2012,National Non Domestic Rates (NNDR) Payments,Localism,WILTSHIRE POLICE,,,,5000184414,Grant Payable by Exchequer,BA14 8JJ,"919,751.00",Yes
Communities & Local Government,DCLG,05/01/2012,National Non Domestic Rates (NNDR) Payments,Localism,WIRRAL MBC,,,,5000184444,Grant Payable by Exchequer,L41 6BU,"5,762,335.00",Yes
Communities & Local Government,DCLG,05/01/2012,National Non Domestic Rates (NNDR) Payments,Localism,WOLVERHAMPTON MBC,,,,5000184474,Grant Payable by Exchequer,WV1 1RL,"5,262,308.00",Yes
Communities & Local Government,DCLG,05/01/2012,National Non Domestic Rates (NNDR) Payments,Localism,WORCESTERSHIRE COUNTY COUNCIL,,,,5000184489,Grant Payable by Exchequer,WR5 2NP,"3,960,901.00",Yes
Communities & Local Government,DCLG,05/01/2012,National Non Domestic Rates (NNDR) Payments,Localism,GREATER LONDON AUTHORITY-FIRE,,,,5000184543,Grant Payable by Exchequer,SE1 2AA,"9,131,271.00",Yes
Communities & Local Government,DCLG,05/01/2012,National Non Domestic Rates (NNDR) Payments,Localism,CORNWALL COUNCIL,,,,5000183803,Grant Payable by Exchequer,TR1 3AY,"7,875,380.00",Yes
Communities & Local Government,DCLG,05/01/2012,National Non Domestic Rates (NNDR) Payments,Localism,DURHAM COUNTY COUNCIL,,,,5000183825,Grant Payable by Exchequer,DH1 5UE,"8,543,422.00",Yes
Communities & Local Government,DCLG,05/01/2012,National Non Domestic Rates (NNDR) Payments,Localism,NORTHUMBERLAND,,,,5000183831,Grant Payable by Exchequer,NE61 2EF,"4,682,846.00",Yes
Communities & Local Government,DCLG,05/01/2012,National Non Domestic Rates (NNDR) Payments,Localism,SHROPSHIRE COUNCIL,,Large,,5000183842,Grant Payable by Exchequer,SY2 6ND,"3,456,133.00",Yes
Communities & Local Government,DCLG,05/01/2012,Medals,Localism,ROYAL MINT,,,,5106172735,20% Long service medal,CF72 8YT,950.40,
Communities & Local Government,DCLG,05/01/2012,Electricity,Finance & Corporate Services,SOUTHERN ELECTRIC PLC,,,,5106172717,5 St Philips Place Electricity,RG21 8WS,"8,438.68",
Communities & Local Government,DCLG,05/01/2012,IT - Service Contracts,Finance & Corporate Services,STERIA LTD,,Large,,5106172743,LOGASnet IT Healthcheck,M14 0WN,"13,633.70",
Communities & Local Government,DCLG,05/01/2012,IT - Service Contracts,Finance & Corporate Services,STERIA LIMITED,,Large,,5106172508,IT support,M14 0WN,"2,531.99",
Communities & Local Government,DCLG,05/01/2012,Steady State Service Provision,Finance & Corporate Services,LOGICA (CMG UK LTD),,Large,,5106172742,Blanket PRF for Logica Payroll (10-11),TW18 4LG,"1,127.23",
Communities & Local Government,DCLG,06/01/2012,Work In Progress Pre-Cert 40373 Spend,Neighbourhoods,YORKSHIRE FORWARD,,,,2300001830,Payment of ERDF grant to incorrect organisation fo,LS11 5AE,"-29,544.29",
Communities & Local Government,DCLG,06/01/2012,Work In Progress Pre-Cert 40373 Spend,Neighbourhoods,YORKSHIRE FORWARD,,,,2300001832,Payment of ERDF grant to incorrect vendor,LS11 5AE,"-24,713.79",
Communities & Local Government,DCLG,06/01/2012,Work In Progress Pre-Cert 40373 Spend,Neighbourhoods,HEART OF ENGLAND FINE FOODS,,Small,,7600000534,ERDF Claim - 31 - P2,SY1 3TG,"21,582.73",
Communities & Local Government,DCLG,06/01/2012,Work In Progress Pre-Cert 40373 Spend,Neighbourhoods,NGAGE SOLUTIONS LTD,,Medium,,2100212340,South East ERDF Programme,HP14 4BF,"95,943.28",
Communities & Local Government,DCLG,06/01/2012,Agency Staff,Localism,AMQIS CONSORTIUM,,Medium,,5106172827,IT consultants X to 31/03/2012 (VAT20%),GU9 7XX,"4,577.10",
Communities & Local Government,DCLG,06/01/2012,Agency Staff,Finance & Corporate Services,SQUARE ONE RESOURCES LTD,,Medium,,5106172819,SAP Dev & Support for BW,EC2A 2AD,"2,858.82",
Communities & Local Government,DCLG,06/01/2012,Agency Staff,Finance & Corporate Services,REED SPECIALIST RECRUITMENT LTD,,Large,,5106172820,Temp Electoral Claims,NN1 1UE,547.00,
Communities & Local Government,DCLG,06/01/2012,Agency Staff,Finance & Corporate Services,SBS GROUP (UK) LTD,,Large,,5106172829,SAP Technical Suport Sept to Mar2012,EC1N 8TS,"10,815.30",
Communities & Local Government,DCLG,06/01/2012,Domestic Services,Finance & Corporate Services,MITIE MANAGED SERVICES (SOUTHERN) L,,Large,,5106172809,"Gen Building, Cleaning & Maint 11-12",PR7 6TE,"29,202.83",
Communities & Local Government,DCLG,06/01/2012,Domestic Services,Finance & Corporate Services,MITIE FAC SERV LTD (STH WEST & WALE,,Large,,5106172788,Nov11-Mar12 PCQ Office Cleaning & Maint,BS16 7FH,"4,361.59",
Communities & Local Government,DCLG,06/01/2012,Fixed Maintenance,Finance & Corporate Services,TAYLOR WOODROW CONSTRUCTION,,Large,,5106172740,Rivergate VM Nov 2011,WD24 4WW,"3,448.45",
Communities & Local Government,DCLG,06/01/2012,Fixed Maintenance,Finance & Corporate Services,MITIE MANAGED SERVICES (SOUTHERN) L,,Large,,5106172807,Building Suppt Services 11-12,PR7 6TE,"1,467.62",
Communities & Local Government,DCLG,06/01/2012,Fixed Maintenance,Finance & Corporate Services,MITIE MANAGED SERVICES (SOUTHERN) L,,Large,,5106172809,Building Suppt Services 11-12,PR7 6TE,"64,377.64",
Communities & Local Government,DCLG,06/01/2012,Fixed Maintenance,Finance & Corporate Services,MITIE MANAGED SERVICES (SOUTHERN) L,,Large,,5106172811,Building Suppt Services 11-12,PR7 6TE,"1,874.05",
Communities & Local Government,DCLG,06/01/2012,Fixed Maintenance,Finance & Corporate Services,MITIE MANAGED SERVICES (SOUTHERN) L,,Large,,5106172812,Building Suppt Services 11-12,PR7 6TE,"14,310.00",
Communities & Local Government,DCLG,06/01/2012,Fixed Maintenance,Finance & Corporate Services,MITIE MANAGED SERVICES (SOUTHERN) L,,Large,,5106172813,Building Suppt Services 11-12,PR7 6TE,478.31,
Communities & Local Government,DCLG,06/01/2012,Fixed Maintenance,Finance & Corporate Services,MITIE FAC SERV LTD (STH WEST & WALE,,Large,,5106172788,Nov11-Mar12 PCQ Handyman&Lift Maint,BS16 7FH,"3,381.67",
Communities & Local Government,DCLG,06/01/2012,Travel and Subsistence Account,Localism,REDFERN TRAVEL LIMITED,,Small,,2100212343,Travel Expenses 31/12/11,BD1 3AZ,"1,073.55",
Communities & Local Government,DCLG,06/01/2012,Travel and Subsistence Account,Localism,REDFERN TRAVEL LIMITED,,Small,,2100212344,Travel expenses 31/12/11,BD1 3AZ,862.84,
Communities & Local Government,DCLG,06/01/2012,Travel and Subsistence Account,Localism,REDFERN TRAVEL LIMITED,,Small,,2100212351,Travel expenses 31/12/11,BD1 3AZ,"2,407.76",
Communities & Local Government,DCLG,06/01/2012,Travel and Subsistence Account,Localism,REDFERN TRAVEL LIMITED,,Small,,2100212351,Travel expenses 31/12/11,BD1 3AZ,847.22,
Communities & Local Government,DCLG,06/01/2012,Travel and Subsistence Account,Localism,REDFERN TRAVEL LIMITED,,Small,,2100212351,Travel expenses 31/12/11,BD1 3AZ,"1,167.96",
Communities & Local Government,DCLG,06/01/2012,Travel and Subsistence Account,Localism,REDFERN TRAVEL LIMITED,,Small,,2100212351,Travel expenses 31/12/11,BD1 3AZ,986.91,
Communities & Local Government,DCLG,06/01/2012,Travel and Subsistence Account,Localism,REDFERN TRAVEL LIMITED,,Small,,2100212351,Travel expenses 31/12/11,BD1 3AZ,"1,418.76",
Communities & Local Government,DCLG,06/01/2012,Travel and Subsistence Account,Localism,REDFERN TRAVEL LIMITED,,Small,,2100212351,Travel expenses 31/12/11,BD1 3AZ,796.83,
Communities & Local Government,DCLG,06/01/2012,Travel and Subsistence Account,Neighbourhoods,REDFERN TRAVEL LIMITED,,Small,,2100212341,Travel expenses 31/12/11,BD1 3AZ,"1,121.94",
Communities & Local Government,DCLG,06/01/2012,Travel and Subsistence Account,Neighbourhoods,REDFERN TRAVEL LIMITED,,Small,,2100212341,Travel expenses 31/12/11,BD1 3AZ,698.31,
Communities & Local Government,DCLG,06/01/2012,Travel and Subsistence Account,Neighbourhoods,REDFERN TRAVEL LIMITED,,Small,,2100212341,Travel expenses 31/12/11,BD1 3AZ,"4,395.13",
Communities & Local Government,DCLG,06/01/2012,Travel and Subsistence Account,Neighbourhoods,REDFERN TRAVEL LIMITED,,Small,,2100212343,Travel Expenses 31/12/11,BD1 3AZ,658.56,
Communities & Local Government,DCLG,06/01/2012,Travel and Subsistence Account,Neighbourhoods,REDFERN TRAVEL LIMITED,,Small,,2100212344,Travel expenses 31/12/11,BD1 3AZ,-746.94,
Communities & Local Government,DCLG,06/01/2012,Travel and Subsistence Account,Neighbourhoods,REDFERN TRAVEL LIMITED,,Small,,2100212344,Travel expenses 31/12/11,BD1 3AZ,"1,235.88",
Communities & Local Government,DCLG,06/01/2012,Travel and Subsistence Account,Neighbourhoods,REDFERN TRAVEL LIMITED,,Small,,2100212344,Travel expenses 31/12/11,BD1 3AZ,621.72,
Communities & Local Government,DCLG,06/01/2012,Travel and Subsistence Account,Neighbourhoods,REDFERN TRAVEL LIMITED,,Small,,2100212349,Travel expenses 31/12/11,BD1 3AZ,"2,253.08",
Communities & Local Government,DCLG,06/01/2012,Travel and Subsistence Account,Neighbourhoods,REDFERN TRAVEL LIMITED,,Small,,2100212349,Travel expenses 31/12/11,BD1 3AZ,"2,347.36",
Communities & Local Government,DCLG,06/01/2012,Travel and Subsistence Account,Neighbourhoods,REDFERN TRAVEL LIMITED,,Small,,2100212351,Travel expenses 31/12/11,BD1 3AZ,601.22,
Communities & Local Government,DCLG,06/01/2012,Travel and Subsistence Account,Neighbourhoods,REDFERN TRAVEL LIMITED,,Small,,2100212351,Travel expenses 31/12/11,BD1 3AZ,"2,071.76",
Communities & Local Government,DCLG,06/01/2012,Travel and Subsistence Account,Neighbourhoods,REDFERN TRAVEL LIMITED,,Small,,2100212351,Travel expenses 31/12/11,BD1 3AZ,541.51,
Communities & Local Government,DCLG,06/01/2012,Travel and Subsistence Account,Finance & Corporate Services,REDFERN TRAVEL LIMITED,,Small,,2100212342,Travel Expenses 31/12/11,BD1 3AZ,"1,734.02",
Communities & Local Government,DCLG,06/01/2012,Travel and Subsistence Account,Finance & Corporate Services,REDFERN TRAVEL LIMITED,,Small,,2100212347,Travel expenses 31/12/11,BD1 3AZ,"3,240.89",
Communities & Local Government,DCLG,06/01/2012,Travel and Subsistence Account,Finance & Corporate Services,REDFERN TRAVEL LIMITED,,Small,,2100212349,Travel expenses 31/12/11,BD1 3AZ,"4,225.01",
Communities & Local Government,DCLG,06/01/2012,Travel and Subsistence Account,Finance & Corporate Services,REDFERN TRAVEL LIMITED,,Small,,2100212349,Travel expenses 31/12/11,BD1 3AZ,"1,405.31",
Communities & Local Government,DCLG,06/01/2012,Travel and Subsistence Account,Finance & Corporate Services,REDFERN TRAVEL LIMITED,,Small,,2100212349,Travel expenses 31/12/11,BD1 3AZ,"1,574.98",
Communities & Local Government,DCLG,06/01/2012,Travel and Subsistence Account,Finance & Corporate Services,REDFERN TRAVEL LIMITED,,Small,,2100212349,Travel expenses 31/12/11,BD1 3AZ,948.23,
Communities & Local Government,DCLG,06/01/2012,Travel and Subsistence Account,Finance & Corporate Services,REDFERN TRAVEL LIMITED,,Small,,2100212350,Travel expenses 31/12/11,BD1 3AZ,"10,677.15",
Communities & Local Government,DCLG,06/01/2012,Travel and Subsistence Account,Strategic Performance Team,REDFERN TRAVEL LIMITED,,Small,,2100212348,Travel expenses 31/12/11,BD1 3AZ,651.20,
Communities & Local Government,DCLG,06/01/2012,Travel and Subsistence Account,Strategic Performance Team,REDFERN TRAVEL LIMITED,,Small,,2100212351,Travel expenses 31/12/11,BD1 3AZ,641.22,
Communities & Local Government,DCLG,06/01/2012,Courier Services,Finance & Corporate Services,MITIE MANAGED SERVICES (SOUTHERN) L,,Large,,5106172809,"Postal, parcel & courier services 11-12",PR7 6TE,"9,543.00",
Communities & Local Government,DCLG,06/01/2012,Courier Services,Finance & Corporate Services,MITIE MANAGED SERVICES (SOUTHERN) L,,Large,,5106172811,"Postal, parcel & courier services 11-12",PR7 6TE,"13,090.17",
Communities & Local Government,DCLG,06/01/2012,Courier Services,Finance & Corporate Services,MITIE FAC SERV LTD (STH WEST & WALE,,Large,,5106172788,Nov11-Mar12 PCQ Postal/Courier Services,BS16 7FH,"1,251.59",
Communities & Local Government,DCLG,06/01/2012,Photocopying,Localism,MITIE BUSINESS SERVICES LTD,,Large,,2100212352,Reprographics,SE1 2QG,6.05,
Communities & Local Government,DCLG,06/01/2012,Photocopying,Localism,MITIE BUSINESS SERVICES LTD,,Large,,2100212352,Reprographics,SE1 2QG,112.34,
Communities & Local Government,DCLG,06/01/2012,Photocopying,Localism,MITIE BUSINESS SERVICES LTD,,Large,,2100212352,Reprographics,SE1 2QG,0.95,
Communities & Local Government,DCLG,06/01/2012,Photocopying,Localism,MITIE BUSINESS SERVICES LTD,,Large,,2100212352,Reprographics,SE1 2QG,20.02,
Communities & Local Government,DCLG,06/01/2012,Photocopying,Localism,MITIE BUSINESS SERVICES LTD,,Large,,2100212352,Reprographics,SE1 2QG,531.37,
Communities & Local Government,DCLG,06/01/2012,Photocopying,Localism,MITIE BUSINESS SERVICES LTD,,Large,,2100212352,Reprographics,SE1 2QG,365.40,
Communities & Local Government,DCLG,06/01/2012,Photocopying,Localism,MITIE BUSINESS SERVICES LTD,,Large,,2100212352,Reprographics,SE1 2QG,189.47,
Communities & Local Government,DCLG,06/01/2012,Photocopying,Localism,MITIE BUSINESS SERVICES LTD,,Large,,2100212352,Reprographics,SE1 2QG,21.45,
Communities & Local Government,DCLG,06/01/2012,Photocopying,Localism,MITIE BUSINESS SERVICES LTD,,Large,,2100212352,Reprographics,SE1 2QG,0.29,
Communities & Local Government,DCLG,06/01/2012,Photocopying,Localism,MITIE BUSINESS SERVICES LTD,,Large,,2100212352,Reprographics,SE1 2QG,1.58,
Communities & Local Government,DCLG,06/01/2012,Photocopying,Localism,MITIE BUSINESS SERVICES LTD,,Large,,2100212352,Reprographics,SE1 2QG,15.62,
Communities & Local Government,DCLG,06/01/2012,Photocopying,Localism,MITIE BUSINESS SERVICES LTD,,Large,,2100212352,Reprographics,SE1 2QG,20.38,
Communities & Local Government,DCLG,06/01/2012,Photocopying,Localism,MITIE BUSINESS SERVICES LTD,,Large,,2100212352,Reprographics,SE1 2QG,295.15,
Communities & Local Government,DCLG,06/01/2012,Photocopying,Localism,MITIE BUSINESS SERVICES LTD,,Large,,2100212352,Reprographics,SE1 2QG,22.18,
Communities & Local Government,DCLG,06/01/2012,Photocopying,Localism,MITIE BUSINESS SERVICES LTD,,Large,,2100212353,Reprographics,SE1 2QG,3.70,
Communities & Local Government,DCLG,06/01/2012,Photocopying,Localism,MITIE BUSINESS SERVICES LTD,,Large,,2100212353,Reprographics,SE1 2QG,8.55,
Communities & Local Government,DCLG,06/01/2012,Photocopying,Localism,MITIE BUSINESS SERVICES LTD,,Large,,2100212353,Reprographics,SE1 2QG,13.20,
Communities & Local Government,DCLG,06/01/2012,Photocopying,Localism,MITIE BUSINESS SERVICES LTD,,Large,,2100212353,Reprographics,SE1 2QG,"1,774.08",
Communities & Local Government,DCLG,06/01/2012,Photocopying,Localism,MITIE BUSINESS SERVICES LTD,,Large,,2100212353,Reprographics,SE1 2QG,5.18,
Communities & Local Government,DCLG,06/01/2012,Photocopying,Localism,MITIE BUSINESS SERVICES LTD,,Large,,2100212353,Reprographics,SE1 2QG,71.77,
Communities & Local Government,DCLG,06/01/2012,Photocopying,Localism,MITIE BUSINESS SERVICES LTD,,Large,,2100212353,Reprographics,SE1 2QG,5.09,
Communities & Local Government,DCLG,06/01/2012,Photocopying,Localism,MITIE BUSINESS SERVICES LTD,,Large,,2100212353,Reprographics,SE1 2QG,34.50,
Communities & Local Government,DCLG,06/01/2012,Photocopying,Localism,MITIE BUSINESS SERVICES LTD,,Large,,2100212353,Reprographics,SE1 2QG,5.70,
Communities & Local Government,DCLG,06/01/2012,Photocopying,Localism,MITIE BUSINESS SERVICES LTD,,Large,,2100212353,Reprographics,SE1 2QG,69.25,
Communities & Local Government,DCLG,06/01/2012,Photocopying,Localism,MITIE BUSINESS SERVICES LTD,,Large,,2100212353,Reprographics,SE1 2QG,0.29,
Communities & Local Government,DCLG,06/01/2012,Photocopying,Localism,MITIE BUSINESS SERVICES LTD,,Large,,2100212353,Reprographics,SE1 2QG,99.77,
Communities & Local Government,DCLG,06/01/2012,Photocopying,Localism,MITIE BUSINESS SERVICES LTD,,Large,,2100212353,Reprographics,SE1 2QG,0.72,
Communities & Local Government,DCLG,06/01/2012,Photocopying,Localism,MITIE BUSINESS SERVICES LTD,,Large,,2100212353,Reprographics,SE1 2QG,98.78,
Communities & Local Government,DCLG,06/01/2012,Photocopying,Localism,MITIE BUSINESS SERVICES LTD,,Large,,2100212353,Reprographics,SE1 2QG,10.34,
Communities & Local Government,DCLG,06/01/2012,Photocopying,Localism,MITIE BUSINESS SERVICES LTD,,Large,,2100212353,Reprographics,SE1 2QG,46.36,
Communities & Local Government,DCLG,06/01/2012,Photocopying,Localism,MITIE BUSINESS SERVICES LTD,,Large,,2100212353,Reprographics,SE1 2QG,1.19,
Communities & Local Government,DCLG,06/01/2012,Photocopying,Localism,MITIE BUSINESS SERVICES LTD,,Large,,2100212353,Reprographics,SE1 2QG,18.86,
Communities & Local Government,DCLG,06/01/2012,Photocopying,Neighbourhoods,MITIE BUSINESS SERVICES LTD,,Large,,2100212352,Reprographics,SE1 2QG,1.98,
Communities & Local Government,DCLG,06/01/2012,Photocopying,Neighbourhoods,MITIE BUSINESS SERVICES LTD,,Large,,2100212352,Reprographics,SE1 2QG,0.66,
Communities & Local Government,DCLG,06/01/2012,Photocopying,Neighbourhoods,MITIE BUSINESS SERVICES LTD,,Large,,2100212352,Reprographics,SE1 2QG,84.73,
Communities & Local Government,DCLG,06/01/2012,Photocopying,Neighbourhoods,MITIE BUSINESS SERVICES LTD,,Large,,2100212352,Reprographics,SE1 2QG,0.29,
Communities & Local Government,DCLG,06/01/2012,Photocopying,Neighbourhoods,MITIE BUSINESS SERVICES LTD,,Large,,2100212352,Reprographics,SE1 2QG,17.57,
Communities & Local Government,DCLG,06/01/2012,Photocopying,Neighbourhoods,MITIE BUSINESS SERVICES LTD,,Large,,2100212352,Reprographics,SE1 2QG,184.73,
Communities & Local Government,DCLG,06/01/2012,Photocopying,Neighbourhoods,MITIE BUSINESS SERVICES LTD,,Large,,2100212352,Reprographics,SE1 2QG,0.07,
Communities & Local Government,DCLG,06/01/2012,Photocopying,Neighbourhoods,MITIE BUSINESS SERVICES LTD,,Large,,2100212352,Reprographics,SE1 2QG,1.58,
Communities & Local Government,DCLG,06/01/2012,Photocopying,Neighbourhoods,MITIE BUSINESS SERVICES LTD,,Large,,2100212352,Reprographics,SE1 2QG,106.44,
Communities & Local Government,DCLG,06/01/2012,Photocopying,Neighbourhoods,MITIE BUSINESS SERVICES LTD,,Large,,2100212352,Reprographics,SE1 2QG,3.31,
Communities & Local Government,DCLG,06/01/2012,Photocopying,Neighbourhoods,MITIE BUSINESS SERVICES LTD,,Large,,2100212353,Reprographics,SE1 2QG,0.53,
Communities & Local Government,DCLG,06/01/2012,Photocopying,Neighbourhoods,MITIE BUSINESS SERVICES LTD,,Large,,2100212353,Reprographics,SE1 2QG,239.77,
Communities & Local Government,DCLG,06/01/2012,Photocopying,Neighbourhoods,MITIE BUSINESS SERVICES LTD,,Large,,2100212353,Reprographics,SE1 2QG,17.95,
Communities & Local Government,DCLG,06/01/2012,Photocopying,Neighbourhoods,MITIE BUSINESS SERVICES LTD,,Large,,2100212353,Reprographics,SE1 2QG,4.33,
Communities & Local Government,DCLG,06/01/2012,Photocopying,Neighbourhoods,MITIE BUSINESS SERVICES LTD,,Large,,2100212353,Reprographics,SE1 2QG,15.56,
Communities & Local Government,DCLG,06/01/2012,Photocopying,Neighbourhoods,MITIE BUSINESS SERVICES LTD,,Large,,2100212353,Reprographics,SE1 2QG,190.08,
Communities & Local Government,DCLG,06/01/2012,Photocopying,Neighbourhoods,MITIE BUSINESS SERVICES LTD,,Large,,2100212353,Reprographics,SE1 2QG,168.84,
Communities & Local Government,DCLG,06/01/2012,Photocopying,Neighbourhoods,MITIE BUSINESS SERVICES LTD,,Large,,2100212353,Reprographics,SE1 2QG,"1,794.05",
Communities & Local Government,DCLG,06/01/2012,Photocopying,Finance & Corporate Services,MITIE MANAGED SERVICES (SOUTHERN) L,,Large,,5106172809,"Services inc printing,mail,repro 11-12",PR7 6TE,"6,362.00",
Communities & Local Government,DCLG,06/01/2012,Photocopying,Finance & Corporate Services,MITIE BUSINESS SERVICES LTD,,Large,,2100212352,Reprographics,SE1 2QG,8.74,
Communities & Local Government,DCLG,06/01/2012,Photocopying,Finance & Corporate Services,MITIE BUSINESS SERVICES LTD,,Large,,2100212352,Reprographics,SE1 2QG,51.11,
Communities & Local Government,DCLG,06/01/2012,Photocopying,Finance & Corporate Services,MITIE BUSINESS SERVICES LTD,,Large,,2100212352,Reprographics,SE1 2QG,0.72,
Communities & Local Government,DCLG,06/01/2012,Photocopying,Finance & Corporate Services,MITIE BUSINESS SERVICES LTD,,Large,,2100212352,Reprographics,SE1 2QG,72.58,
Communities & Local Government,DCLG,06/01/2012,Photocopying,Finance & Corporate Services,MITIE BUSINESS SERVICES LTD,,Large,,2100212352,Reprographics,SE1 2QG,0.53,
Communities & Local Government,DCLG,06/01/2012,Photocopying,Finance & Corporate Services,MITIE BUSINESS SERVICES LTD,,Large,,2100212352,Reprographics,SE1 2QG,410.03,
Communities & Local Government,DCLG,06/01/2012,Photocopying,Finance & Corporate Services,MITIE BUSINESS SERVICES LTD,,Large,,2100212352,Reprographics,SE1 2QG,523.01,
Communities & Local Government,DCLG,06/01/2012,Photocopying,Finance & Corporate Services,MITIE BUSINESS SERVICES LTD,,Large,,2100212352,Reprographics,SE1 2QG,15.34,
Communities & Local Government,DCLG,06/01/2012,Photocopying,Finance & Corporate Services,MITIE BUSINESS SERVICES LTD,,Large,,2100212352,Reprographics,SE1 2QG,1.12,
Communities & Local Government,DCLG,06/01/2012,Photocopying,Finance & Corporate Services,MITIE BUSINESS SERVICES LTD,,Large,,2100212352,Reprographics,SE1 2QG,7.92,
Communities & Local Government,DCLG,06/01/2012,Photocopying,Finance & Corporate Services,MITIE BUSINESS SERVICES LTD,,Large,,2100212352,Reprographics,SE1 2QG,9.55,
Communities & Local Government,DCLG,06/01/2012,Photocopying,Finance & Corporate Services,MITIE BUSINESS SERVICES LTD,,Large,,2100212353,Reprographics,SE1 2QG,8.28,
Communities & Local Government,DCLG,06/01/2012,Photocopying,Finance & Corporate Services,MITIE BUSINESS SERVICES LTD,,Large,,2100212353,Reprographics,SE1 2QG,28.51,
Communities & Local Government,DCLG,06/01/2012,Photocopying,Finance & Corporate Services,MITIE BUSINESS SERVICES LTD,,Large,,2100212353,Reprographics,SE1 2QG,75.93,
Communities & Local Government,DCLG,06/01/2012,Photocopying,Finance & Corporate Services,MITIE BUSINESS SERVICES LTD,,Large,,2100212353,Reprographics,SE1 2QG,82.37,
Communities & Local Government,DCLG,06/01/2012,Photocopying,Finance & Corporate Services,MITIE BUSINESS SERVICES LTD,,Large,,2100212353,Reprographics,SE1 2QG,273.36,
Communities & Local Government,DCLG,06/01/2012,Photocopying,Finance & Corporate Services,MITIE BUSINESS SERVICES LTD,,Large,,2100212353,Reprographics,SE1 2QG,397.56,
Communities & Local Government,DCLG,06/01/2012,Photocopying,Finance & Corporate Services,MITIE BUSINESS SERVICES LTD,,Large,,2100212353,Reprographics,SE1 2QG,16.15,
Communities & Local Government,DCLG,06/01/2012,Photocopying,Finance & Corporate Services,MITIE BUSINESS SERVICES LTD,,Large,,2100212353,Reprographics,SE1 2QG,0.47,
Communities & Local Government,DCLG,06/01/2012,Photocopying,Finance & Corporate Services,MITIE BUSINESS SERVICES LTD,,Large,,2100212353,Reprographics,SE1 2QG,12.67,
Communities & Local Government,DCLG,06/01/2012,Photocopying,Finance & Corporate Services,MITIE BUSINESS SERVICES LTD,,Large,,2100212353,Reprographics,SE1 2QG,196.08,
Communities & Local Government,DCLG,06/01/2012,Photocopying,Finance & Corporate Services,MITIE BUSINESS SERVICES LTD,,Large,,2100212353,Reprographics,SE1 2QG,6.34,
Communities & Local Government,DCLG,06/01/2012,Photocopying,Finance & Corporate Services,MITIE BUSINESS SERVICES LTD,,Large,,2100212353,Reprographics,SE1 2QG,0.36,
Communities & Local Government,DCLG,06/01/2012,Photocopying,Finance & Corporate Services,MITIE BUSINESS SERVICES LTD,,Large,,2100212353,Reprographics,SE1 2QG,202.34,
Communities & Local Government,DCLG,06/01/2012,Photocopying,Finance & Corporate Services,MITIE BUSINESS SERVICES LTD,,Large,,2100212353,Reprographics,SE1 2QG,101.68,
Communities & Local Government,DCLG,06/01/2012,Photocopying,Strategic Performance Team,MITIE BUSINESS SERVICES LTD,,Large,,2100212353,Reprographics,SE1 2QG,118.79,
Communities & Local Government,DCLG,06/01/2012,Photocopying,Strategic Performance Team,MITIE BUSINESS SERVICES LTD,,Large,,2100212352,Reprographics,SE1 2QG,26.22,
Communities & Local Government,DCLG,06/01/2012,Photocopying,Strategic Performance Team,MITIE BUSINESS SERVICES LTD,,Large,,2100212352,Reprographics,SE1 2QG,50.66,
Communities & Local Government,DCLG,06/01/2012,Photocopying,Strategic Performance Team,MITIE BUSINESS SERVICES LTD,,Large,,2100212353,Reprographics,SE1 2QG,"1,014.95",
Communities & Local Government,DCLG,06/01/2012,Photocopying,Strategic Performance Team,MITIE BUSINESS SERVICES LTD,,Large,,2100212353,Reprographics,SE1 2QG,266.11,
Communities & Local Government,DCLG,06/01/2012,Recruitment,Finance & Corporate Services,ENACTA LIMITED,,Micro,,5106172789,Psychometric testing of candidates for Director General (Neighbourhoods) post,OX2 0BA,"3,275.40",
Communities & Local Government,DCLG,06/01/2012,Removals and Porterage,Finance & Corporate Services,MITIE MANAGED SERVICES (SOUTHERN) L,,Large,,5106172811,Office removal/relocation services 11-12,PR7 6TE,"59,856.69",
Communities & Local Government,DCLG,06/01/2012,Research,Neighbourhoods,E C HARRIS LLP,,Large,,5106172782,Cat 2 and 3 call off work,N1 9AB,"18,259.50",
Communities & Local Government,DCLG,06/01/2012,Research,Finance & Corporate Services,OFFICE FOR NATIONAL STATISTICS,,Large,,5106172596,The English Housing Survey (combined),NP10 8XG,"385,476.00",
Communities & Local Government,DCLG,06/01/2012,Security,Finance & Corporate Services,MITIE MANAGED SERVICES (SOUTHERN) L,,Large,,5106172809,"Guard Services, security,reception 11-12",PR7 6TE,"31,310.67",
Communities & Local Government,DCLG,06/01/2012,Security,Finance & Corporate Services,MITIE FAC SERV LTD (STH WEST & WALE,,Large,,5106172788,Nov11-Mar12 PCQ Guard Services/Security,BS16 7FH,"5,245.04",
Communities & Local Government,DCLG,06/01/2012,Training,Finance & Corporate Services,KAPLAN FINANCIAL LTD,,Large,,5106172832,CIMA Training,SE1 1HR,598.32,
Communities & Local Government,DCLG,06/01/2012,Vehicle Maintenance,Localism,BABCOCK CRITICAL SERVICES LTD,,Large,,5106172779,Unplanned Vehicle Maintenance,NG15 0DR,"238,035.60",
Communities & Local Government,DCLG,06/01/2012,Waste Disposal and pest control,Finance & Corporate Services,MITIE MANAGED SERVICES (SOUTHERN) L,,Large,,5106172809,Refuse collection & disposal 11-12,PR7 6TE,"3,463.89",
Communities & Local Government,DCLG,06/01/2012,Waste Disposal and pest control,Finance & Corporate Services,MITIE MANAGED SERVICES (SOUTHERN) L,,Large,,5106172809,Recycling services 11-12,PR7 6TE,"1,620.86",
Communities & Local Government,DCLG,06/01/2012,Waste Disposal and pest control,Finance & Corporate Services,MITIE FAC SERV LTD (STH WEST & WALE,,Large,,5106172788,Nov11-Mar12 PCQ Recycling Services,BS16 7FH,609.12,
Communities & Local Government,DCLG,06/01/2012,Waste Disposal and pest control,Finance & Corporate Services,MITIE FAC SERV LTD (STH WEST & WALE,,Large,,5106172788,Nov11-Mar12 PCQ Pest Control,BS16 7FH,52.82,
Communities & Local Government,DCLG,06/01/2012,Variable Maintenance < 15k,Finance & Corporate Services,MITIE FAC SERV LTD (STH WEST & WALE,,Large,,5106172792,SPP Variable Maintenance,BS16 7FH,"3,990.04",
Communities & Local Government,DCLG,06/01/2012,Accommodation Service Charges,Finance & Corporate Services,LAND SECURITIES PROPERTIES LTD,,Large,,2100212365,Service Charge Eland House,WC2N 5AF,"-2,695.96",
Communities & Local Government,DCLG,06/01/2012,Accommodation Service Charges,Finance & Corporate Services,LAND SECURITIES PROPERTIES LTD,,Large,,5106172400,Service Charge Eland House,WC2N 5AF,"2,695.96",
Communities & Local Government,DCLG,06/01/2012,Telephone call costs,Finance & Corporate Services,DAMOVO UK LTD,,Large,,5106172784,Telephony Charges,RH12 4QP,"1,860.00",
Communities & Local Government,DCLG,06/01/2012,Electricity,Finance & Corporate Services,EDF ENERGY 1 LIMITED,,Large,,5106172769,Bridge House Electricity 11-12,PL3 5XQ,"7,873.96",
Communities & Local Government,DCLG,06/01/2012,Electricity,Finance & Corporate Services,EDF ENERGY 1 LIMITED,,Large,,5106172791,Electricity charges,PL3 5XQ,"8,420.38",
Communities & Local Government,DCLG,06/01/2012,Electricity,Finance & Corporate Services,EDF ENERGY 1 LIMITED,,Large,,5106172799,Electricity charges,PL3 5XQ,"8,551.44",
Communities & Local Government,DCLG,06/01/2012,Electricity,Finance & Corporate Services,EDF ENERGY 1 LIMITED,,Large,,5106172801,Electricity charges,PL3 5XQ,"8,700.11",
Communities & Local Government,DCLG,06/01/2012,Electricity,Finance & Corporate Services,EDF ENERGY 1 LIMITED,,Large,,5106172803,Electricity charges,PL3 5XQ,"8,700.11",
Communities & Local Government,DCLG,06/01/2012,Electricity,Finance & Corporate Services,EDF ENERGY 1 LIMITED,,Large,,5106172805,Electricity charges,PL3 5XQ,"8,140.64",
Communities & Local Government,DCLG,06/01/2012,Facilities Management (ISD use only),Finance & Corporate Services,MITIE MANAGED SERVICES (SOUTHERN) L,,Large,,5106172809,Facilities Management 11-12,PR7 6TE,"54,117.64",
Communities & Local Government,DCLG,06/01/2012,Facilities Management (ISD use only),Finance & Corporate Services,MITIE MANAGED SERVICES (SOUTHERN) L,,Large,,5106172811,Facilities Management 11-12,PR7 6TE,"7,603.93",
Communities & Local Government,DCLG,06/01/2012,Facilities Management (ISD use only),Finance & Corporate Services,MITIE FAC SERV LTD (STH WEST & WALE,,Large,,5106172788,Nov11-Mar12 77PCQ Facilities Management,BS16 7FH,"2,484.46",
Communities & Local Government,DCLG,06/01/2012,Services provided by other Govt Orgs,Neighbourhoods,VALUATION OFFICE AGENCY,,,,5106172814,RTB VOA Valuation 11/12,W1B 5BU,"45,115.00",Yes
Communities & Local Government,DCLG,06/01/2012,EU Gts (Cap) to Prvt/Sec Persons & NPISH,Finance & Corporate Services,SOUTHEND-ON-SEA BC,,,,7500029539,ER06/OB2/00/024/clw5301,SS2 6ER,"-176,808.84",Yes
Communities & Local Government,DCLG,06/01/2012,Steady State Service Provision,Finance & Corporate Services,LOGICA (CMG UK LTD),,Large,,5106172797,Blanket PRF for Logica Payroll (10-11),TW18 4LG,"13,573.00",
Communities & Local Government,DCLG,06/01/2012,Finance Consultancy,Neighbourhoods,MOORE STEPHENS,,Large,,5106172372,Audit Checks for London,EC1A 4AB,"23,003.57",
Communities & Local Government,DCLG,06/01/2012,Finance Consultancy,Neighbourhoods,MOORE STEPHENS,,Large,,5106172372,Expenses for London,EC1A 4AB,84.74,
Communities & Local Government,DCLG,06/01/2012,Finance Consultancy,Neighbourhoods,MOORE STEPHENS,,Large,,5106172771,Audit Checks for East of England,EC1A 4AB,"11,754.65",
Communities & Local Government,DCLG,06/01/2012,Finance Consultancy,Neighbourhoods,MOORE STEPHENS,,Large,,5106172771,Expenses for East of England,EC1A 4AB,"1,119.80",
Communities & Local Government,DCLG,06/01/2012,Finance Consultancy,Neighbourhoods,MOORE STEPHENS,,Large,,5106172772,Audit Checks for North West,EC1A 4AB,"3,799.28",
Communities & Local Government,DCLG,06/01/2012,Finance Consultancy,Neighbourhoods,MOORE STEPHENS,,Large,,5106172772,Expenses for North West,EC1A 4AB,396.50,
Communities & Local Government,DCLG,06/01/2012,Finance Consultancy,Neighbourhoods,MOORE STEPHENS,,Large,,5106172773,Audit Checks for West Midlands,EC1A 4AB,"18,231.08",
Communities & Local Government,DCLG,06/01/2012,Finance Consultancy,Neighbourhoods,MOORE STEPHENS,,Large,,5106172773,Expenses for West Midlands,EC1A 4AB,"2,157.60",
Communities & Local Government,DCLG,06/01/2012,Finance Consultancy,Neighbourhoods,MOORE STEPHENS,,Large,,5106172774,Audit Checks for South West,EC1A 4AB,"3,799.28",
Communities & Local Government,DCLG,06/01/2012,Finance Consultancy,Neighbourhoods,MOORE STEPHENS,,Large,,5106172774,Expenses for South West,EC1A 4AB,128.00,
Communities & Local Government,DCLG,06/01/2012,Finance Consultancy,Neighbourhoods,MOORE STEPHENS,,Large,,5106172775,Audit Checks for Yorkshire and Humber,EC1A 4AB,"3,336.00",
Communities & Local Government,DCLG,06/01/2012,Finance Consultancy,Neighbourhoods,MOORE STEPHENS,,Large,,5106172775,Expenses for Yorkshire and Humber,EC1A 4AB,318.60,
Communities & Local Government,DCLG,06/01/2012,Finance Consultancy,Neighbourhoods,MOORE STEPHENS,,Large,,5106172776,Audit Checks for South East,EC1A 4AB,"5,031.00",
Communities & Local Government,DCLG,06/01/2012,Finance Consultancy,Neighbourhoods,MOORE STEPHENS,,Large,,5106172776,Expenses for South East,EC1A 4AB,27.30,
Communities & Local Government,DCLG,06/01/2012,Finance Consultancy,Neighbourhoods,TRM FINANCIAL CONTRACTING LTD,,Small,,5106172825,ERDF Financial Appraisal for Art 55,NE25 9HZ,"1,113.00",
Communities & Local Government,DCLG,09/01/2012,Work In Progress Pre-Cert 40373 Spend,Neighbourhoods,CENTRE FOR PROCESS INNOVATION,,,,7600000536,ERDF Claim - 8 - P1,TS10 4RF,"44,879.40",
Communities & Local Government,DCLG,09/01/2012,Work In Progress Pre-Cert 40373 Spend,Neighbourhoods,GENERATOR,,Micro,,7600000537,ERDF Claim - 24 - P2,NE1 2PQ,"15,140.72",
Communities & Local Government,DCLG,09/01/2012,Work In Progress Pre-Cert 40373 Spend,Neighbourhoods,CORNWALL DEVELOPMENT COMPANY LTD,,,,7600000535,ERDF Claim - 5 - P2,TR1 1EA,"244,019.91",
Communities & Local Government,DCLG,09/01/2012,Work In Progress Pre-Cert 40373 Spend,Neighbourhoods,SOUTH WEST REGIONAL DEVELOPMENT AGE,,Medium,,7600000538,ERDF Claim - 14 - P4,EX1 1QA,"189,824.80",
Communities & Local Government,DCLG,09/01/2012,Work In Progress Pre-Cert 40373 Spend,Neighbourhoods,SOUTH WEST REGIONAL DEVELOPMENT AGE,,Medium,,7600000539,ERDF Claim - 7 - P4,EX1 1QA,"5,866.29",
Communities & Local Government,DCLG,09/01/2012,Work In Progress Pre-Cert 40373 Spend,Neighbourhoods,SOUTH WEST REGIONAL DEVELOPMENT AGE,,Medium,,7600000540,ERDF Claim - 14 - P5,EX1 1QA,"242,049.77",
Communities & Local Government,DCLG,09/01/2012,Work In Progress Pre-Cert 40373 Spend,Neighbourhoods,SOUTH WEST REGIONAL DEVELOPMENT AGE,,Medium,,7600000541,ERDF Claim - 7 - P5,EX1 1QA,"29,434.50",
Communities & Local Government,DCLG,09/01/2012,Work In Progress Pre-Cert 40467 Spend,Neighbourhoods,CENTRE FOR PROCESS INNOVATION,,,,7600000536,ERDF Claim - 8 - P1,TS10 4RF,"183,111.41",
Communities & Local Government,DCLG,09/01/2012,Domestic Services,Finance & Corporate Services,TAYLOR WOODROW CONSTRUCTION,,Large,,5106172786,Mast House Cleaning and Sundry Nov11-Jun,WD24 4WW,"2,710.79",
Communities & Local Government,DCLG,09/01/2012,Domestic Services,Finance & Corporate Services,TAYLOR WOODROW CONSTRUCTION,,Large,,5106172786,"Bridge House Grounds, Cleaning and Sundr",WD24 4WW,"7,465.89",
Communities & Local Government,DCLG,09/01/2012,Domestic Services,Finance & Corporate Services,TAYLOR WOODROW CONSTRUCTION,,Large,,5106172786,City Gate Cleaning and Sundry Nov11-Jun1,WD24 4WW,"6,829.04",
Communities & Local Government,DCLG,09/01/2012,Domestic Services,Finance & Corporate Services,TAYLOR WOODROW CONSTRUCTION,,Large,,5106172786,Queen St Cleaning and Sundry Nov11-Jun12,WD24 4WW,"3,861.44",
Communities & Local Government,DCLG,09/01/2012,"IT - PC, Network & Hardware",Finance & Corporate Services,COMPUTACENTER (UK) LTD,,Large,,5106172734,RSA SecurID Authenticator SID 36 Months,AL10 9TW,"17,628.00",
Communities & Local Government,DCLG,09/01/2012,IT Maintenance,Finance & Corporate Services,COMPUTACENTER (UK) LTD,,Large,,5106172007,SFT2000 annual maintenance/support,AL10 9TW,"-8,074.03",
Communities & Local Government,DCLG,09/01/2012,Fixed Maintenance,Finance & Corporate Services,TAYLOR WOODROW CONSTRUCTION,,Large,,5106172786,Mast House M & E and H & S Nov11-Jun12,WD24 4WW,"3,793.45",
Communities & Local Government,DCLG,09/01/2012,Fixed Maintenance,Finance & Corporate Services,TAYLOR WOODROW CONSTRUCTION,,Large,,5106172786,Bridge House M & E and H & S Nov11-Jun12,WD24 4WW,"7,862.33",
Communities & Local Government,DCLG,09/01/2012,Fixed Maintenance,Finance & Corporate Services,TAYLOR WOODROW CONSTRUCTION,,Large,,5106172786,City Gate M & E and H & S Nov11-Jun12,WD24 4WW,"1,333.17",
Communities & Local Government,DCLG,09/01/2012,Fixed Maintenance,Finance & Corporate Services,TAYLOR WOODROW CONSTRUCTION,,Large,,5106172786,Queen St M & E and H & S Nov11-Jun12,WD24 4WW,"4,165.69",
Communities & Local Government,DCLG,09/01/2012,Current Grants to Non Profit Bodies,Localism,GROUNDWORK UK,Yes,,,2100212302,Q4 2011-12 Green Space Activity,B1 2RR,"1,000,000.00",Yes
Communities & Local Government,DCLG,09/01/2012,Current Grants to Non Profit Bodies,Neighbourhoods,CAMPAIGN TO PROTECT RURAL ENGLAND,,Medium,,2100212373,Provi of advice and quidance on Planning stystem,SE1 0SW,"20,441.45",Yes
Communities & Local Government,DCLG,09/01/2012,Courier Services,Finance & Corporate Services,BPP PROFESSIONAL EDUCATION LTD,,Large,,5106172867,CIMA Training (BPP) Postage,W12 8AW,35.00,
Communities & Local Government,DCLG,09/01/2012,Professional services,Finance & Corporate Services,CORPORATE CLOTHING ADVISORY SERVICE,,Micro,,5106172598,Services Integrated clothing Project,HA5 1EZ,"2,400.00",
Communities & Local Government,DCLG,09/01/2012,Publications,Finance & Corporate Services,LEXIS-NEXIS UK,,Large,,5106172853,Publications - Legal,SM2 5AS,"1,881.45",
Communities & Local Government,DCLG,09/01/2012,Research,Finance & Corporate Services,LAND REGISTRY,,,,5106172856,Household Projections data (LR),CR0 2AQ,"5,233.33",
Communities & Local Government,DCLG,09/01/2012,Research,Finance & Corporate Services,C A DESIGN SERVICES LIMITED,,Medium,,5106172670,Management Cost,NR31 0NN,"65,120.20",
Communities & Local Government,DCLG,09/01/2012,Security,Finance & Corporate Services,TAYLOR WOODROW CONSTRUCTION,,Large,,5106172786,Mast House Security Nov11-Jun12,WD24 4WW,"1,386.25",
Communities & Local Government,DCLG,09/01/2012,Security,Finance & Corporate Services,TAYLOR WOODROW CONSTRUCTION,,Large,,5106172786,Bridge House Security Nov11-Jun12,WD24 4WW,"3,898.79",
Communities & Local Government,DCLG,09/01/2012,Security,Finance & Corporate Services,TAYLOR WOODROW CONSTRUCTION,,Large,,5106172786,City Gate Security Nov11-Jun12,WD24 4WW,"3,242.40",
Communities & Local Government,DCLG,09/01/2012,Security,Finance & Corporate Services,TAYLOR WOODROW CONSTRUCTION,,Large,,5106172786,Queen St Security Nov11-Jun12,WD24 4WW,"3,253.12",
Communities & Local Government,DCLG,09/01/2012,Training,Finance & Corporate Services,BPP PROFESSIONAL EDUCATION LTD,,Large,,5106172867,CIMA Training (BPP),W12 8AW,"1,133.33",
Communities & Local Government,DCLG,09/01/2012,Vehicle Maintenance,Localism,BABCOCK CRITICAL SERVICES LTD,,Large,,5106172844,Planned Vehicle Maintenance,NG15 0DR,"103,229.54",
Communities & Local Government,DCLG,09/01/2012,Vehicle Maintenance,Localism,BABCOCK CRITICAL SERVICES LTD,,Large,,5106172845,Unplanned Vehicle Maintenance,NG15 0DR,"1,048.62",
Communities & Local Government,DCLG,09/01/2012,Vehicle Maintenance,Localism,BABCOCK CRITICAL SERVICES LTD,,Large,,5106172846,Unplanned Vehicle Maintenance,NG15 0DR,"8,689.62",
Communities & Local Government,DCLG,09/01/2012,Vehicle Maintenance,Localism,BABCOCK CRITICAL SERVICES LTD,,Large,,5106172847,Consumables,NG15 0DR,"60,738.88",
Communities & Local Government,DCLG,09/01/2012,Vehicle Maintenance,Localism,BABCOCK CRITICAL SERVICES LTD,,Large,,5106172848,Consumables,NG15 0DR,"25,658.88",
Communities & Local Government,DCLG,09/01/2012,Waste Disposal and pest control,Finance & Corporate Services,TAYLOR WOODROW CONSTRUCTION,,Large,,5106172786,Bridge House Waste and security shreddin,WD24 4WW,546.08,
Communities & Local Government,DCLG,09/01/2012,Vehicle hire,Finance & Corporate Services,GOVERNMENT CAR & DESPATCH AGENCY,,,,5106171805,Ministerial Cars,SW8 5AX,"1,026.00",
Communities & Local Government,DCLG,09/01/2012,Vehicle hire,Finance & Corporate Services,GOVERNMENT CAR & DESPATCH AGENCY,,,,5106172880,Ministerial Cars,SW8 5AX,918.00,
Communities & Local Government,DCLG,09/01/2012,Accommodation Service Charges,Finance & Corporate Services,LAND SECURITIES PROPERTIES LTD,,Large,,5106172850,Eland House Insurance Contribution 11-12,WC2N 5AF,"2,695.96",
Communities & Local Government,DCLG,09/01/2012,Telephone call costs,Finance & Corporate Services,INFORMATION SECURITY SYSTEMS LTD,,Micro,,5106172837,Brent Support insurance charges 2011/12,HP12 3RL,420.00,
Communities & Local Government,DCLG,09/01/2012,Telephone call costs,Finance & Corporate Services,INFORMATION SECURITY SYSTEMS LTD,,Micro,,5106172837,Brent Support quarterly site inspections,HP12 3RL,"4,389.00",
Communities & Local Government,DCLG,09/01/2012,Electricity,Localism,EDF ENERGY 1 LIMITED,,Large,,5106172839,Y&H RCC from line 30 new IO 11-12,PL3 5XQ,"5,974.10",
Communities & Local Government,DCLG,09/01/2012,Electricity,Localism,EDF ENERGY 1 LIMITED,,Large,,5106172840,H1044 EoE RCC from 01 Feb 11,PL3 5XQ,"5,335.92",
Communities & Local Government,DCLG,09/01/2012,Electricity,Localism,EDF ENERGY 1 LIMITED,,Large,,5106172841,SW RCC Electricity 11-12 IO 1007972,PL3 5XQ,"6,822.14",
Communities & Local Government,DCLG,09/01/2012,Facilities Management (ISD use only),Finance & Corporate Services,TAYLOR WOODROW CONSTRUCTION,,Large,,5106172786,Mast House All Staff Nov11-Jun12,WD24 4WW,691.18,
Communities & Local Government,DCLG,09/01/2012,Facilities Management (ISD use only),Finance & Corporate Services,TAYLOR WOODROW CONSTRUCTION,,Large,,5106172786,Mast House Central Costs  Nov11-Jun12,WD24 4WW,994.31,
Communities & Local Government,DCLG,09/01/2012,Facilities Management (ISD use only),Finance & Corporate Services,TAYLOR WOODROW CONSTRUCTION,,Large,,5106172786,Mast House Variable Labour Costs Nov11-J,WD24 4WW,578.50,
Communities & Local Government,DCLG,09/01/2012,Facilities Management (ISD use only),Finance & Corporate Services,TAYLOR WOODROW CONSTRUCTION,,Large,,5106172786,Bridge House All Staff Nov11-Jun12,WD24 4WW,"7,611.61",
Communities & Local Government,DCLG,09/01/2012,Facilities Management (ISD use only),Finance & Corporate Services,TAYLOR WOODROW CONSTRUCTION,,Large,,5106172786,Bridge House Central Costs  Nov11-Jun12,WD24 4WW,"3,620.29",
Communities & Local Government,DCLG,09/01/2012,Facilities Management (ISD use only),Finance & Corporate Services,TAYLOR WOODROW CONSTRUCTION,,Large,,5106172786,Bridge House Indirect Labour Costs Nov11,WD24 4WW,126.76,
Communities & Local Government,DCLG,09/01/2012,Facilities Management (ISD use only),Finance & Corporate Services,TAYLOR WOODROW CONSTRUCTION,,Large,,5106172786,City Gate All Staff Nov11-Jun12,WD24 4WW,"9,624.82",
Communities & Local Government,DCLG,09/01/2012,Facilities Management (ISD use only),Finance & Corporate Services,TAYLOR WOODROW CONSTRUCTION,,Large,,5106172786,City Gate Central Costs  Nov11-Jun12,WD24 4WW,"4,059.83",
Communities & Local Government,DCLG,09/01/2012,Facilities Management (ISD use only),Finance & Corporate Services,TAYLOR WOODROW CONSTRUCTION,,Large,,5106172786,City Gate Variable Labour Costs Nov11-Ju,WD24 4WW,"2,507.21",
Communities & Local Government,DCLG,09/01/2012,Facilities Management (ISD use only),Finance & Corporate Services,TAYLOR WOODROW CONSTRUCTION,,Large,,5106172786,Queen St Central Costs  Nov11-Jun12,WD24 4WW,"1,523.58",
Communities & Local Government,DCLG,09/01/2012,Capital Grants to People Non Profit,Localism,GROUNDWORK UK,Yes,,,2100212302,Q4 2011-12 Green Space Activity,B1 2RR,"1,000,000.00",Yes
Communities & Local Government,DCLG,09/01/2012,IT - Software Maintenance,Finance & Corporate Services,SAP (UK) LTD,,Large,,5106172852,SAPSupport Exhibit 2 1/1/12-31/12/12,TW14 8HD,"23,038.93",
Communities & Local Government,DCLG,09/01/2012,IT - Software Maintenance,Finance & Corporate Services,SAP (UK) LTD,,Large,,5106172852,SAPSupport Exhibit 3 1/1/12-31/12/12,TW14 8HD,"2,727.28",
Communities & Local Government,DCLG,09/01/2012,EU Gts (Cap) to Prvt/Sec Persons & NPISH,Finance & Corporate Services,RDA -  YORKSHIRE FORWARD,,,,7500029516,YF/24C/OB2/clw5295,LS11 5AE,"-10,872.36",Yes
Communities & Local Government,DCLG,09/01/2012,Finance Consultancy,Neighbourhoods,MOORE STEPHENS,,Large,,5106172386,Audit Checks for East Midlands,EC1A 4AB,"40,901.35",
Communities & Local Government,DCLG,09/01/2012,Finance Consultancy,Neighbourhoods,MOORE STEPHENS,,Large,,5106172386,Expenses for East Midlands,EC1A 4AB,"4,054.65",
Communities & Local Government,DCLG,09/01/2012,Finance Consultancy,Neighbourhoods,MOORE STEPHENS,,Large,,5106172387,Audit Checks for North East,EC1A 4AB,"23,721.85",
Communities & Local Government,DCLG,09/01/2012,Finance Consultancy,Neighbourhoods,MOORE STEPHENS,,Large,,5106172387,Expenses for North East,EC1A 4AB,"3,489.75",
Communities & Local Government,DCLG,09/01/2012,Management Consultancy,Neighbourhoods,CEL GROUP,,Medium,,5106172843,Payments for 1/10/11 - 30/09/12,SK13 8HT,"85,415.60",
Communities & Local Government,DCLG,10/01/2012,Agency Staff,Finance & Corporate Services,MICHAEL PAGE INTERNATIONAL,,Large,,5106172894,Interim Internal Audit,SL1 3SA,"1,543.58",
Communities & Local Government,DCLG,10/01/2012,Agency Staff,Finance & Corporate Services,SQUARE ONE RESOURCES LTD,,Medium,,5106172925,SAP Dev & Support for BW,EC2A 2AD,"1,143.53",
Communities & Local Government,DCLG,10/01/2012,"IT - PC, Network & Hardware",Finance & Corporate Services,DELL CORPORATION LTD,,Large,,5106172911,Dell Docking Station,RG12 1LF,775.91,
Communities & Local Government,DCLG,10/01/2012,Legal Fees,Localism,DENTON WILDE SAPTE LLP,,Large,,5106172842,RCC Buildings Advice for FireControl,EC4M 7WS,"11,529.76",
Communities & Local Government,DCLG,10/01/2012,Legal Fees,Finance & Corporate Services,TREASURY SOLICITORS DEPT,,,,5106172909,Tsol Payments with 20%VAT,WC2B 4TS,"3,100.50",
Communities & Local Government,DCLG,10/01/2012,Legal Fees,Finance & Corporate Services,TREASURY SOLICITORS DEPT,,,,5106172914,Tsol Payments with 20%VAT,WC2B 4TS,"1,779.00",
Communities & Local Government,DCLG,10/01/2012,Legal Fees,Finance & Corporate Services,TREASURY SOLICITORS DEPT,,,,5106172918,Tsol Payments with 20%VAT,WC2B 4TS,679.20,
Communities & Local Government,DCLG,10/01/2012,Current Grants to Non Profit Bodies,Localism,FEDERATION CITY FARMS & COM GARDENS,Yes,Large,,2100212410,3rd Qtr - Green Space Activity 2011/12,BS3 4NA,"100,000.00",Yes
Communities & Local Government,DCLG,10/01/2012,Current Grants to Non Profit Bodies,Neighbourhoods,VALUATION OFFICE AGENCY,,,,2100212276,DCLG Fair Rent Work: Jan - Mar 2012,W1B 5BU,"610,000.00",Yes
Communities & Local Government,DCLG,10/01/2012,Current Grants to Non Profit Bodies,Neighbourhoods,VALUATION OFFICE AGENCY,,,,2100212424,DCLG Fair Rent Work: Jan - Mar 2012,W1B 5BU,"610,000.00",Yes
Communities & Local Government,DCLG,10/01/2012,Current Grants to Non Profit Bodies,Neighbourhoods,VALUATION OFFICE AGENCY,,,,2100212434,DCLG Fair Rent Work: Jan - Mar 2012,W1B 5BU,"-610,000.00",Yes
Communities & Local Government,DCLG,10/01/2012,Courier Services,Finance & Corporate Services,GOVERNMENT CAR & DESPATCH AGENCY,,,,5106172885,Mail Scanning inc for 11-12,SW8 5AX,"1,723.50",
Communities & Local Government,DCLG,10/01/2012,EC Current Grants to Local Authorities,Finance & Corporate Services,BRISTOL CITY COUNCIL,,,,7500029563,2500/02/clw5326,BS2 8QX,"-33,598.00",Yes
Communities & Local Government,DCLG,10/01/2012,Professional services,Neighbourhoods,BUILDING RESEARCH ESTABLISHMENT,,Large,,5106172889,Summary of findings,WD25 9XX,"17,131.20",
Communities & Local Government,DCLG,10/01/2012,Professional services,Neighbourhoods,BUILDING RESEARCH ESTABLISHMENT,,Large,,5106172890,1/4 Progress Report,WD25 9XX,"4,406.40",
Communities & Local Government,DCLG,10/01/2012,Publicity,Neighbourhoods,BRAY LEINO LTD,,Large,,5106172912,SW ERDF Competitiveness PR Fee Aug 2011,EX32 0RX,"4,200.00",
Communities & Local Government,DCLG,10/01/2012,Publicity,Neighbourhoods,BRAY LEINO LTD,,Large,,5106172915,SW ERDF Competitiveness PR Fee Jul 2011,EX32 0RX,"4,200.00",
Communities & Local Government,DCLG,10/01/2012,Publishing,Finance & Corporate Services,PLAIN ENGLISH CAMPAIGN LTD,,Small,Yes,5106172931,Typesetting for Park Homes,,"3,090.00",
Communities & Local Government,DCLG,10/01/2012,Rent,Finance & Corporate Services,DEPT FOR TRANSPORT,,,,5106172815,AHH Accommodation Charge 11-12,SA7 0EA,"49,806.62",
Communities & Local Government,DCLG,10/01/2012,Telephone call costs,Finance & Corporate Services,DAMOVO UK LTD,,Large,,5106172930,Telephony Charges,RH12 4QP,"1,209.07",
Communities & Local Government,DCLG,10/01/2012,EU Cur Grnt to Priv Sect-Persons & NPISH,Neighbourhoods,FOCUS TO WORK TRUST LTD,,,,7500029553,171/clw5318,CT9 2SQ,"-6,862.00",Yes
Communities & Local Government,DCLG,10/01/2012,EU Cur Grnt to Priv Sect-Persons & NPISH,Neighbourhoods,FOCUS TO WORK TRUST LTD,,,,7500029554,171/clw5320,CT9 2SQ,"-6,234.00",Yes
Communities & Local Government,DCLG,10/01/2012,EU Cur Grnt to Priv Sect-Persons & NPISH,Neighbourhoods,FOCUS TO WORK TRUST LTD,,,,7500029555,171/clw5321,CT9 2SQ,"-2,821.00",Yes
Communities & Local Government,DCLG,10/01/2012,EU Cur Grnt to Priv Sect-Persons & NPISH,Neighbourhoods,FOCUS TO WORK TRUST LTD,,,,7500029556,171/clw5322,CT9 2SQ,"-9,182.00",Yes
Communities & Local Government,DCLG,10/01/2012,EU Cur Grnt to Priv Sect-Persons & NPISH,Neighbourhoods,FOCUS TO WORK TRUST LTD,,,,7500029557,171/clw5323,CT9 2SQ,"-10,637.00",Yes
Communities & Local Government,DCLG,10/01/2012,IT - Service Contracts,Localism,INNOGISTIC LTD,,Medium,,5106172737,FSEC Dev 2011 (See H1177),BS1 4EX,"17,422.50",
Communities & Local Government,DCLG,10/01/2012,EU Gts (Cap) to Prvt/Sec Persons & NPISH,Neighbourhoods,SCREEN EAST (CORE BPA),,,,7500029541,ER06/OB2/04/128C/clw5325,NR2 1TF,"-367,882.02",Yes
Communities & Local Government,DCLG,10/01/2012,EU Gts (Cap) to Prvt/Sec Persons & NPISH,Finance & Corporate Services,GROUNDWORK BIRMINGHAM,,,,7500029494,20478/clw5148,B19 1BH,"-430,360.75",Yes
Communities & Local Government,DCLG,10/01/2012,EU Gts (Cap) to Prvt/Sec Persons & NPISH,Finance & Corporate Services,GROUNDWORK BIRMINGHAM,,,,7500029531,20478/clw5308,B19 1BH,"-1,140,600.00",Yes
Communities & Local Government,DCLG,10/01/2012,EU Gts (Cap) to Prvt/Sec Persons & NPISH,Finance & Corporate Services,GROUNDWORK BIRMINGHAM,,,,7500029533,20478/clw5311,B19 1BH,"-75,399.66",Yes
Communities & Local Government,DCLG,10/01/2012,EU Gts (Cap) to Prvt/Sec Persons & NPISH,Finance & Corporate Services,GROUNDWORK BIRMINGHAM,,,,7500029535,20478/clw5310,B19 1BH,"-212,627.25",Yes
Communities & Local Government,DCLG,10/01/2012,EU Gts (Cap) to Prvt/Sec Persons & NPISH,Finance & Corporate Services,GROUNDWORK BIRMINGHAM,,,,7500029537,20478/clw5309,B19 1BH,"-125,653.46",Yes
Communities & Local Government,DCLG,10/01/2012,EU Gts (Cap) to Prvt/Sec Persons & NPISH,Finance & Corporate Services,STOKE ON TRENT CITY COUNCIL,,,,2300001831,ERDF Irregularity identified by EC,ST4 4UJ,"-5,415.62",Yes
Communities & Local Government,DCLG,10/01/2012,EU Gts (Cap) to Prvt/Sec Persons & NPISH,Finance & Corporate Services,FOCUS TO WORK TRUST LTD,,,,7500029558,172/clw5327,CT9 2SQ,"-5,577.00",Yes
Communities & Local Government,DCLG,10/01/2012,EU Gts (Cap) to Prvt/Sec Persons & NPISH,Finance & Corporate Services,FOCUS TO WORK TRUST LTD,,,,7500029559,172/clw5328,CT9 2SQ,"-18,259.00",Yes
Communities & Local Government,DCLG,10/01/2012,EU Gts (Cap) to Prvt/Sec Persons & NPISH,Finance & Corporate Services,FOCUS TO WORK TRUST LTD,,,,7500029560,172/clw5329,CT9 2SQ,"-28,630.00",Yes
Communities & Local Government,DCLG,10/01/2012,EU Gts (Cap) to Prvt/Sec Persons & NPISH,Finance & Corporate Services,FOCUS TO WORK TRUST LTD,,,,7500029561,172/clw5330,CT9 2SQ,"-26,342.00",Yes
Communities & Local Government,DCLG,10/01/2012,EU Gts (Cap) to Prvt/Sec Persons & NPISH,Finance & Corporate Services,FOCUS TO WORK TRUST LTD,,,,7500029562,172/clw5331,CT9 2SQ,"-11,057.00",Yes
Communities & Local Government,DCLG,10/01/2012,Finance Consultancy,Neighbourhoods,MAZARS LLP,,Large,,5106172502,Project Verification Audits,LS27 7JN,"22,479.62",
Communities & Local Government,DCLG,11/01/2012,Work In Progress Pre-Cert 40373 Spend,Neighbourhoods,REDCAR & CLEVELAND BC,,,,7600000545,ERDF Claim - 6 - P2,TS10 1YA,"80,431.69",
Communities & Local Government,DCLG,11/01/2012,Work In Progress Pre-Cert 40373 Spend,Neighbourhoods,UNIVERSITY OF WARWICK,,Large,,7600000557,ERDF Claim - 20 - P1,CV4 8UW,"23,991.54",
Communities & Local Government,DCLG,11/01/2012,Work In Progress Pre-Cert 40373 Spend,Neighbourhoods,UNIVERSITY OF WARWICK,,Large,,7600000569,ERDF Claim - 28 - P1,CV4 8UW,"18,809.63",
Communities & Local Government,DCLG,11/01/2012,Work In Progress Pre-Cert 40373 Spend,Neighbourhoods,UNIVERSITY OF WARWICK,,Large,,7600000572,ERDF Claim - 29 - P1,CV4 8UW,"18,027.94",
Communities & Local Government,DCLG,11/01/2012,Work In Progress Pre-Cert 40373 Spend,Neighbourhoods,UNIVERSITY OF WOLVERHAMPTON,,Large,,7600000542,ERDF Claim - 20 - P1,WV1 1SB,"62,120.01",
Communities & Local Government,DCLG,11/01/2012,Work In Progress Pre-Cert 40373 Spend,Neighbourhoods,UNIVERSITY OF WOLVERHAMPTON,,Large,,7600000552,ERDF Claim - 33 - P2,WV1 1SB,"138,602.83",
Communities & Local Government,DCLG,11/01/2012,Work In Progress Pre-Cert 40373 Spend,Neighbourhoods,UNIVERSITY OF WOLVERHAMPTON,,Large,,7600000553,ERDF Claim - 18 - P1,WV1 1SB,"139,228.72",
Communities & Local Government,DCLG,11/01/2012,Work In Progress Pre-Cert 40373 Spend,Neighbourhoods,UNIVERSITY OF WOLVERHAMPTON,,Large,,7600000554,ERDF Claim - 19 - P1,WV1 1SB,"129,882.45",
Communities & Local Government,DCLG,11/01/2012,Work In Progress Pre-Cert 40373 Spend,Neighbourhoods,HEART OF ENGLAND FINE FOODS,,Small,,7600000574,ERDF Claim - 32 - P2,SY1 3TG,"18,409.15",
Communities & Local Government,DCLG,11/01/2012,Work In Progress Pre-Cert 40373 Spend,Neighbourhoods,CERAMIC INDUSTRY FORUM,,Small,,7600000551,ERDF Claim - 25 - P2,ST4 2SA,"31,580.22",
Communities & Local Government,DCLG,11/01/2012,Work In Progress Pre-Cert 40373 Spend,Neighbourhoods,BIRMINGHAM CITY UNIVERSITY,,Medium,,7600000559,ERDF Claim - 18 - P2,B42 2SU,"6,687.60",
Communities & Local Government,DCLG,11/01/2012,Work In Progress Pre-Cert 40373 Spend,Neighbourhoods,BIRMINGHAM CITY UNIVERSITY,,Medium,,7600000560,ERDF Claim - 19 - P2,B42 2SU,"11,362.39",
Communities & Local Government,DCLG,11/01/2012,Work In Progress Pre-Cert 40373 Spend,Neighbourhoods,BIRMINGHAM CITY UNIVERSITY,,Medium,,7600000561,ERDF Claim - 20 - P2,B42 2SU,"8,123.81",
Communities & Local Government,DCLG,11/01/2012,Work In Progress Pre-Cert 40373 Spend,Neighbourhoods,BIRMINGHAM CITY UNIVERSITY,,Medium,,7600000563,ERDF Claim - 21 - P2,B42 2SU,"4,864.80",
Communities & Local Government,DCLG,11/01/2012,Work In Progress Pre-Cert 40373 Spend,Neighbourhoods,BIRMINGHAM CITY UNIVERSITY,,Medium,,7600000564,ERDF Claim - 22 - P2,B42 2SU,"6,918.89",
Communities & Local Government,DCLG,11/01/2012,Work In Progress Pre-Cert 40373 Spend,Neighbourhoods,BIRMINGHAM CITY UNIVERSITY,,Medium,,7600000577,ERDF Claim - 23 - P2,B42 2SU,"4,684.86",
Communities & Local Government,DCLG,11/01/2012,Work In Progress Pre-Cert 40373 Spend,Neighbourhoods,COVENTRY UNIVERSITY ENTERPRISES LTD,,Medium,,7600000550,ERDF Claim - 9 - P1,CV1 2TT,"15,052.30",
Communities & Local Government,DCLG,11/01/2012,Work In Progress Pre-Cert 40373 Spend,Neighbourhoods,COVENTRY UNIVERSITY ENTERPRISES LTD,,Medium,,7600000576,ERDF Claim - 23 - P4,CV1 2TT,"16,950.10",
Communities & Local Government,DCLG,11/01/2012,Work In Progress Pre-Cert 40373 Spend,Neighbourhoods,COVENTRY UNIVERSITY ENTERPRISES LTD,,Medium,,7600000579,ERDF Claim - 9 - P1,CV1 2TT,"14,485.35",
Communities & Local Government,DCLG,11/01/2012,Work In Progress Pre-Cert 40373 Spend,Neighbourhoods,ASTON UNIVERSITY,,Large,,7600000565,ERDF Claim - 20 - P1,B4 7ET,"21,802.06",
Communities & Local Government,DCLG,11/01/2012,Work In Progress Pre-Cert 40373 Spend,Neighbourhoods,ASTON UNIVERSITY,,Large,,7600000566,ERDF Claim - 21 - P1,B4 7ET,"7,566.88",
Communities & Local Government,DCLG,11/01/2012,Work In Progress Pre-Cert 40373 Spend,Neighbourhoods,ASTON UNIVERSITY,,Large,,7600000567,ERDF Claim - 22 - P1,B4 7ET,"8,788.64",
Communities & Local Government,DCLG,11/01/2012,Work In Progress Pre-Cert 40373 Spend,Neighbourhoods,ASTON UNIVERSITY,,Large,,7600000568,ERDF Claim - 23 - P1,B4 7ET,"6,339.28",
Communities & Local Government,DCLG,11/01/2012,Work In Progress Pre-Cert 40373 Spend,Neighbourhoods,WEST MIDLANDS EUROPEAN NETWORK,,Small,,7600000544,ERDF Claim - 22 - P5,B5 5SL,"5,490.23",
Communities & Local Government,DCLG,11/01/2012,Work In Progress Pre-Cert 40373 Spend,Neighbourhoods,SOLIHULL METROPOLITAN BC,,Large,,7600000543,ERDF Claim - 7 - P2,B91 3QS,"4,897.50",
Communities & Local Government,DCLG,11/01/2012,Work In Progress Pre-Cert 40373 Spend,Neighbourhoods,SOLIHULL METROPOLITAN BC,,Large,,7600000546,ERDF Claim - 5 - P3,B91 3QS,"14,904.30",
Communities & Local Government,DCLG,11/01/2012,Work In Progress Pre-Cert 40373 Spend,Neighbourhoods,SOLIHULL METROPOLITAN BC,,Large,,7600000556,ERDF Claim - 8 - P2,B91 3QS,"4,968.56",
Communities & Local Government,DCLG,11/01/2012,Work In Progress Pre-Cert 40373 Spend,Neighbourhoods,SOLIHULL METROPOLITAN BC,,Large,,7600000578,ERDF Claim - 5 - P3,B91 3QS,"5,335.42",
Communities & Local Government,DCLG,11/01/2012,Work In Progress Pre-Cert 40373 Spend,Neighbourhoods,PRINCES TRUST,,Medium,,7600000548,ERDF Claim - 7 - P2,B9 4AA,"6,399.56",
Communities & Local Government,DCLG,11/01/2012,Work In Progress Pre-Cert 40373 Spend,Neighbourhoods,BIRMINGHAM CITY COUNCIL (NOT RATES),,Large,,7600000558,ERDF Claim - 10 - P2,B1 1BB,"2,506.50",
Communities & Local Government,DCLG,11/01/2012,Work In Progress Pre-Cert 40373 Spend,Neighbourhoods,BIRMINGHAM CITY COUNCIL (NOT RATES),,Large,,7600000570,ERDF Claim - 11 - P2,B1 1BB,"1,252.51",
Communities & Local Government,DCLG,11/01/2012,Work In Progress Pre-Cert 40373 Spend,Neighbourhoods,BIRMINGHAM CITY COUNCIL (NOT RATES),,Large,,7600000571,ERDF Claim - 12 - P2,B1 1BB,"20,602.63",
Communities & Local Government,DCLG,11/01/2012,Work In Progress Pre-Cert 40373 Spend,Neighbourhoods,BIRMINGHAM CITY COUNCIL (NOT RATES),,Large,,7600000573,ERDF Claim - 13 - P2,B1 1BB,"1,980.95",
Communities & Local Government,DCLG,11/01/2012,Work In Progress Pre-Cert 40373 Spend,Neighbourhoods,NTH STAFFS CHAMBER OF COMM & IND,,Small,,7600000562,ERDF Claim - 14 - P2,ST1 5BE,"7,464.69",
Communities & Local Government,DCLG,11/01/2012,Work In Progress Pre-Cert 40373 Spend,Neighbourhoods,FOCUS ENTERPRISE LTD,,Micro,,7600000547,ERDF Claim - 10 - P2,B17 9AT,"4,197.17",
Communities & Local Government,DCLG,11/01/2012,Work In Progress Pre-Cert 40373 Spend,Neighbourhoods,STOKE-ON-TRENT CITY COUNCIL,,Large,,7600000555,ERDF Claim - 11 - P3,ST4 1HP,"35,032.79",
Communities & Local Government,DCLG,11/01/2012,Work In Progress Pre-Cert 40373 Spend,Neighbourhoods,STOKE-ON-TRENT CITY COUNCIL,,Large,,7600000575,ERDF Claim - 20 - P3,ST4 1HP,"9,150.60",
Communities & Local Government,DCLG,11/01/2012,Work In Progress Pre-Cert 40373 Spend,Neighbourhoods,WASTE & RESOURCES ACTION PROG'M,,Small,,7600000549,ERDF Claim - 11 - P2,OX16 0AH,"3,428.76",
Communities & Local Government,DCLG,11/01/2012,Work In Progress Pre-Cert 40467 Spend,Neighbourhoods,UNIVERSITY OF WARWICK,,Large,,7600000557,ERDF Claim - 20 - P1,CV4 8UW,"1,264.75",
Communities & Local Government,DCLG,11/01/2012,Work In Progress Pre-Cert 40467 Spend,Neighbourhoods,ASTON UNIVERSITY,,Large,,7600000565,ERDF Claim - 20 - P1,B4 7ET,"13,655.09",
Communities & Local Government,DCLG,11/01/2012,Work In Progress Pre-Cert 40467 Spend,Neighbourhoods,ASTON UNIVERSITY,,Large,,7600000566,ERDF Claim - 21 - P1,B4 7ET,"1,330.22",
Communities & Local Government,DCLG,11/01/2012,Work In Progress Pre-Cert 40467 Spend,Neighbourhoods,ASTON UNIVERSITY,,Large,,7600000567,ERDF Claim - 22 - P1,B4 7ET,576.00,
Communities & Local Government,DCLG,11/01/2012,Work In Progress Pre-Cert 40467 Spend,Neighbourhoods,PRINCES TRUST,,Medium,,7600000548,ERDF Claim - 7 - P2,B9 4AA,"46,075.00",
Communities & Local Government,DCLG,11/01/2012,Work In Progress Pre-Cert 40467 Spend,Neighbourhoods,WASTE & RESOURCES ACTION PROG'M,,Small,,7600000549,ERDF Claim - 11 - P2,OX16 0AH,"135,502.91",
Communities & Local Government,DCLG,11/01/2012,Work In Progress Pre-Cert 40467 Spend,Neighbourhoods,ACORN DEVELOPMENTS,,,,7600000580,ERDF Claim - 17 - P4,TR8 5PZ,"154,555.62",
Communities & Local Government,DCLG,11/01/2012,Agency Staff,Neighbourhoods,CAPITA RESOURCING LTD,,Large,,5106172961,DayRate ERREG2 Seas-Territorial,SL6 1DP,522.00,
Communities & Local Government,DCLG,11/01/2012,Agency Staff,Finance & Corporate Services,CAPITA RESOURCING LTD,,Large,,5106172962,CPD 0492030 Capita MSP,SL6 1DP,"1,930.54",
Communities & Local Government,DCLG,11/01/2012,Agency Staff,Finance & Corporate Services,CAPITA RESOURCING LTD,,Large,,5106172963,CPD 0492030 Capita MSP,SL6 1DP,"2,059.20",
Communities & Local Government,DCLG,11/01/2012,Agency Staff,Finance & Corporate Services,CAPITA RESOURCING LTD,,Large,,5106172972,Contractor IAExtension,SL6 1DP,745.20,
Communities & Local Government,DCLG,11/01/2012,Agency Staff,Finance & Corporate Services,ALLEN LANE FINANCIAL RECRUITMENT,,,Yes,5106172969,Extension until 17 Feb 2012,,"4,860.00",
Communities & Local Government,DCLG,11/01/2012,Legal Fees,Finance & Corporate Services,JAMES MAURICI,,Micro,Yes,5106172981,20% Legal -Counsel Fees,,"1,080.00",
Communities & Local Government,DCLG,11/01/2012,Office Supplies,Finance & Corporate Services,TAURUS PRINT & DESIGN LTD,,Small,,5106172967,Ministerial team - special DL envs Croxl,KT14 7LF,"1,132.80",
Communities & Local Government,DCLG,11/01/2012,Office Machinery (<5000),Finance & Corporate Services,DANWOOD GROUP LTD,,Large,,5106172968,Quarterly rental charge for photocopier,LN6 3DG,700.57,
Communities & Local Government,DCLG,11/01/2012,Water,Finance & Corporate Services,SIEMENS FINANCIAL SERVICES LTD,,Large,,5106172821,rental for water logic machine,SL2 4JS,628.50,
Communities & Local Government,DCLG,11/01/2012,Water,Finance & Corporate Services,THAMES WATER UTILITIES,,Large,,2100212469,Eland House Water 11-12,SN38 8TU,"-1,258.38",
Communities & Local Government,DCLG,11/01/2012,Water,Finance & Corporate Services,THAMES WATER UTILITIES,,Large,,5106173014,Eland House Water 11-12,SN38 8TU,"1,258.38",
Communities & Local Government,DCLG,11/01/2012,Printing,Finance & Corporate Services,TRANSMEDIA LINK LTD,,Small,,5106172977,Alternative Formats contract,TN1 1EN,"1,569.50",
Communities & Local Government,DCLG,11/01/2012,Printing,Strategic Performance Team,CENTRAL OFFICE OF INFORMATION,,,,2100212471,Printing hard copies interim report x100,SE1 7DU,"-1,800.00",
Communities & Local Government,DCLG,11/01/2012,Printing,Strategic Performance Team,CENTRAL OFFICE OF INFORMATION,,,,5106173021,Printing hard copies interim report x100,SE1 7DU,"1,800.00",
Communities & Local Government,DCLG,11/01/2012,Professional services,Neighbourhoods,GOVT ACTUARYS DEPARTMENT,,Medium,,5106172990,Provision of actuarial work,EC4A 1AB,822.00,
Communities & Local Government,DCLG,11/01/2012,Professional services,Neighbourhoods,GOVT ACTUARYS DEPARTMENT,,Medium,,5106172993,Provision of actuarial work,EC4A 1AB,616.20,
Communities & Local Government,DCLG,11/01/2012,Publishing,Strategic Performance Team,CENTRAL OFFICE OF INFORMATION,,,,2100212471,Edit interim report,SE1 7DU,"-3,140.00",
Communities & Local Government,DCLG,11/01/2012,Publishing,Strategic Performance Team,CENTRAL OFFICE OF INFORMATION,,,,5106173021,Edit interim report,SE1 7DU,"3,140.00",
Communities & Local Government,DCLG,11/01/2012,Research,Neighbourhoods,OVE ARUP & PARTNERS,,Large,,5106172970,Innovative construction products BD2865,NE1 3PL,"7,911.60",
Communities & Local Government,DCLG,11/01/2012,Research,Neighbourhoods,IMPERIAL COLLEGE,,Large,,5106172979,DCLG Subs to the Energy Research Council,SW7 2AZ,"5,700.00",
Communities & Local Government,DCLG,11/01/2012,Training,Finance & Corporate Services,PENNA PLC,,Large,,5106172950,Outplacement Services Bristol Staff,EC3R 8EE,"2,730.00",
Communities & Local Government,DCLG,11/01/2012,Telephone call costs,Localism,BABCOCK CRITICAL SERVICES LTD,,Large,,5106172895,Orange Airtime Bill for ND Fleet,NG15 0DR,894.01,
Communities & Local Government,DCLG,11/01/2012,Telephone call costs,Finance & Corporate Services,DAMOVO UK LTD,,Large,,5106172987,Telephony Charges,RH12 4QP,"4,418.20",
Communities & Local Government,DCLG,11/01/2012,Telephone call costs,Finance & Corporate Services,DAMOVO UK LTD,,Large,,5106172988,Telephony Charges,RH12 4QP,"81,396.31",
Communities & Local Government,DCLG,11/01/2012,Telecoms equipment (non-capitalised),Localism,AIRWAVE SOLUTIONS LTD,,Large,,2100212470,20% Phase C Charges - E,SL1 2EJ,"-13,630.71",
Communities & Local Government,DCLG,11/01/2012,Telecoms equipment (non-capitalised),Localism,AIRWAVE SOLUTIONS LTD,,Large,,2100212470,20% Phase C Charges - EM,SL1 2EJ,"-7,969.46",
Communities & Local Government,DCLG,11/01/2012,Telecoms equipment (non-capitalised),Localism,AIRWAVE SOLUTIONS LTD,,Large,,2100212470,20% Phase C Charges - NW,SL1 2EJ,"-19,693.20",
Communities & Local Government,DCLG,11/01/2012,Telecoms equipment (non-capitalised),Localism,AIRWAVE SOLUTIONS LTD,,Large,,2100212470,20% Phase C Charges - SE,SL1 2EJ,"-14,225.31",
Communities & Local Government,DCLG,11/01/2012,Telecoms equipment (non-capitalised),Localism,AIRWAVE SOLUTIONS LTD,,Large,,2100212470,20% Phase C Charges - SW,SL1 2EJ,"-26,888.73",
Communities & Local Government,DCLG,11/01/2012,Telecoms equipment (non-capitalised),Localism,AIRWAVE SOLUTIONS LTD,,Large,,2100212470,20% Phase C Charges - WM,SL1 2EJ,"-5,484.60",
Communities & Local Government,DCLG,11/01/2012,Telecoms equipment (non-capitalised),Localism,AIRWAVE SOLUTIONS LTD,,Large,,2100212470,20% Phase C Charges - Y&H,SL1 2EJ,"-11,563.49",
Communities & Local Government,DCLG,11/01/2012,Telecoms equipment (non-capitalised),Localism,AIRWAVE SOLUTIONS LTD,,Large,,5106172780,20% Phase C Charges - E,SL1 2EJ,"13,630.71",
Communities & Local Government,DCLG,11/01/2012,Telecoms equipment (non-capitalised),Localism,AIRWAVE SOLUTIONS LTD,,Large,,5106172780,20% Phase C Charges - EM,SL1 2EJ,"7,969.46",
Communities & Local Government,DCLG,11/01/2012,Telecoms equipment (non-capitalised),Localism,AIRWAVE SOLUTIONS LTD,,Large,,5106172780,20% Phase C Charges - NW,SL1 2EJ,"19,693.20",
Communities & Local Government,DCLG,11/01/2012,Telecoms equipment (non-capitalised),Localism,AIRWAVE SOLUTIONS LTD,,Large,,5106172780,20% Phase C Charges - SE,SL1 2EJ,"14,225.31",
Communities & Local Government,DCLG,11/01/2012,Telecoms equipment (non-capitalised),Localism,AIRWAVE SOLUTIONS LTD,,Large,,5106172780,20% Phase C Charges - SW,SL1 2EJ,"26,888.73",
Communities & Local Government,DCLG,11/01/2012,Telecoms equipment (non-capitalised),Localism,AIRWAVE SOLUTIONS LTD,,Large,,5106172780,20% Phase C Charges - WM,SL1 2EJ,"5,484.60",
Communities & Local Government,DCLG,11/01/2012,Telecoms equipment (non-capitalised),Localism,AIRWAVE SOLUTIONS LTD,,Large,,5106172780,20% Phase C Charges - Y&H,SL1 2EJ,"11,563.49",
Communities & Local Government,DCLG,11/01/2012,Electricity,Localism,SCOTTISH & SOUTHERN ENERGY,,Large,,5106172943,SE RCC Electricity 11-12,PO9 5JB,"10,703.58",
Communities & Local Government,DCLG,11/01/2012,Electricity,Finance & Corporate Services,EDF ENERGY 1 LIMITED,,Large,,5106172958,Rivergate Electricity 11-12,PL3 5XQ,"9,776.12",
Communities & Local Government,DCLG,11/01/2012,Transfer grant to OGD for cofunded NDPB,Neighbourhoods,DESIGN COUNCIL,,Medium,,2100212425,DCLG Grant Payment - Jan 2012,WC2E 7DL,"220,000.00",Yes
Communities & Local Government,DCLG,11/01/2012,Web Services,Finance & Corporate Services,DIGIRATI LTD,,Micro,,5106172956,6 month monthy cost @ 15k per monjth,G1 3DX,"2,290.40",
Communities & Local Government,DCLG,11/01/2012,EU Cur Grnt to Priv Sect-Persons & NPISH,Neighbourhoods,FARNE LTD,,,,7500027430,ERDF/00/0072/clw4141,WA9 3HE,"-1,231.00",Yes
Communities & Local Government,DCLG,11/01/2012,Cap Grants to Private Sector Companies,Neighbourhoods,ANGEL COFUND,,Small,,2100212438,Regulation of the Social Housing Sector,S8 0XN,"10,000,000.00",
Communities & Local Government,DCLG,11/01/2012,Services provided by other Govt Orgs,Localism,VALUATION OFFICE AGENCY,,,,5106172960,WMRCC Valuation Report,W1B 5BU,"3,420.00",Yes
Communities & Local Government,DCLG,11/01/2012,Grant in Aid to NDPBs (non budget),Localism,COMMISSION LOCAL ADMINISTRATION,,,,2100212303,Grant in Aid for January 2012,SW1P 4QP,"1,123,818.00",Yes
Communities & Local Government,DCLG,11/01/2012,Grant in Aid to NDPBs (non budget),Localism,FIREBUY LTD-IN LIQUIDATION,,Small,,2100212439,2011-12 - Grant payment - January 2012,RH2 0EJ,"10,202.48",Yes
Communities & Local Government,DCLG,11/01/2012,Grant in Aid to NDPBs (non budget),Neighbourhoods,THURROCK THAMES GATEWAY DEV CORP,,,,2100212437,Grant in Aid claim for Jan 2012,RM19 1NX,"800,000.00",Yes
Communities & Local Government,DCLG,11/01/2012,Grant in Aid to NDPBs (non budget),Neighbourhoods,TENANT SERVICES AUTHORIT Y,,Medium,,2100212428,Regulation of the Social Housing Sector,W1T 7BN,"850,000.00",Yes
Communities & Local Government,DCLG,11/01/2012,Finance Consultancy,Neighbourhoods,MOORE STEPHENS,,Large,,5106172994,Audit Checks for London,EC1A 4AB,"31,223.57",
Communities & Local Government,DCLG,12/01/2012,Work In Progress Pre-Cert 40373 Spend,Neighbourhoods,ENTERPRISE LOANS EAST MIDLANDS,,Small,,7600000588,ERDF Claim - 9 - P2,NG7 5FU,"17,741.62",
Communities & Local Government,DCLG,12/01/2012,Work In Progress Pre-Cert 40373 Spend,Neighbourhoods,LEICESTER CITY COUNCIL,,Large,,7600000586,ERDF Claim - 7 - P1,LE1 6ZG,"1,822.77",
Communities & Local Government,DCLG,12/01/2012,Work In Progress Pre-Cert 40373 Spend,Neighbourhoods,NOTTINGHAM CITY COUNCIL,,Large,,7600000592,ERDF Claim - 4 - P3,NG2 3NG,"5,154.50",
Communities & Local Government,DCLG,12/01/2012,Work In Progress Pre-Cert 40373 Spend,Neighbourhoods,SKILLS FOR ENTERPRISE LTD,,Small,,7600000587,ERDF Claim - 13 - P2,LE1 1QA,"19,720.04",
Communities & Local Government,DCLG,12/01/2012,Work In Progress Pre-Cert 40373 Spend,Neighbourhoods,LEICESTER UNIVERSITY,,Large,,7600000590,ERDF Claim - 6 - P1,LE1 7RH,"33,757.80",
Communities & Local Government,DCLG,12/01/2012,Work In Progress Pre-Cert 40373 Spend,Neighbourhoods,NOTTINGHAM UNIVERSITY,,Large,,7600000581,ERDF Claim - 14 - P1,NG7 2RD,"65,269.36",
Communities & Local Government,DCLG,12/01/2012,Work In Progress Pre-Cert 40373 Spend,Neighbourhoods,NOTTINGHAM UNIVERSITY,,Large,,7600000585,ERDF Claim - 6 - P1,NG7 2RD,"32,653.19",
Communities & Local Government,DCLG,12/01/2012,Work In Progress Pre-Cert 40373 Spend,Neighbourhoods,NOTTINGHAM UNIVERSITY,,Large,,7600000591,ERDF Claim - 15 - P1,NG7 2RD,"58,798.75",
Communities & Local Government,DCLG,12/01/2012,Work In Progress Pre-Cert 40373 Spend,Neighbourhoods,HERITAGE TRUST OF LINCOLNSHIRE,,Small,,7600000583,ERDF Claim - 3 - P2,NG34 9RW,"1,110.83",
Communities & Local Government,DCLG,12/01/2012,Work In Progress Pre-Cert 40373 Spend,Neighbourhoods,SERCO REGIONAL SERVICES LTD,,,,7600000582,ERDF Claim - 11 - P2,PL6 8BT,"11,946.10",
Communities & Local Government,DCLG,12/01/2012,Work In Progress Pre-Cert 40373 Spend,Neighbourhoods,PENINSULA COLLEGE OF MEDS & DENTIST,,,,7600000584,ERDF Claim - 6 - P1,PL6 8BU,"341,638.05",
Communities & Local Government,DCLG,12/01/2012,Work In Progress Pre-Cert 40467 Spend,Neighbourhoods,ENTERPRISE LOANS EAST MIDLANDS,,Small,,7600000588,ERDF Claim - 9 - P2,NG7 5FU,"74,446.21",
Communities & Local Government,DCLG,12/01/2012,Work In Progress Pre-Cert 40467 Spend,Neighbourhoods,LEICESTER CITY COUNCIL,,Large,,7600000586,ERDF Claim - 7 - P1,LE1 6ZG,"2,118.84",
Communities & Local Government,DCLG,12/01/2012,Work In Progress Pre-Cert 40467 Spend,Neighbourhoods,LEICESTER UNIVERSITY,,Large,,7600000590,ERDF Claim - 6 - P1,LE1 7RH,157.22,
Communities & Local Government,DCLG,12/01/2012,Work In Progress Pre-Cert 40467 Spend,Neighbourhoods,NOTTINGHAM UNIVERSITY,,Large,,7600000585,ERDF Claim - 6 - P1,NG7 2RD,"228,160.06",
Communities & Local Government,DCLG,12/01/2012,Work In Progress Pre-Cert 40467 Spend,Neighbourhoods,HERITAGE TRUST OF LINCOLNSHIRE,,Small,,7600000583,ERDF Claim - 3 - P2,NG34 9RW,"42,709.36",
Communities & Local Government,DCLG,12/01/2012,Work In Progress Pre-Cert 40467 Spend,Neighbourhoods,SERCO REGIONAL SERVICES LTD,,,,7600000582,ERDF Claim - 11 - P2,PL6 8BT,"109,059.52",
Communities & Local Government,DCLG,12/01/2012,Work In Progress Pre-Cert 40467 Spend,Neighbourhoods,PRACTICAL DEVELOPMENTS (SOUTH WEST),,,,7600000589,ERDF Claim - 29 - P4,TR15 1SS,"232,386.08",
Communities & Local Government,DCLG,12/01/2012,NNDR Billing Authorities Receipts,Treasury,OFFICE OF THE PAYMASTER GENERAL (NN,,,,2100212467,NNDR Payover Jan 12 - Billing Authority Receipts,RH10 1UH,"1,916,495,328.00",Yes
Communities & Local Government,DCLG,12/01/2012,NNDR Outturn Receipts,Treasury,OFFICE OF THE PAYMASTER GENERAL (NN,,,,2100212467,NNDR Payover Jan 12 - Outturn Receipts,RH10 1UH,"8,478,526.00",Yes
Communities & Local Government,DCLG,12/01/2012,NNDR Central List Receipts,Treasury,OFFICE OF THE PAYMASTER GENERAL (NN,,,,2100212467,NNDR Payover Jan 12 - Central List Receipts,RH10 1UH,"126,189,984.00",Yes
Communities & Local Government,DCLG,12/01/2012,Domestic Services,Finance & Corporate Services,MITIE FAC SERV LTD (STH WEST & WALE,,Large,,5106173015,Nov11-Mar12 SPP Office Cleaning & Maint,BS16 7FH,"10,177.05",
Communities & Local Government,DCLG,12/01/2012,Legal Fees,Finance & Corporate Services,TREASURY SOLICITORS DEPT,,,,5106173028,Tsol Payments with 0%VAT rate,WC2B 4TS,"1,052.20",
Communities & Local Government,DCLG,12/01/2012,Legal Fees,Finance & Corporate Services,TREASURY SOLICITORS DEPT,,,,5106173028,Tsol Payments with 20%VAT,WC2B 4TS,"76,162.36",
Communities & Local Government,DCLG,12/01/2012,Fixed Maintenance,Localism,VT FLAGSHIP INFRASTRUCTURE,,Large,,5106172996,SW Fixed Maint VO to Oct 11 & to  Mar 12,BS3 2HQ,"34,627.68",
Communities & Local Government,DCLG,12/01/2012,Fixed Maintenance,Localism,VT FLAGSHIP INFRASTRUCTURE,,Large,,5106172997,WM Fixed Maint VO to Oct 11,BS3 2HQ,"35,405.75",
Communities & Local Government,DCLG,12/01/2012,Fixed Maintenance,Localism,VT FLAGSHIP INFRASTRUCTURE,,Large,,5106172998,London Fixed Maint VO to Oct 11 & Mar 12,BS3 2HQ,"36,346.92",
Communities & Local Government,DCLG,12/01/2012,Fixed Maintenance,Localism,VT FLAGSHIP INFRASTRUCTURE,,Large,,5106172999,SE Fixed Maint VO to Oct 11 & to Mar 12,BS3 2HQ,"34,145.78",
Communities & Local Government,DCLG,12/01/2012,Fixed Maintenance,Finance & Corporate Services,MITIE FAC SERV LTD (STH WEST & WALE,,Large,,5106173015,Nov11-Mar12 SPP Handyman&Lift Maint,BS16 7FH,"7,890.56",
Communities & Local Government,DCLG,12/01/2012,Current Grants to Non Profit Bodies,Neighbourhoods,COALFIELDS REGENERATION TRUST,Yes,Small,,2100211699,CRT -First part claim for Q4 2011/12,S63 7WX,"1,826,332.00",Yes
Communities & Local Government,DCLG,12/01/2012,Courier Services,Finance & Corporate Services,MITIE FAC SERV LTD (STH WEST & WALE,,Large,,5106173015,Nov11-Mar12 SPP Postal/Courier Services,BS16 7FH,"2,920.39",
Communities & Local Government,DCLG,12/01/2012,Publications,Finance & Corporate Services,DOW JONES REUTERS BUS INTERACTIVE L,,Large,,5106173032,Factiva sub 2011-2012 new req,E1W 1AZ,"2,700.00",
Communities & Local Government,DCLG,12/01/2012,Publishing,Finance & Corporate Services,DURRANTS LTD,,Large,,5106173024,20% Press Cuttings,EC1Y 8QE,"1,629.48",
Communities & Local Government,DCLG,12/01/2012,Recruitment,Finance & Corporate Services,OCEAN MEDIA GROUP LTD,,Medium,,5106173018,Online advertisement for recruitment of Director General (Neighbourhoods) post,E14 5AA,840.00,
Communities & Local Government,DCLG,12/01/2012,Rent,Finance & Corporate Services,CEDAR HARP LTD,,Micro,,5106172343,Property rent (1966 17.5) 1998-02013,NW9 7BT,"69,000.00",
Communities & Local Government,DCLG,12/01/2012,Rent,Finance & Corporate Services,CELTIC LAND (PLYMOUTH) LTD,,,,5106173002,Mast Hse Plymouth Q3 & Q4 2011/12 Rent,W1G 9SB,"82,500.00",
Communities & Local Government,DCLG,12/01/2012,Rent,Finance & Corporate Services,JONES LANG LASALLE,,Micro,Yes,5106173012,Bridge House Rent 2012/13,,"205,086.00",
Communities & Local Government,DCLG,12/01/2012,Rent,Finance & Corporate Services,TENANT SERVICES AUTHORIT Y,,Medium,,5106173000,Piccadilly One 26/12/11 - 25/03/12,W1T 7BN,"19,500.00",
Communities & Local Government,DCLG,12/01/2012,Security,Finance & Corporate Services,MITIE FAC SERV LTD (STH WEST & WALE,,Large,,5106173015,Nov11-Mar12 SPP Guard Services/Security,BS16 7FH,"12,238.43",
Communities & Local Government,DCLG,12/01/2012,Waste Disposal and pest control,Finance & Corporate Services,MITIE FAC SERV LTD (STH WEST & WALE,,Large,,5106173015,Nov11-Mar12 SPP Recycling Services,BS16 7FH,"1,421.28",
Communities & Local Government,DCLG,12/01/2012,Waste Disposal and pest control,Finance & Corporate Services,MITIE FAC SERV LTD (STH WEST & WALE,,Large,,5106173015,Nov11-Mar12 SPP Pest Control,BS16 7FH,123.24,
Communities & Local Government,DCLG,12/01/2012,Accommodation Service Charges,Finance & Corporate Services,CEDAR HARP LTD,,Micro,,5106173013,Building Service Charge 19998-2013,NW9 7BT,"19,718.10",
Communities & Local Government,DCLG,12/01/2012,Telephone call costs,Finance & Corporate Services,BRITANNIC TECHNOLOGIES LTD,,Medium,,5106173031,Global Crossing Rentals,GU4 7WA,"29,953.61",
Communities & Local Government,DCLG,12/01/2012,Telecoms equipment (non-capitalised),Localism,AIRWAVE SOLUTIONS LTD,,Large,,5106173041,20% Phase C Charges - EM,SL1 2EJ,"7,969.46",
Communities & Local Government,DCLG,12/01/2012,Telecoms equipment (non-capitalised),Localism,AIRWAVE SOLUTIONS LTD,,Large,,5106173041,20% Phase C Charges - NW,SL1 2EJ,"19,693.20",
Communities & Local Government,DCLG,12/01/2012,Telecoms equipment (non-capitalised),Localism,AIRWAVE SOLUTIONS LTD,,Large,,5106173041,20% Phase C Charges - SE,SL1 2EJ,"14,225.31",
Communities & Local Government,DCLG,12/01/2012,Telecoms equipment (non-capitalised),Localism,AIRWAVE SOLUTIONS LTD,,Large,,5106173041,20% Phase C Charges - SW,SL1 2EJ,"26,888.73",
Communities & Local Government,DCLG,12/01/2012,Telecoms equipment (non-capitalised),Localism,AIRWAVE SOLUTIONS LTD,,Large,,5106173041,20% Phase C Charges - WM,SL1 2EJ,"5,484.60",
Communities & Local Government,DCLG,12/01/2012,Telecoms equipment (non-capitalised),Localism,AIRWAVE SOLUTIONS LTD,,Large,,5106173041,20% Phase C Charges - Y&H,SL1 2EJ,"25,194.20",
Communities & Local Government,DCLG,12/01/2012,Telecoms equipment (non-capitalised),Finance & Corporate Services,DAMOVO UK LTD,,Large,,5106172907,Telephony - 8 new sites,RH12 4QP,"9,888.01",
Communities & Local Government,DCLG,12/01/2012,Telecoms equipment (non-capitalised),Finance & Corporate Services,DAMOVO UK LTD,,Large,,5106172917,Telephony - 8 new sites,RH12 4QP,"6,871.61",
Communities & Local Government,DCLG,12/01/2012,Electricity,Finance & Corporate Services,EDF ENERGY 1 LIMITED,,Large,,2100212500,Electricity charges,PL3 5XQ,"-2,693.62",
Communities & Local Government,DCLG,12/01/2012,Electricity,Finance & Corporate Services,EDF ENERGY 1 LIMITED,,Large,,2100212500,Non VAT charges,PL3 5XQ,-341.25,
Communities & Local Government,DCLG,12/01/2012,Electricity,Finance & Corporate Services,EDF ENERGY 1 LIMITED,,Large,,5106172865,Electricity charges,PL3 5XQ,"2,693.62",
Communities & Local Government,DCLG,12/01/2012,Electricity,Finance & Corporate Services,EDF ENERGY 1 LIMITED,,Large,,5106172865,Non VAT charges,PL3 5XQ,341.25,
Communities & Local Government,DCLG,12/01/2012,Electricity,Finance & Corporate Services,EDF ENERGY 1 LIMITED,,Large,,5106172984,Eland House Electricty 11-12,PL3 5XQ,"31,625.28",
Communities & Local Government,DCLG,12/01/2012,Electricity,Finance & Corporate Services,NPOWER YORKSHIRE LTD,,Large,,5106173042,"Queen St, Leeds Meter operations link",LS14 3HS,536.40,
Communities & Local Government,DCLG,12/01/2012,Electricity,Finance & Corporate Services,SOUTHERN ELECTRIC PLC,,,,5106173011,5 St Philips Place Electricity,RG21 8WS,"7,909.52",
Communities & Local Government,DCLG,12/01/2012,Office machinery consumables,Localism,BANNER BUSINESS SUPPLIES LTD,,Large,,2100212508,ENVISAGE LASER TONER HP 4250 HC BK,NR3 1PD,-181.10,
Communities & Local Government,DCLG,12/01/2012,Office machinery consumables,Localism,BANNER BUSINESS SUPPLIES LTD,,Large,,2100212508,ENVISAGE LASER TONER HP 4250 HC BK,NR3 1PD,-181.10,
Communities & Local Government,DCLG,12/01/2012,Office machinery consumables,Localism,BANNER BUSINESS SUPPLIES LTD,,Large,,2100212508,ENVISAGE LASER TONER HP 4250 HC BK,NR3 1PD,-181.12,
Communities & Local Government,DCLG,12/01/2012,Office machinery consumables,Localism,BANNER BUSINESS SUPPLIES LTD,,Large,,2100212508,ENVISAGE LASER TONER HP 4250 HC BK,NR3 1PD,-181.10,
Communities & Local Government,DCLG,12/01/2012,Office machinery consumables,Localism,BANNER BUSINESS SUPPLIES LTD,,Large,,2100212508,ENVISAGE LASER TONER HP 4250 HC BK,NR3 1PD,-181.10,
Communities & Local Government,DCLG,12/01/2012,Office machinery consumables,Localism,BANNER BUSINESS SUPPLIES LTD,,Large,,5106173005,ENVISAGE LASER TONER HP 4250 HC BK,NR3 1PD,181.10,
Communities & Local Government,DCLG,12/01/2012,Office machinery consumables,Localism,BANNER BUSINESS SUPPLIES LTD,,Large,,5106173005,ENVISAGE LASER TONER HP 4250 HC BK,NR3 1PD,181.10,
Communities & Local Government,DCLG,12/01/2012,Office machinery consumables,Localism,BANNER BUSINESS SUPPLIES LTD,,Large,,5106173005,ENVISAGE LASER TONER HP 4250 HC BK,NR3 1PD,181.12,
Communities & Local Government,DCLG,12/01/2012,Office machinery consumables,Localism,BANNER BUSINESS SUPPLIES LTD,,Large,,5106173005,ENVISAGE LASER TONER HP 4250 HC BK,NR3 1PD,181.10,
Communities & Local Government,DCLG,12/01/2012,Office machinery consumables,Localism,BANNER BUSINESS SUPPLIES LTD,,Large,,5106173005,ENVISAGE LASER TONER HP 4250 HC BK,NR3 1PD,181.10,
Communities & Local Government,DCLG,12/01/2012,Facilities Management (ISD use only),Finance & Corporate Services,MITIE FAC SERV LTD (STH WEST & WALE,,Large,,5106173015,Nov11-Mar12 SPP Facilities Management,BS16 7FH,"5,797.06",
Communities & Local Government,DCLG,12/01/2012,Capital Grants to People Non Profit,Neighbourhoods,COALFIELDS REGENERATION TRUST,Yes,Small,,2100211699,CRT -First part claim for Q4 2011/12,S63 7WX,"2,000,000.00",Yes
Communities & Local Government,DCLG,12/01/2012,IT - Service Contracts,Finance & Corporate Services,PROCSERVE SHARED SERVICES LTD,,Medium,,5106173029,32mths subscriptions Jul 2011-Jul 2014,SW1W 9SR,"6,176.64",
Communities & Local Government,DCLG,12/01/2012,Housing Revenue Account Surplus,Neighbourhoods,NORTHUMBERLAND COUNTY COUNCIL,,,,5000177388,Overpayment of Grant recovered by Exchequer,NE61 2EF,"-119,008.00",Yes
Communities & Local Government,DCLG,13/01/2012,Work In Progress Pre-Cert 40373 Spend,Neighbourhoods,TEES VALLEY JOINT STRATEGY UNIT,,,,7600000594,ERDF Claim - 11 - P2,TS1 2XF,"270,287.58",
Communities & Local Government,DCLG,13/01/2012,Work In Progress Pre-Cert 40373 Spend,Neighbourhoods,LEICESTER CITY COUNCIL,,Large,,7600000595,ERDF Claim - 13 - P1,LE1 6ZG,170.59,
Communities & Local Government,DCLG,13/01/2012,Work In Progress Pre-Cert 40373 Spend,Neighbourhoods,YTKO LIMITED,,,,7600000593,ERDF Claim - 5 - P3,CB4 0WS,"34,020.25",
Communities & Local Government,DCLG,13/01/2012,Work In Progress Pre-Cert 40467 Spend,Neighbourhoods,MUSHROOM WORKS CIC,,,,7600000596,ERDF Claim - 7 - P2,NE6 1AR,"8,295.00",
Communities & Local Government,DCLG,13/01/2012,Work In Progress Pre-Cert 40467 Spend,Neighbourhoods,LEICESTER CITY COUNCIL,,Large,,7600000595,ERDF Claim - 13 - P1,LE1 6ZG,"5,664.50",
Communities & Local Government,DCLG,13/01/2012,Agency Staff,Finance & Corporate Services,SBS GROUP (UK) LTD,,Large,,5106173049,Contractor Business Support Team P2P,EC1N 8TS,"2,280.00",
Communities & Local Government,DCLG,13/01/2012,Current Grants to Non Profit Bodies,Localism,CHURCH ACTION ON POVERTY,Yes,Small,,2100212509,Period Qtr4- Grant Payment for 2011/12,M1 2HF,"37,500.00",Yes
Communities & Local Government,DCLG,13/01/2012,Current Grants to Non Profit Bodies,Localism,CENTRE FOR SUSTAINABLE ENERGY,Yes,Small,,2100212510,Empowerment Fund - Oct 2011 to Mar 2012,BS3 4AP,"50,000.00",Yes
Communities & Local Government,DCLG,13/01/2012,Current (non AEF) Grants to Local Authorities,Neighbourhoods,WARWICKSHIRE CC,,Large,,2100212499,Rent Officers Pensions - INV10021453,CV34 4RH,"2,261.67",Yes
Communities & Local Government,DCLG,13/01/2012,Water,Finance & Corporate Services,THAMES WATER UTILITIES,,Large,,5106173075,Eland House Water 11-12,SN38 8TU,"1,258.38",
Communities & Local Government,DCLG,13/01/2012,Printing,Strategic Performance Team,CENTRAL OFFICE OF INFORMATION,,,,5106173090,Printing hard copies interim report x100,SE1 7DU,"1,800.00",
Communities & Local Government,DCLG,13/01/2012,Publishing,Strategic Performance Team,CENTRAL OFFICE OF INFORMATION,,,,5106173090,Edit interim report,SE1 7DU,"3,140.00",
Communities & Local Government,DCLG,13/01/2012,Research,Neighbourhoods,BUILDING RESEARCH ESTABLISHMENT,,Large,,5106173063,Technical Support on the Constructive Pr,WD25 9XX,"26,224.72",
Communities & Local Government,DCLG,13/01/2012,Research,Finance & Corporate Services,C A DESIGN SERVICES LIMITED,,Medium,,5106173004,Management Cost,NR31 0NN,"65,120.20",
Communities & Local Government,DCLG,13/01/2012,Accommodation Service Charges,Finance & Corporate Services,DELOITTE  LLP,,Large,,5106173061,QEII Planning Services UNSPSC Change,MK9 1FD,"1,200.00",
Communities & Local Government,DCLG,13/01/2012,Electricity,Finance & Corporate Services,BRITISH GAS TRADING LIMITED,,Large,,5106173043,Paradise Circus Electricity 11-12,OX4 2JY,"1,621.91",
Communities & Local Government,DCLG,13/01/2012,Electricity,Finance & Corporate Services,BRITISH GAS TRADING LIMITED,,Large,,5106173044,Paradise Circus Electricity 11-12,OX4 2JY,890.98,
Communities & Local Government,DCLG,13/01/2012,Office machinery consumables,Localism,X M A LTD,,Large,,5106173051,Delivery  Data Products Hp 3700 Smart Pr,NG11 7EP,354.91,
Communities & Local Government,DCLG,13/01/2012,Office machinery consumables,Localism,X M A LTD,,Large,,5106173051,Delivery  Hp Laserjet 4250 Maintenance K,NG11 7EP,636.82,
Communities & Local Government,DCLG,13/01/2012,Office machinery consumables,Neighbourhoods,X M A LTD,,Large,,5106173110,RICOH Print Cartridge Black 841504,NG11 7EP,139.30,
Communities & Local Government,DCLG,13/01/2012,Office machinery consumables,Neighbourhoods,X M A LTD,,Large,,5106173110,RICOH Print Cartridge Cyan 841505,NG11 7EP,538.38,
Communities & Local Government,DCLG,13/01/2012,Office machinery consumables,Neighbourhoods,X M A LTD,,Large,,5106173110,RICOH Print Cartridge Magenta 841506,NG11 7EP,538.38,
Communities & Local Government,DCLG,13/01/2012,Office machinery consumables,Neighbourhoods,X M A LTD,,Large,,5106173110,RICOH Print Cartridge Yellow 841507,NG11 7EP,538.38,
Communities & Local Government,DCLG,13/01/2012,IT - Service Contracts,Finance & Corporate Services,COMPUTACENTER (UK) LTD,,Large,,5106173052,Leased line charges 2011/12,AL10 9TW,900.00,
Communities & Local Government,DCLG,13/01/2012,IT - Service Contracts,Finance & Corporate Services,COMPUTACENTER (UK) LTD,,Large,,5106173052,Evault data backup mthly charge 2011/12,AL10 9TW,866.40,
Communities & Local Government,DCLG,13/01/2012,IT - Service Contracts,Finance & Corporate Services,COMPUTACENTER (UK) LTD,,Large,,5106173055,Evault data backup mthly charge 2011/12,AL10 9TW,"1,666.80",
Communities & Local Government,DCLG,13/01/2012,IT - Service Contracts,Finance & Corporate Services,COMPUTACENTER (UK) LTD,,Large,,5106173057,Evault data backup mthly charge 2011/12,AL10 9TW,"1,666.80",
Communities & Local Government,DCLG,13/01/2012,IT - Service Contracts,Finance & Corporate Services,COMPUTACENTER (UK) LTD,,Large,,5106173059,Leased line charges 2011/12,AL10 9TW,900.00,
Communities & Local Government,DCLG,13/01/2012,IT - Service Contracts,Finance & Corporate Services,COMPUTACENTER (UK) LTD,,Large,,5106173059,Evault data backup mthly charge 2011/12,AL10 9TW,866.40,
Communities & Local Government,DCLG,13/01/2012,IT - Service Contracts,Finance & Corporate Services,VERIZON UK LTD,,Large,,5106173082,Internet servs domain reg and rental,RG2 6DA,903.80,
Communities & Local Government,DCLG,13/01/2012,Finance Consultancy,Localism,GOVT ACTUARYS DEPARTMENT,,Medium,,5106173091,Provision of Pension Advice LGP,EC4A 1AB,"22,852.52",
Communities & Local Government,DCLG,13/01/2012,Finance Consultancy,Localism,GOVT ACTUARYS DEPARTMENT,,Medium,,5106173092,Provision of Pension Advice LGP,EC4A 1AB,"32,580.48",
Communities & Local Government,DCLG,13/01/2012,LA General GLA  Grant Payable,Strategic Performance Team,GREATER LONDON AUTHORITY,,Large,,2100212346,2011/12 General GLA Grant - 13 January 2012,SE10 1AP,"2,642,000.00",Yes
Communities & Local Government,DCLG,16/01/2012,Work In Progress Pre-Cert 40373 Spend,Neighbourhoods,NORTHAMPTON UNIVERSITY,,Large,,7600000598,ERDF Claim - 8 - P1,NN2 7AL,"67,854.46",
Communities & Local Government,DCLG,16/01/2012,Work In Progress Pre-Cert 40373 Spend,Neighbourhoods,CORNWALL COUNCIL,,,,7600000597,ERDF Claim - 7 - P3,TR1 3AY,381.14,
Communities & Local Government,DCLG,16/01/2012,Work In Progress Pre-Cert 40467 Spend,Neighbourhoods,CORNWALL COUNCIL,,,,7600000597,ERDF Claim - 7 - P3,TR1 3AY,"102,984.48",
Communities & Local Government,DCLG,16/01/2012,Legal Fees,Finance & Corporate Services,DLA PIPER UK LLP,,Large,,2100212597,Legal Property Services Commission,S1 2JX,"-2,142.00",
Communities & Local Government,DCLG,16/01/2012,Legal Fees,Finance & Corporate Services,DLA PIPER UK LLP,,Large,,5106173169,Legal Property Services Commission,S1 2JX,"2,142.00",
Communities & Local Government,DCLG,16/01/2012,Fixed Maintenance,Localism,VT FLAGSHIP INFRASTRUCTURE,,Large,,5106172608,EM Fixed Maint VO to Oct 11 then Mar 12,BS3 2HQ,"34,305.55",
Communities & Local Government,DCLG,16/01/2012,Fixed Maintenance,Localism,VT FLAGSHIP INFRASTRUCTURE,,Large,,5106172635,Y&H Fixed Maint VO to Oct 11 &to Mar 12,BS3 2HQ,"35,868.86",
Communities & Local Government,DCLG,16/01/2012,Current Grants to Non Profit Bodies,Localism,CHURCH URBAN FUND,,Small,,2100212551,Administering Prog  Activities under Near Neighbou,SW1P 3AZ,"248,394.00",Yes
Communities & Local Government,DCLG,16/01/2012,Subsidies to Public Corporations & Trading Fund,Neighbourhoods,BRAINTREE DC,,,,5000186071,Grant Payable by Exchequer,CM7 6HB,"91,741.00",Yes
Communities & Local Government,DCLG,16/01/2012,Subsidies to Public Corporations & Trading Fund,Neighbourhoods,BRENT LB (HSG),,,,5000186079,Grant Payable by Exchequer,HA9 9HD,"942,562.00",Yes
Communities & Local Government,DCLG,16/01/2012,Subsidies to Public Corporations & Trading Fund,Neighbourhoods,LEWISHAM LB (HSG),,,,5000186223,Grant Payable by Exchequer,SE6 4RU,"1,500,359.00",Yes
Communities & Local Government,DCLG,16/01/2012,Subsidies to Public Corporations & Trading Fund,Neighbourhoods,MANCHESTER CITY CNCL (HSG),,,,5000186232,Grant Payable by Exchequer,M60 2JR,"2,004,961.00",Yes
Communities & Local Government,DCLG,16/01/2012,Subsidies to Public Corporations & Trading Fund,Neighbourhoods,TOWER HAMLETS LB (HSG),,,,5000186326,Grant Payable by Exchequer,E14 2BG,"1,197,063.00",Yes
Communities & Local Government,DCLG,16/01/2012,Subsidies to Public Corporations & Trading Fund,Neighbourhoods,BLACKPOOL BC,,,,5000186369,Grant Payable by Exchequer,FY1 1NA,"155,966.00",Yes
Communities & Local Government,DCLG,16/01/2012,Subsidies to Public Corporations & Trading Fund,Neighbourhoods,BOLTON MBC,,,,5000186375,Grant Payable by Exchequer,BL1 1RU,"811,374.00",Yes
Communities & Local Government,DCLG,16/01/2012,Subsidies to Public Corporations & Trading Fund,Neighbourhoods,BOLTON MBC,,,,5000186376,Grant Payable by Exchequer,BL1 1RU,"17,661.00",Yes
Communities & Local Government,DCLG,16/01/2012,Subsidies to Public Corporations & Trading Fund,Neighbourhoods,CAMDEN LB,,,,5000186397,Grant Payable by Exchequer,WC1H 8NG,"1,287,544.00",Yes
Communities & Local Government,DCLG,16/01/2012,Subsidies to Public Corporations & Trading Fund,Neighbourhoods,EALING LB,,,,5000186431,Grant Payable by Exchequer,W5 2HL,"534,751.00",Yes
Communities & Local Government,DCLG,16/01/2012,Subsidies to Public Corporations & Trading Fund,Neighbourhoods,EASTBOURNE BC,,,,5000186436,Grant Payable by Exchequer,BN21 4TW,"100,211.00",Yes
Communities & Local Government,DCLG,16/01/2012,Subsidies to Public Corporations & Trading Fund,Neighbourhoods,GREENWICH LB,,,,5000186463,Grant Payable by Exchequer,SE18 6BU,"9,076.00",Yes
Communities & Local Government,DCLG,16/01/2012,Subsidies to Public Corporations & Trading Fund,Neighbourhoods,LONDON BOROUGH OF HACKNEY,,,,5000186464,Grant Payable by Exchequer,E8 4RU,"4,074,572.00",Yes
Communities & Local Government,DCLG,16/01/2012,Subsidies to Public Corporations & Trading Fund,Neighbourhoods,HAMMERSMITH & FULHAM LB,,,,5000186467,Grant Payable by Exchequer,W6 9JU,"1,173,047.00",Yes
Communities & Local Government,DCLG,16/01/2012,Subsidies to Public Corporations & Trading Fund,Neighbourhoods,HARINGEY LB,,,,5000186471,Grant Payable by Exchequer,N22 4TR,"1,321,638.00",Yes
Communities & Local Government,DCLG,16/01/2012,Subsidies to Public Corporations & Trading Fund,Neighbourhoods,HOUNSLOW LB,,,,5000186486,Grant Payable by Exchequer,TW3 4DN,"49,346.00",Yes
Communities & Local Government,DCLG,16/01/2012,Subsidies to Public Corporations & Trading Fund,Neighbourhoods,ISLINGTON LB,,,,5000186496,Grant Payable by Exchequer,N1 1XR,"3,819,305.00",Yes
Communities & Local Government,DCLG,16/01/2012,Subsidies to Public Corporations & Trading Fund,Neighbourhoods,ROYAL BOROUGH OF KENSINGTON & CHELS,,,,5000186498,Grant Payable by Exchequer,W8 7NX,"90,610.00",Yes
Communities & Local Government,DCLG,16/01/2012,Subsidies to Public Corporations & Trading Fund,Neighbourhoods,LONDON BOROUGH OF LAMBETH,,,,5000186508,Grant Payable by Exchequer,SW2 1RL,"279,808.00",Yes
Communities & Local Government,DCLG,16/01/2012,Subsidies to Public Corporations & Trading Fund,Neighbourhoods,NEWCASTLE UPON TYNE DC,,,,5000186528,Grant Payable by Exchequer,NE99 1RD,"887,308.00",Yes
Communities & Local Government,DCLG,16/01/2012,Subsidies to Public Corporations & Trading Fund,Neighbourhoods,LONDON BOROUGH OF NEWHAM,,,,5000186529,Grant Payable by Exchequer,E16 2QU,"3,173,225.00",Yes
Communities & Local Government,DCLG,16/01/2012,Subsidies to Public Corporations & Trading Fund,Neighbourhoods,OLDHAM MBC,,,,5000186550,Grant Payable by Exchequer,OL1 1UH,"900,728.00",Yes
Communities & Local Government,DCLG,16/01/2012,Subsidies to Public Corporations & Trading Fund,Neighbourhoods,OLDHAM MBC,,,,5000186552,Grant Payable by Exchequer,OL1 1UH,"191,287.00",Yes
Communities & Local Government,DCLG,16/01/2012,Subsidies to Public Corporations & Trading Fund,Neighbourhoods,ROCHDALE MBC,,,,5000186573,Grant Payable by Exchequer,OL16 1LQ,"354,267.00",Yes
Communities & Local Government,DCLG,16/01/2012,Subsidies to Public Corporations & Trading Fund,Neighbourhoods,SALFORD CITY CNCL,,,,5000186586,Grant Payable by Exchequer,M27 5AW,"100,581.00",Yes
Communities & Local Government,DCLG,16/01/2012,Subsidies to Public Corporations & Trading Fund,Neighbourhoods,SALFORD CITY CNCL,,,,5000186588,Grant Payable by Exchequer,M27 5AW,"192,411.00",Yes
Communities & Local Government,DCLG,16/01/2012,Subsidies to Public Corporations & Trading Fund,Neighbourhoods,SHEFFIELD CITY CNCL,,,,5000186032,Grant Payable by Exchequer,S1 1UR,"2,836,559.00",Yes
Communities & Local Government,DCLG,16/01/2012,Subsidies to Public Corporations & Trading Fund,Neighbourhoods,SOUTHWARK LB,,,,5000186058,Grant Payable by Exchequer,SE1 2QH,"2,544,743.00",Yes
Communities & Local Government,DCLG,16/01/2012,Subsidies to Public Corporations & Trading Fund,Neighbourhoods,WALTHAM FOREST LB,,,,5000186126,Grant Payable by Exchequer,E17 4JA,"191,896.00",Yes
Communities & Local Government,DCLG,16/01/2012,Current (non AEF) Grants to Local Authorities,Localism,ARUN DC,,,,5000185607,Grant Payable by Exchequer,BN17 5LF,"24,614.00",Yes
Communities & Local Government,DCLG,16/01/2012,Current (non AEF) Grants to Local Authorities,Localism,ASHFORD BC,,,,5000185608,Grant Payable by Exchequer,TN23 1PL,"15,947.00",Yes
Communities & Local Government,DCLG,16/01/2012,Current (non AEF) Grants to Local Authorities,Localism,AYLESBURY VALE DC(HSG),,,,5000185609,Grant Payable by Exchequer,HP20 1SD,"24,420.00",Yes
Communities & Local Government,DCLG,16/01/2012,Current (non AEF) Grants to Local Authorities,Localism,BABERGH DC,,,,5000185610,Grant Payable by Exchequer,IP7 6SJ,"11,598.00",Yes
Communities & Local Government,DCLG,16/01/2012,Current (non AEF) Grants to Local Authorities,Localism,BARKING & DAGENHAM LB (HSG),,,,5000185611,Grant Payable by Exchequer,RM10 7JF,"133,971.00",Yes
Communities & Local Government,DCLG,16/01/2012,Current (non AEF) Grants to Local Authorities,Localism,BASSETLAW DC (HSG),,,,5000185612,Grant Payable by Exchequer,S80 2AH,"13,837.00",Yes
Communities & Local Government,DCLG,16/01/2012,Current (non AEF) Grants to Local Authorities,Localism,BATH & NE SOMERSET DC (HSG),,,,5000185613,Grant Payable by Exchequer,BA1 5AW,"193,567.00",Yes
Communities & Local Government,DCLG,16/01/2012,Current (non AEF) Grants to Local Authorities,Localism,BEXLEY LB (HSG),,,,5000185614,Grant Payable by Exchequer,DA8 1TL,"237,458.00",Yes
Communities & Local Government,DCLG,16/01/2012,Current (non AEF) Grants to Local Authorities,Localism,BLABY DC (HSG),,,,5000185615,Grant Payable by Exchequer,LE9 5EP,"10,844.00",Yes
Communities & Local Government,DCLG,16/01/2012,Current (non AEF) Grants to Local Authorities,Localism,BOSTON BC,,,,5000185616,Grant Payable by Exchequer,PE21 8QR,"8,230.00",Yes
Communities & Local Government,DCLG,16/01/2012,Current (non AEF) Grants to Local Authorities,Localism,BRAINTREE DC,,,,5000185617,Grant Payable by Exchequer,CM7 6HB,"21,812.00",Yes
Communities & Local Government,DCLG,16/01/2012,Current (non AEF) Grants to Local Authorities,Localism,BRECKLAND DC,,,,5000185618,Grant Payable by Exchequer,NR19 1EE,"7,345.00",Yes
Communities & Local Government,DCLG,16/01/2012,Current (non AEF) Grants to Local Authorities,Localism,BRENT LB (HSG),,,,5000185619,Grant Payable by Exchequer,HA9 9HD,"257,460.00",Yes
Communities & Local Government,DCLG,16/01/2012,Current (non AEF) Grants to Local Authorities,Localism,BRISTOL CITY CNCL (HSG),,,,5000185620,Grant Payable by Exchequer,BS99 7BL,"449,840.00",Yes
Communities & Local Government,DCLG,16/01/2012,Current (non AEF) Grants to Local Authorities,Localism,BROADLAND DC,,Large,,5000185621,Grant Payable by Exchequer,NR7 0DU,"12,895.00",Yes
Communities & Local Government,DCLG,16/01/2012,Current (non AEF) Grants to Local Authorities,Localism,BROMSGROVE DC,,,,5000185622,Grant Payable by Exchequer,B60 1AA,"17,621.00",Yes
Communities & Local Government,DCLG,16/01/2012,Current (non AEF) Grants to Local Authorities,Localism,CANTERBURY CITY CNCL,,,,5000185623,Grant Payable by Exchequer,CT1 1YW,"23,303.00",Yes
Communities & Local Government,DCLG,16/01/2012,Current (non AEF) Grants to Local Authorities,Localism,CARLISLE CITY CNCL,,,,5000185624,Grant Payable by Exchequer,CA3 8QG,"16,773.00",Yes
Communities & Local Government,DCLG,16/01/2012,Current (non AEF) Grants to Local Authorities,Localism,CHERWELL DC,,,,5000185625,Grant Payable by Exchequer,OX15 4AA,"15,541.00",Yes
Communities & Local Government,DCLG,16/01/2012,Current (non AEF) Grants to Local Authorities,Localism,CHICHESTER DC,,,,5000185626,Grant Payable by Exchequer,PO19 1TY,"17,653.00",Yes
Communities & Local Government,DCLG,16/01/2012,Current (non AEF) Grants to Local Authorities,Localism,CHILTERN DC (HSG),,,,5000185627,Grant Payable by Exchequer,HP6 5AW,"17,688.00",Yes
Communities & Local Government,DCLG,16/01/2012,Current (non AEF) Grants to Local Authorities,Localism,CHRISTCHURCH BC (HSG),,,,5000185628,Grant Payable by Exchequer,BH23 1AZ,"9,124.00",Yes
Communities & Local Government,DCLG,16/01/2012,Current (non AEF) Grants to Local Authorities,Localism,CITY OF LONDON (HSG),,,,5000185629,Grant Payable by Exchequer,EC2P 2EJ,"12,191.00",Yes
Communities & Local Government,DCLG,16/01/2012,Current (non AEF) Grants to Local Authorities,Localism,CITY OF SUNDERLAND (HSG),,,,5000185630,Grant Payable by Exchequer,SR2 7DN,"237,687.00",Yes
Communities & Local Government,DCLG,16/01/2012,Current (non AEF) Grants to Local Authorities,Localism,COPELAND BC,,,,5000185631,Grant Payable by Exchequer,CA28 7NY,"10,030.00",Yes
Communities & Local Government,DCLG,16/01/2012,Current (non AEF) Grants to Local Authorities,Localism,CORBY BC,,,,5000185632,Grant Payable by Exchequer,NN17 1GD,"8,190.00",Yes
Communities & Local Government,DCLG,16/01/2012,Current (non AEF) Grants to Local Authorities,Localism,COTSWOLD DC,,,,5000185633,Grant Payable by Exchequer,GL7 1PX,"13,668.00",Yes
Communities & Local Government,DCLG,16/01/2012,Current (non AEF) Grants to Local Authorities,Localism,CRAVEN DC (HSG),,,,5000185634,Grant Payable by Exchequer,BD23 1PS,"8,502.00",Yes
Communities & Local Government,DCLG,16/01/2012,Current (non AEF) Grants to Local Authorities,Localism,CRAWLEY BC,,,,5000185635,Grant Payable by Exchequer,RH10 1UZ,"17,140.00",Yes
Communities & Local Government,DCLG,16/01/2012,Current (non AEF) Grants to Local Authorities,Localism,DARTFORD BC,,,,5000185636,Grant Payable by Exchequer,DA1 1DR,"14,097.00",Yes
Communities & Local Government,DCLG,16/01/2012,Current (non AEF) Grants to Local Authorities,Localism,DAVENTRY DC,,,,5000185637,Grant Payable by Exchequer,NN11 5AF,"9,954.00",Yes
Communities & Local Government,DCLG,16/01/2012,Current (non AEF) Grants to Local Authorities,Localism,DERBYSHIRE DALES DC,,,,5000185638,Grant Payable by Exchequer,DE4 3NN,"14,167.00",Yes
Communities & Local Government,DCLG,16/01/2012,Current (non AEF) Grants to Local Authorities,Localism,DOVER DC,,,,5000185639,Grant Payable by Exchequer,CT16 3PD,"15,989.00",Yes
Communities & Local Government,DCLG,16/01/2012,Current (non AEF) Grants to Local Authorities,Localism,EAST CAMBRIDGESHIRE DC,,,,5000185640,Grant Payable by Exchequer,CB7 4PL,"10,017.00",Yes
Communities & Local Government,DCLG,16/01/2012,Current (non AEF) Grants to Local Authorities,Localism,EAST DEVON DC,,,,5000185641,Grant Payable by Exchequer,EX10 8HL,"17,377.00",Yes
Communities & Local Government,DCLG,16/01/2012,Current (non AEF) Grants to Local Authorities,Localism,EAST HAMPSHIRE DC,,,,5000185642,Grant Payable by Exchequer,GU31 4EX,"15,869.00",Yes
Communities & Local Government,DCLG,16/01/2012,Current (non AEF) Grants to Local Authorities,Localism,EAST HERTFORDSHIRE DC,,,,5000185643,Grant Payable by Exchequer,CM23 2EN,"23,123.00",Yes
Communities & Local Government,DCLG,16/01/2012,Current (non AEF) Grants to Local Authorities,Localism,EAST LINDSEY DC,,,,5000185644,Grant Payable by Exchequer,LN11 8UP,"13,450.00",Yes
Communities & Local Government,DCLG,16/01/2012,Current (non AEF) Grants to Local Authorities,Localism,EAST NORTHAMPTONSHIRE COUNCIL,,,,5000185645,Grant Payable by Exchequer,NN14 4LZ,"9,110.00",Yes
Communities & Local Government,DCLG,16/01/2012,Current (non AEF) Grants to Local Authorities,Localism,EAST RIDING OF YORKS (HSG),,,,5000185646,Grant Payable by Exchequer,HU17 9BA,"360,650.00",Yes
Communities & Local Government,DCLG,16/01/2012,Current (non AEF) Grants to Local Authorities,Localism,EAST STAFFORDSHIRE BC,,,,5000185647,Grant Payable by Exchequer,DE14 2EB,"17,445.00",Yes
Communities & Local Government,DCLG,16/01/2012,Current (non AEF) Grants to Local Authorities,Localism,EDEN DC (HSG),,,,5000185648,Grant Payable by Exchequer,CA11 7QF,"8,984.00",Yes
Communities & Local Government,DCLG,16/01/2012,Current (non AEF) Grants to Local Authorities,Localism,ELMBRIDGE BC (HSG),,,,5000185649,Grant Payable by Exchequer,KT10 9SD,"31,281.00",Yes
Communities & Local Government,DCLG,16/01/2012,Current (non AEF) Grants to Local Authorities,Localism,FAREHAM BC,,,,5000185650,Grant Payable by Exchequer,PO16 7PU,"15,002.00",Yes
Communities & Local Government,DCLG,16/01/2012,Current (non AEF) Grants to Local Authorities,Localism,FENLAND DC,,,,5000185651,Grant Payable by Exchequer,PE15 8NQ,"18,583.00",Yes
Communities & Local Government,DCLG,16/01/2012,Current (non AEF) Grants to Local Authorities,Localism,FOREST HEATH DISTRICT COUNCIL,,,,5000185652,Grant Payable by Exchequer,IP28 7EY,"6,122.00",Yes
Communities & Local Government,DCLG,16/01/2012,Current (non AEF) Grants to Local Authorities,Localism,FOREST OF DEAN DC,,,,5000185653,Grant Payable by Exchequer,GL16 8HG,"11,882.00",Yes
Communities & Local Government,DCLG,16/01/2012,Current (non AEF) Grants to Local Authorities,Localism,GUILDFORD BC,,,,5000185654,Grant Payable by Exchequer,GU2 5BB,"20,588.00",Yes
Communities & Local Government,DCLG,16/01/2012,Current (non AEF) Grants to Local Authorities,Localism,HALTON BC (HSG),,,,5000185655,Grant Payable by Exchequer,WA8 7QF,"108,670.00",Yes
Communities & Local Government,DCLG,16/01/2012,Current (non AEF) Grants to Local Authorities,Localism,HAMBLETON DC (HSG),,,,5000185656,Grant Payable by Exchequer,DL6 2UU,"8,080.00",Yes
Communities & Local Government,DCLG,16/01/2012,Current (non AEF) Grants to Local Authorities,Localism,HARBOROUGH DC (HSG),,,,5000185657,Grant Payable by Exchequer,LE16 7AG,"13,960.00",Yes
Communities & Local Government,DCLG,16/01/2012,Current (non AEF) Grants to Local Authorities,Localism,HARROGATE BC,,,,5000185658,Grant Payable by Exchequer,HG1 2SG,"34,154.00",Yes
Communities & Local Government,DCLG,16/01/2012,Current (non AEF) Grants to Local Authorities,Localism,HEREFORDSHIRE COUNCIL,,,,5000185659,Grant Payable by Exchequer,HR4 0XH,"215,307.00",Yes
Communities & Local Government,DCLG,16/01/2012,Current (non AEF) Grants to Local Authorities,Localism,HIGH PEAK BC,,,,5000185660,Grant Payable by Exchequer,SK17 6EL,"13,953.00",Yes
Communities & Local Government,DCLG,16/01/2012,Current (non AEF) Grants to Local Authorities,Localism,HINCKLEY & BOSWORTH BC,,,,5000185661,Grant Payable by Exchequer,LE10 1BZ,"10,491.00",Yes
Communities & Local Government,DCLG,16/01/2012,Current (non AEF) Grants to Local Authorities,Localism,HORSHAM DC,,,,5000185662,Grant Payable by Exchequer,RH12 1RL,"20,318.00",Yes
Communities & Local Government,DCLG,16/01/2012,Current (non AEF) Grants to Local Authorities,Localism,HUNTINGDONSHIRE DC,,,,5000185663,Grant Payable by Exchequer,PE18 6TN,"18,458.00",Yes
Communities & Local Government,DCLG,16/01/2012,Current (non AEF) Grants to Local Authorities,Localism,KINGS LYNN & WEST NORFOLK BC,,,,5000185664,Grant Payable by Exchequer,PE30 1EX,"15,744.00",Yes
Communities & Local Government,DCLG,16/01/2012,Current (non AEF) Grants to Local Authorities,Localism,KINGSTON UPON THAMES  (HSG),,,,5000185665,Grant Payable by Exchequer,KT1 1EU,"212,560.00",Yes
Communities & Local Government,DCLG,16/01/2012,Current (non AEF) Grants to Local Authorities,Localism,KIRKLEES COUNCIL (HSG),,,,5000185666,Grant Payable by Exchequer,HD1 2YU,"388,721.00",Yes
Communities & Local Government,DCLG,16/01/2012,Current (non AEF) Grants to Local Authorities,Localism,LANCASTER CITY CNCL,,,,5000185667,Grant Payable by Exchequer,LA1 1PJ,"20,883.00",Yes
Communities & Local Government,DCLG,16/01/2012,Current (non AEF) Grants to Local Authorities,Localism,LEICESTER CITY CNCL (HSG),,,,5000185668,Grant Payable by Exchequer,LE1 6ZG,"234,225.00",Yes
Communities & Local Government,DCLG,16/01/2012,Current (non AEF) Grants to Local Authorities,Localism,LEWES DC,,,,5000185669,Grant Payable by Exchequer,BN7 2DQ,"18,528.00",Yes
Communities & Local Government,DCLG,16/01/2012,Current (non AEF) Grants to Local Authorities,Localism,LEWISHAM LB (HSG),,,,5000185670,Grant Payable by Exchequer,SE6 4RU,"230,533.00",Yes
Communities & Local Government,DCLG,16/01/2012,Current (non AEF) Grants to Local Authorities,Localism,MAIDSTONE BC,,,,5000185671,Grant Payable by Exchequer,ME15 6JQ,"33,527.00",Yes
Communities & Local Government,DCLG,16/01/2012,Current (non AEF) Grants to Local Authorities,Localism,MALDON DC,,,,5000185672,Grant Payable by Exchequer,CM9 7DL,"10,565.00",Yes
Communities & Local Government,DCLG,16/01/2012,Current (non AEF) Grants to Local Authorities,Localism,MANCHESTER CITY CNCL (HSG),,,,5000185673,Grant Payable by Exchequer,M60 2JR,"350,218.00",Yes
Communities & Local Government,DCLG,16/01/2012,Current (non AEF) Grants to Local Authorities,Localism,MEDWAY TOWNS D C (HSG),,,,5000185674,Grant Payable by Exchequer,ME4 4TR,"246,307.00",Yes
Communities & Local Government,DCLG,16/01/2012,Current (non AEF) Grants to Local Authorities,Localism,MELTON BC,,,,5000185675,Grant Payable by Exchequer,LE13 0UL,"8,417.00",Yes
Communities & Local Government,DCLG,16/01/2012,Current (non AEF) Grants to Local Authorities,Localism,MENDIP DISTRICT COUNCIL,,,,5000185676,Grant Payable by Exchequer,BA4 5BA,"15,021.00",Yes
Communities & Local Government,DCLG,16/01/2012,Current (non AEF) Grants to Local Authorities,Localism,MID DEVON DC,,,,5000185677,Grant Payable by Exchequer,EX16 6PP,"12,879.00",Yes
Communities & Local Government,DCLG,16/01/2012,Current (non AEF) Grants to Local Authorities,Localism,MID SUFFOLK DC,,,,5000185678,Grant Payable by Exchequer,IP1 2DH,"13,527.00",Yes
Communities & Local Government,DCLG,16/01/2012,Current (non AEF) Grants to Local Authorities,Localism,MID SUSSEX DC,,,,5000185679,Grant Payable by Exchequer,RH16 1SS,"21,456.00",Yes
Communities & Local Government,DCLG,16/01/2012,Current (non AEF) Grants to Local Authorities,Localism,MOLE VALLEY DC,,,,5000185680,Grant Payable by Exchequer,RH4 1SJ,"15,407.00",Yes
Communities & Local Government,DCLG,16/01/2012,Current (non AEF) Grants to Local Authorities,Localism,NEW FOREST DC,,,,5000185681,Grant Payable by Exchequer,SO43 9ZG,"28,445.00",Yes
Communities & Local Government,DCLG,16/01/2012,Current (non AEF) Grants to Local Authorities,Localism,NEWARK & SHERWOOD DC (HSG),,,,5000185682,Grant Payable by Exchequer,NG23 5QX,"16,194.00",Yes
Communities & Local Government,DCLG,16/01/2012,Current (non AEF) Grants to Local Authorities,Localism,NORTH DEVON DC,,,,5000185683,Grant Payable by Exchequer,EX31 1EA,"14,321.00",Yes
Communities & Local Government,DCLG,16/01/2012,Current (non AEF) Grants to Local Authorities,Localism,NORTH DORSET DC,,,,5000185684,Grant Payable by Exchequer,DT11 7LL,"7,127.00",Yes
Communities & Local Government,DCLG,16/01/2012,Current (non AEF) Grants to Local Authorities,Localism,NORTH EAST LINCOLN DC (HSG),,,,5000185685,Grant Payable by Exchequer,DN35 8LN,"148,531.00",Yes
Communities & Local Government,DCLG,16/01/2012,Current (non AEF) Grants to Local Authorities,Localism,NORTH HERTS DC (HOUSING) (HSG),,,,5000185686,Grant Payable by Exchequer,SG6 3HN,"24,712.00",Yes
Communities & Local Government,DCLG,16/01/2012,Current (non AEF) Grants to Local Authorities,Localism,NORTH LINCOLNSHIRE DC (HSG),,,,5000185687,Grant Payable by Exchequer,DN16 1AB,"165,720.00",Yes
Communities & Local Government,DCLG,16/01/2012,Current (non AEF) Grants to Local Authorities,Localism,NORTH NORFOLK DC,,,,5000185688,Grant Payable by Exchequer,NR27 9EJ,"14,313.00",Yes
Communities & Local Government,DCLG,16/01/2012,Current (non AEF) Grants to Local Authorities,Localism,NORTH WARWICKSHIRE BC,,Large,,5000185689,Grant Payable by Exchequer,CV9 1DE,"11,175.00",Yes
Communities & Local Government,DCLG,16/01/2012,Current (non AEF) Grants to Local Authorities,Localism,NORTH WEST LEICESTER DC,,,,5000185690,Grant Payable by Exchequer,LE67 3FJ,"14,160.00",Yes
Communities & Local Government,DCLG,16/01/2012,Current (non AEF) Grants to Local Authorities,Localism,OADBY & WIGSTON BC (HSG),,,,5000185691,Grant Payable by Exchequer,LE8 2DR,"9,088.00",Yes
Communities & Local Government,DCLG,16/01/2012,Current (non AEF) Grants to Local Authorities,Localism,POOLE BC (HSG),,,,5000185692,Grant Payable by Exchequer,BH15 2RU,"177,887.00",Yes
Communities & Local Government,DCLG,16/01/2012,Current (non AEF) Grants to Local Authorities,Localism,PURBECK DC,,,,5000185693,Grant Payable by Exchequer,DT2 8UP,"8,089.00",Yes
Communities & Local Government,DCLG,16/01/2012,Current (non AEF) Grants to Local Authorities,Localism,RIBBLE VALLEY BC,,,,5000185694,Grant Payable by Exchequer,BB7 2RA,"7,866.00",Yes
Communities & Local Government,DCLG,16/01/2012,Current (non AEF) Grants to Local Authorities,Localism,RICHMONDSHIRE DC,,,,5000185695,Grant Payable by Exchequer,DL10 4JE,"9,143.00",Yes
Communities & Local Government,DCLG,16/01/2012,Current (non AEF) Grants to Local Authorities,Localism,ROTHER DC (HSG),,,,5000185696,Grant Payable by Exchequer,TN39 3JX,"17,894.00",Yes
Communities & Local Government,DCLG,16/01/2012,Current (non AEF) Grants to Local Authorities,Localism,RUSHCLIFFE BOROUGH COUNCIL,,,,5000185697,Grant Payable by Exchequer,NG2 5FE,"13,558.00",Yes
Communities & Local Government,DCLG,16/01/2012,Current (non AEF) Grants to Local Authorities,Localism,RYEDALE DC,,,,5000185698,Grant Payable by Exchequer,YO17 0HH,"9,418.00",Yes
Communities & Local Government,DCLG,16/01/2012,Current (non AEF) Grants to Local Authorities,Localism,SCARBOROUGH BC,,Large,,5000185699,Grant Payable by Exchequer,YO11 2HG,"21,947.00",Yes
Communities & Local Government,DCLG,16/01/2012,Current (non AEF) Grants to Local Authorities,Localism,SEDGEMOOR DC,,,,5000185700,Grant Payable by Exchequer,TA6 3AR,"13,109.00",Yes
Communities & Local Government,DCLG,16/01/2012,Current (non AEF) Grants to Local Authorities,Localism,SELBY DC,,,,5000185701,Grant Payable by Exchequer,YO8 0SA,"11,907.00",Yes
Communities & Local Government,DCLG,16/01/2012,Current (non AEF) Grants to Local Authorities,Localism,SEVENOAKS DC,,,,5000185702,Grant Payable by Exchequer,TN13 1HG,"22,997.00",Yes
Communities & Local Government,DCLG,16/01/2012,Current (non AEF) Grants to Local Authorities,Localism,SHEPWAY DISTRICT COUNCIL,,,,5000185703,Grant Payable by Exchequer,CT20 2QY,"24,394.00",Yes
Communities & Local Government,DCLG,16/01/2012,Current (non AEF) Grants to Local Authorities,Localism,SOUTH BUCKS DC (HSG),,,,5000185704,Grant Payable by Exchequer,UB9 4LH,"11,733.00",Yes
Communities & Local Government,DCLG,16/01/2012,Current (non AEF) Grants to Local Authorities,Localism,SOUTH CAMBRIDGESHIRE DC,,,,5000185705,Grant Payable by Exchequer,CB23 6EA,"17,335.00",Yes
Communities & Local Government,DCLG,16/01/2012,Current (non AEF) Grants to Local Authorities,Localism,SOUTH DERBYSHIRE D C,,,,5000185706,Grant Payable by Exchequer,DE11 0AH,"11,965.00",Yes
Communities & Local Government,DCLG,16/01/2012,Current (non AEF) Grants to Local Authorities,Localism,SOUTH GLOUCESTERSHIRE DC (HSG),,,,5000185707,Grant Payable by Exchequer,BS15 2TR,"282,564.00",Yes
Communities & Local Government,DCLG,16/01/2012,Current (non AEF) Grants to Local Authorities,Localism,SOUTH HAMS DC,,,,5000185708,Grant Payable by Exchequer,TQ9 5NE,"12,813.00",Yes
Communities & Local Government,DCLG,16/01/2012,Current (non AEF) Grants to Local Authorities,Localism,SOUTH HOLLAND,,,,5000185709,Grant Payable by Exchequer,PE11 2XE,"11,648.00",Yes
Communities & Local Government,DCLG,16/01/2012,Current (non AEF) Grants to Local Authorities,Localism,SOUTH KESTEVEN DC (HSG),,,,5000185710,Grant Payable by Exchequer,NG31 6PZ,"15,731.00",Yes
Communities & Local Government,DCLG,16/01/2012,Current (non AEF) Grants to Local Authorities,Localism,SOUTH LAKELAND DC,,,,5000185711,Grant Payable by Exchequer,LA49 4DQ,"20,381.00",Yes
Communities & Local Government,DCLG,16/01/2012,Current (non AEF) Grants to Local Authorities,Localism,SOUTH NORFOLK DC,,,,5000185712,Grant Payable by Exchequer,NR15 2XE,"15,189.00",Yes
Communities & Local Government,DCLG,16/01/2012,Current (non AEF) Grants to Local Authorities,Localism,SOUTH NORTHAMPTONSHIRE DC,,,,5000185713,Grant Payable by Exchequer,NN12 7AE,"14,289.00",Yes
Communities & Local Government,DCLG,16/01/2012,Current (non AEF) Grants to Local Authorities,Localism,SOUTH OXFORDSHIRE DC,,,,5000185714,Grant Payable by Exchequer,OX10 8HQ,"17,124.00",Yes
Communities & Local Government,DCLG,16/01/2012,Current (non AEF) Grants to Local Authorities,Localism,SOUTH SOMERSET DC,,,,5000185715,Grant Payable by Exchequer,BA20 2DS,"22,788.00",Yes
Communities & Local Government,DCLG,16/01/2012,Current (non AEF) Grants to Local Authorities,Localism,SOUTH STAFFORDSHIRE DC,,,,5000185716,Grant Payable by Exchequer,WV8 1PX,"9,461.00",Yes
Communities & Local Government,DCLG,16/01/2012,Current (non AEF) Grants to Local Authorities,Localism,SPELTHORNE DC,,,,5000185717,Grant Payable by Exchequer,TW18 1XB,"16,935.00",Yes
Communities & Local Government,DCLG,16/01/2012,Current (non AEF) Grants to Local Authorities,Localism,ST EDMUNDSBURY (HSG),,,,5000185718,Grant Payable by Exchequer,IP33 3YS,"16,729.00",Yes
Communities & Local Government,DCLG,16/01/2012,Current (non AEF) Grants to Local Authorities,Localism,STAFFORDSHIRE MOORLANDS DC,,,,5000185719,Grant Payable by Exchequer,ST13 6HQ,"13,012.00",Yes
Communities & Local Government,DCLG,16/01/2012,Current (non AEF) Grants to Local Authorities,Localism,STOCKTON-ON-TEES BC (HSG),,,,5000185720,Grant Payable by Exchequer,TS23 2YS,"180,051.00",Yes
Communities & Local Government,DCLG,16/01/2012,Current (non AEF) Grants to Local Authorities,Localism,STROUD DC (HSG),,,,5000185721,Grant Payable by Exchequer,GL5 4UB,"20,197.00",Yes
Communities & Local Government,DCLG,16/01/2012,Current (non AEF) Grants to Local Authorities,Localism,SUFFOLK CC (SOCIAL CARE SERV) (H,,,,5000185722,Grant Payable by Exchequer,IP4 1LH,"722,074.00",Yes
Communities & Local Government,DCLG,16/01/2012,Current (non AEF) Grants to Local Authorities,Localism,SUFFOLK COASTAL DC (HSG),,,,5000185723,Grant Payable by Exchequer,IP12 1AU,"18,590.00",Yes
Communities & Local Government,DCLG,16/01/2012,Current (non AEF) Grants to Local Authorities,Localism,TANDRIDGE DC,,,,5000185724,Grant Payable by Exchequer,RH8 0BT,"18,308.00",Yes
Communities & Local Government,DCLG,16/01/2012,Current (non AEF) Grants to Local Authorities,Localism,TAUNTON DEANE BC,,,,5000185725,Grant Payable by Exchequer,TA1 1HE,"13,768.00",Yes
Communities & Local Government,DCLG,16/01/2012,Current (non AEF) Grants to Local Authorities,Localism,TEIGNBRIDGE DC,,,,5000185726,Grant Payable by Exchequer,TQ12 4XX,"18,522.00",Yes
Communities & Local Government,DCLG,16/01/2012,Current (non AEF) Grants to Local Authorities,Localism,TENDRING DC,,,,5000185727,Grant Payable by Exchequer,CO15 1SE,"19,220.00",Yes
Communities & Local Government,DCLG,16/01/2012,Current (non AEF) Grants to Local Authorities,Localism,TEST VALLEY BC,,,,5000185728,Grant Payable by Exchequer,SP10 3AJ,"14,763.00",Yes
Communities & Local Government,DCLG,16/01/2012,Current (non AEF) Grants to Local Authorities,Localism,TEWKESBURY BC,,,,5000185729,Grant Payable by Exchequer,GL20 5TT,"7,923.00",Yes
Communities & Local Government,DCLG,16/01/2012,Current (non AEF) Grants to Local Authorities,Localism,THANET DC,,,,5000185730,Grant Payable by Exchequer,CT8 1XZ,"24,674.00",Yes
Communities & Local Government,DCLG,16/01/2012,Current (non AEF) Grants to Local Authorities,Localism,TONBRIDGE & MALLING BC,,,,5000185731,Grant Payable by Exchequer,ME19 6LZ,"21,063.00",Yes
Communities & Local Government,DCLG,16/01/2012,Current (non AEF) Grants to Local Authorities,Localism,TORRIDGE DC,,,,5000185732,Grant Payable by Exchequer,EX39 2HT,"8,551.00",Yes
Communities & Local Government,DCLG,16/01/2012,Current (non AEF) Grants to Local Authorities,Localism,TOWER HAMLETS LB (HSG),,,,5000185733,Grant Payable by Exchequer,E14 2BG,"196,845.00",Yes
Communities & Local Government,DCLG,16/01/2012,Current (non AEF) Grants to Local Authorities,Localism,TUNBRIDGE WELLS BC,,,,5000185734,Grant Payable by Exchequer,TN1 1RS,"16,410.00",Yes
Communities & Local Government,DCLG,16/01/2012,Current (non AEF) Grants to Local Authorities,Localism,UTTLESFORD DC,,,,5000185735,Grant Payable by Exchequer,CB11 4ER,"12,303.00",Yes
Communities & Local Government,DCLG,16/01/2012,Current (non AEF) Grants to Local Authorities,Localism,VALE OF WHITE HORSE DC,,,,5000185736,Grant Payable by Exchequer,OX14 3JH,"14,127.00",Yes
Communities & Local Government,DCLG,16/01/2012,Current (non AEF) Grants to Local Authorities,Localism,WAVENEY DISTRICT COUNCIL,,Large,,5000185737,Grant Payable by Exchequer,NR32 1HS,"14,804.00",Yes
Communities & Local Government,DCLG,16/01/2012,Current (non AEF) Grants to Local Authorities,Localism,WAVERLEY BC V177,,,,5000185738,Grant Payable by Exchequer,GU7 1HR,"22,122.00",Yes
Communities & Local Government,DCLG,16/01/2012,Current (non AEF) Grants to Local Authorities,Localism,WEALDEN DC,,,,5000185739,Grant Payable by Exchequer,BN22 9LN,"27,319.00",Yes
Communities & Local Government,DCLG,16/01/2012,Current (non AEF) Grants to Local Authorities,Localism,WELWYN HATFIELD COUNCIL,,,,5000185740,Grant Payable by Exchequer,AL8 6AE,"20,612.00",Yes
Communities & Local Government,DCLG,16/01/2012,Current (non AEF) Grants to Local Authorities,Localism,WEST DEVON BC,,,,5000185741,Grant Payable by Exchequer,PL19 0BZ,"10,016.00",Yes
Communities & Local Government,DCLG,16/01/2012,Current (non AEF) Grants to Local Authorities,Localism,WEST DORSET DC,,,,5000185742,Grant Payable by Exchequer,DT1 1UZ,"13,488.00",Yes
Communities & Local Government,DCLG,16/01/2012,Current (non AEF) Grants to Local Authorities,Localism,WEST LINDSEY DC,,,,5000185743,Grant Payable by Exchequer,DN21 2NA,"14,404.00",Yes
Communities & Local Government,DCLG,16/01/2012,Current (non AEF) Grants to Local Authorities,Localism,WEST OXFORDSHIRE DC,,,,5000185744,Grant Payable by Exchequer,OX28 1NB,"8,616.00",Yes
Communities & Local Government,DCLG,16/01/2012,Current (non AEF) Grants to Local Authorities,Localism,WEST SOMERSET DC,,,,5000185745,Grant Payable by Exchequer,TA4 4QA,"4,901.00",Yes
Communities & Local Government,DCLG,16/01/2012,Current (non AEF) Grants to Local Authorities,Localism,WINCHESTER CITY CNCL,,,,5000185746,Grant Payable by Exchequer,SO23 9LJ,"17,319.00",Yes
Communities & Local Government,DCLG,16/01/2012,Current (non AEF) Grants to Local Authorities,Localism,WINDSOR & MAIDENHEAD (HSG),,,,5000185747,Grant Payable by Exchequer,SL6 1RF,"162,788.00",Yes
Communities & Local Government,DCLG,16/01/2012,Current (non AEF) Grants to Local Authorities,Localism,WYCHAVON DISTRICT COUNCIL,,,,5000185748,Grant Payable by Exchequer,WR10 1PT,"13,088.00",Yes
Communities & Local Government,DCLG,16/01/2012,Current (non AEF) Grants to Local Authorities,Localism,WYCOMBE DC,,Medium,,5000185749,Grant Payable by Exchequer,HP11 1BB,"22,977.00",Yes
Communities & Local Government,DCLG,16/01/2012,Current (non AEF) Grants to Local Authorities,Localism,WYRE BC,,,,5000185750,Grant Payable by Exchequer,FY6 7PU,"17,669.00",Yes
Communities & Local Government,DCLG,16/01/2012,Current (non AEF) Grants to Local Authorities,Localism,ADUR DC,,,,5000185751,Grant Payable by Exchequer,BN11 1HB,"15,430.00",Yes
Communities & Local Government,DCLG,16/01/2012,Current (non AEF) Grants to Local Authorities,Localism,ALLERDALE BC,,,,5000185752,Grant Payable by Exchequer,CA14 2RS,"11,416.00",Yes
Communities & Local Government,DCLG,16/01/2012,Current (non AEF) Grants to Local Authorities,Localism,AMBER VALLEY BC,,,,5000185753,Grant Payable by Exchequer,DE5 3WZ,"15,619.00",Yes
Communities & Local Government,DCLG,16/01/2012,Current (non AEF) Grants to Local Authorities,Localism,ASHFIELD DC,,,,5000185754,Grant Payable by Exchequer,NG17 8DA,"14,778.00",Yes
Communities & Local Government,DCLG,16/01/2012,Current (non AEF) Grants to Local Authorities,Localism,BARNET LBC,,,,5000185755,Grant Payable by Exchequer,NW4 4BG,"388,665.00",Yes
Communities & Local Government,DCLG,16/01/2012,Current (non AEF) Grants to Local Authorities,Localism,BARNSLEY MBC,,,,5000185756,Grant Payable by Exchequer,S70 2AQ,"208,426.00",Yes
Communities & Local Government,DCLG,16/01/2012,Current (non AEF) Grants to Local Authorities,Localism,BARROW BC,,,,5000185757,Grant Payable by Exchequer,LA14 2LD,"10,879.00",Yes
Communities & Local Government,DCLG,16/01/2012,Current (non AEF) Grants to Local Authorities,Localism,BASILDON DISTRICT COUNCIL,,,,5000185758,Grant Payable by Exchequer,SS14 1XA,"40,550.00",Yes
Communities & Local Government,DCLG,16/01/2012,Current (non AEF) Grants to Local Authorities,Localism,BASINGSTOKE & DEANE BC,,,,5000185759,Grant Payable by Exchequer,RG21 2AJ,"16,881.00",Yes
Communities & Local Government,DCLG,16/01/2012,Current (non AEF) Grants to Local Authorities,Localism,BIRMINGHAM CITY CNCL,,,,5000185760,Grant Payable by Exchequer,B3 3AB,"830,497.00",Yes
Communities & Local Government,DCLG,16/01/2012,Current (non AEF) Grants to Local Authorities,Localism,BLACKBURN WITH DARWEN BC,,,,5000185761,Grant Payable by Exchequer,BB1 7DY,"125,731.00",Yes
Communities & Local Government,DCLG,16/01/2012,Current (non AEF) Grants to Local Authorities,Localism,BLACKPOOL BC,,,,5000185762,Grant Payable by Exchequer,FY1 1NA,"149,623.00",Yes
Communities & Local Government,DCLG,16/01/2012,Current (non AEF) Grants to Local Authorities,Localism,BOLSOVER DC,,,,5000185763,Grant Payable by Exchequer,S44 6NF,"9,012.00",Yes
Communities & Local Government,DCLG,16/01/2012,Current (non AEF) Grants to Local Authorities,Localism,BOLTON MBC,,,,5000185764,Grant Payable by Exchequer,BL1 1RU,"252,576.00",Yes
Communities & Local Government,DCLG,16/01/2012,Current (non AEF) Grants to Local Authorities,Localism,BOURNEMOUTH DC,,,,5000185765,Grant Payable by Exchequer,BH2 6EB,"201,436.00",Yes
Communities & Local Government,DCLG,16/01/2012,Current (non AEF) Grants to Local Authorities,Localism,BRACKNELL FOREST DC,,,,5000185766,Grant Payable by Exchequer,RG12 1AQ,"121,182.00",Yes
Communities & Local Government,DCLG,16/01/2012,Current (non AEF) Grants to Local Authorities,Localism,BRADFORD MBC,,,,5000185767,Grant Payable by Exchequer,BD1 1HX,"407,446.00",Yes
Communities & Local Government,DCLG,16/01/2012,Current (non AEF) Grants to Local Authorities,Localism,BRENTWOOD BC,,,,5000185768,Grant Payable by Exchequer,CM15 8AY,"14,109.00",Yes
Communities & Local Government,DCLG,16/01/2012,Current (non AEF) Grants to Local Authorities,Localism,BRIGHTON & HOVE CITY COUNCIL,,,,5000185769,Grant Payable by Exchequer,BN3 2SR,"299,519.00",Yes
Communities & Local Government,DCLG,16/01/2012,Current (non AEF) Grants to Local Authorities,Localism,BROMLEY LB,,,,5000185770,Grant Payable by Exchequer,BR1 3UH,"330,428.00",Yes
Communities & Local Government,DCLG,16/01/2012,Current (non AEF) Grants to Local Authorities,Localism,BROXBOURNE BC,,,,5000185771,Grant Payable by Exchequer,EN8 9XG,"10,490.00",Yes
Communities & Local Government,DCLG,16/01/2012,Current (non AEF) Grants to Local Authorities,Localism,BROXTOWE BC,,,,5000185772,Grant Payable by Exchequer,NG9 1AB,"14,504.00",Yes
Communities & Local Government,DCLG,16/01/2012,Current (non AEF) Grants to Local Authorities,Localism,BUCKINGHAMSHIRE CC,,,,5000185773,Grant Payable by Exchequer,HP20 1UD,"576,301.00",Yes
Communities & Local Government,DCLG,16/01/2012,Current (non AEF) Grants to Local Authorities,Localism,BURNLEY BC,,,,5000185774,Grant Payable by Exchequer,BB11 1JA,"16,524.00",Yes
Communities & Local Government,DCLG,16/01/2012,Current (non AEF) Grants to Local Authorities,Localism,GMRB,,,,5000185775,Grant Payable by Exchequer,BL9 0SW,"188,688.00",Yes
Communities & Local Government,DCLG,16/01/2012,Current (non AEF) Grants to Local Authorities,Localism,CALDERDALE MBC,,,,5000185776,Grant Payable by Exchequer,HX1 1YP,"201,405.00",Yes
Communities & Local Government,DCLG,16/01/2012,Current (non AEF) Grants to Local Authorities,Localism,CAMBRIDGE CITY COUNCIL,,,,5000185777,Grant Payable by Exchequer,CB2 3NA,"16,965.00",Yes
Communities & Local Government,DCLG,16/01/2012,Current (non AEF) Grants to Local Authorities,Localism,CAMBRIDGESHIRE COUNTY CNCL,,,,5000185778,Grant Payable by Exchequer,CB3 0AP,"577,925.00",Yes
Communities & Local Government,DCLG,16/01/2012,Current (non AEF) Grants to Local Authorities,Localism,CAMDEN LB,,,,5000185779,Grant Payable by Exchequer,WC1H 8NG,"246,757.00",Yes
Communities & Local Government,DCLG,16/01/2012,Current (non AEF) Grants to Local Authorities,Localism,CANNOCK CHASE DC,,,,5000185780,Grant Payable by Exchequer,WS11 1BG,"14,984.00",Yes
Communities & Local Government,DCLG,16/01/2012,Current (non AEF) Grants to Local Authorities,Localism,CASTLE POINT BC,,,,5000185781,Grant Payable by Exchequer,SS7 1TF,"18,399.00",Yes
Communities & Local Government,DCLG,16/01/2012,Current (non AEF) Grants to Local Authorities,Localism,CHARNWOOD BC,,,,5000185782,Grant Payable by Exchequer,LE11 2TU,"17,138.00",Yes
Communities & Local Government,DCLG,16/01/2012,Current (non AEF) Grants to Local Authorities,Localism,CHELMSFORD BC,,,,5000185783,Grant Payable by Exchequer,CM1 1JE,"26,654.00",Yes
Communities & Local Government,DCLG,16/01/2012,Current (non AEF) Grants to Local Authorities,Localism,CHELTENHAM BC,,,,5000185784,Grant Payable by Exchequer,GL50 1PW,"19,799.00",Yes
Communities & Local Government,DCLG,16/01/2012,Current (non AEF) Grants to Local Authorities,Localism,CHESTERFIELD BC,,,,5000185785,Grant Payable by Exchequer,S40 1LP,"11,345.00",Yes
Communities & Local Government,DCLG,16/01/2012,Current (non AEF) Grants to Local Authorities,Localism,CHORLEY DC,,,,5000185786,Grant Payable by Exchequer,PR7 1DP,"15,967.00",Yes
Communities & Local Government,DCLG,16/01/2012,Current (non AEF) Grants to Local Authorities,Localism,COLCHESTER BC,,,,5000185787,Grant Payable by Exchequer,CO3 3WG,"26,702.00",Yes
Communities & Local Government,DCLG,16/01/2012,Current (non AEF) Grants to Local Authorities,Localism,COVENTRY CITY CNCL,,,,5000185788,Grant Payable by Exchequer,CV1 2QL,"294,636.00",Yes
Communities & Local Government,DCLG,16/01/2012,Current (non AEF) Grants to Local Authorities,Localism,CROYDON LB,,,,5000185789,Grant Payable by Exchequer,CR9 3JS,"367,811.00",Yes
Communities & Local Government,DCLG,16/01/2012,Current (non AEF) Grants to Local Authorities,Localism,CUMBRIA COUNTY CNCL,,,,5000185790,Grant Payable by Exchequer,CA3 8NA,"513,873.00",Yes
Communities & Local Government,DCLG,16/01/2012,Current (non AEF) Grants to Local Authorities,Localism,DACORUM BC,,,,5000185791,Grant Payable by Exchequer,HP1 1HH,"24,940.00",Yes
Communities & Local Government,DCLG,16/01/2012,Current (non AEF) Grants to Local Authorities,Localism,DARLINGTON BC,,,,5000185792,Grant Payable by Exchequer,TS19 1JA,"100,119.00",Yes
Communities & Local Government,DCLG,16/01/2012,Current (non AEF) Grants to Local Authorities,Localism,DERBY CITY CNCL,,,,5000185793,Grant Payable by Exchequer,DE1 2FS,"203,683.00",Yes
Communities & Local Government,DCLG,16/01/2012,Current (non AEF) Grants to Local Authorities,Localism,DERBYSHIRE COUNTYCOUNCIL,,,,5000185794,Grant Payable by Exchequer,DE4 3AH,"696,131.00",Yes
Communities & Local Government,DCLG,16/01/2012,Current (non AEF) Grants to Local Authorities,Localism,DEVON COUNTY CNCL,,,,5000185795,Grant Payable by Exchequer,EX2 4QJ,"810,249.00",Yes
Communities & Local Government,DCLG,16/01/2012,Current (non AEF) Grants to Local Authorities,Localism,DONCASTER MBC,,,,5000185796,Grant Payable by Exchequer,DN1 3QA,"235,281.00",Yes
Communities & Local Government,DCLG,16/01/2012,Current (non AEF) Grants to Local Authorities,Localism,DORSET COUNTY CNCL,,,,5000185797,Grant Payable by Exchequer,DT1 1XJ,"504,732.00",Yes
Communities & Local Government,DCLG,16/01/2012,Current (non AEF) Grants to Local Authorities,Localism,DUDLEY MBC,,,,5000185798,Grant Payable by Exchequer,DY1 1HF,"276,604.00",Yes
Communities & Local Government,DCLG,16/01/2012,Current (non AEF) Grants to Local Authorities,Localism,EALING LB,,,,5000185799,Grant Payable by Exchequer,W5 2HL,"314,935.00",Yes
Communities & Local Government,DCLG,16/01/2012,Current (non AEF) Grants to Local Authorities,Localism,EAST DORSET DC,,,,5000185800,Grant Payable by Exchequer,BH21 4HN,"18,419.00",Yes
Communities & Local Government,DCLG,16/01/2012,Current (non AEF) Grants to Local Authorities,Localism,EAST SUSSEX COUNTY CNCL,,,,5000185801,Grant Payable by Exchequer,BN7 1SF,"598,038.00",Yes
Communities & Local Government,DCLG,16/01/2012,Current (non AEF) Grants to Local Authorities,Localism,EASTBOURNE BC,,,,5000185802,Grant Payable by Exchequer,BN21 4TW,"20,602.00",Yes
Communities & Local Government,DCLG,16/01/2012,Current (non AEF) Grants to Local Authorities,Localism,EASTLEIGH BOROUGH COUNCIL,,,,5000185803,Grant Payable by Exchequer,SO5 9YN,"14,945.00",Yes
Communities & Local Government,DCLG,16/01/2012,Current (non AEF) Grants to Local Authorities,Localism,ENFIELD LB,,,,5000185804,Grant Payable by Exchequer,EN1 3XF,"303,183.00",Yes
Communities & Local Government,DCLG,16/01/2012,Current (non AEF) Grants to Local Authorities,Localism,EPPING FOREST DC,,,,5000185805,Grant Payable by Exchequer,CM16 4BZ,"20,311.00",Yes
Communities & Local Government,DCLG,16/01/2012,Current (non AEF) Grants to Local Authorities,Localism,EPSOM & EWELL BC,,,,5000185806,Grant Payable by Exchequer,KT18 5BY,"12,975.00",Yes
Communities & Local Government,DCLG,16/01/2012,Current (non AEF) Grants to Local Authorities,Localism,EREWASH BC,,,,5000185807,Grant Payable by Exchequer,DE7 5RP,"14,685.00",Yes
Communities & Local Government,DCLG,16/01/2012,Current (non AEF) Grants to Local Authorities,Localism,ESSEX COUNTY CNCL,,,,5000185808,Grant Payable by Exchequer,CM1 1JZ,"1,446,713.00",Yes
Communities & Local Government,DCLG,16/01/2012,Current (non AEF) Grants to Local Authorities,Localism,EXETER CITY CNCL,,,,5000185809,Grant Payable by Exchequer,EX1 1JN,"11,842.00",Yes
Communities & Local Government,DCLG,16/01/2012,Current (non AEF) Grants to Local Authorities,Localism,FYLDE BC,,,,5000185810,Grant Payable by Exchequer,FY8 1LW,"14,048.00",Yes
Communities & Local Government,DCLG,16/01/2012,Current (non AEF) Grants to Local Authorities,Localism,GATESHEAD MBC,,,,5000185811,Grant Payable by Exchequer,NE8 1HH,"213,744.00",Yes
Communities & Local Government,DCLG,16/01/2012,Current (non AEF) Grants to Local Authorities,Localism,GEDLING BC,,,,5000185812,Grant Payable by Exchequer,NG5 6LU,"13,890.00",Yes
Communities & Local Government,DCLG,16/01/2012,Current (non AEF) Grants to Local Authorities,Localism,GLOUCESTER CITY CNCL,,,,5000185813,Grant Payable by Exchequer,GL1 2EQ,"17,655.00",Yes
Communities & Local Government,DCLG,16/01/2012,Current (non AEF) Grants to Local Authorities,Localism,GLOUCESTERSHIRE COUNTY CNCL,,,,5000185814,Grant Payable by Exchequer,GL1 2TG,"609,855.00",Yes
Communities & Local Government,DCLG,16/01/2012,Current (non AEF) Grants to Local Authorities,Localism,GOSPORT BOROUGH COUNCIL,,,,5000185815,Grant Payable by Exchequer,PO12 1ED,"13,991.00",Yes
Communities & Local Government,DCLG,16/01/2012,Current (non AEF) Grants to Local Authorities,Localism,GRAVESHAM BC,,,,5000185816,Grant Payable by Exchequer,DA12 1AU,"14,641.00",Yes
Communities & Local Government,DCLG,16/01/2012,Current (non AEF) Grants to Local Authorities,Localism,GREAT YARMOUTH BC,,,,5000185817,Grant Payable by Exchequer,NR30 2QG,"11,529.00",Yes
Communities & Local Government,DCLG,16/01/2012,Current (non AEF) Grants to Local Authorities,Localism,GREENWICH LB,,,,5000185818,Grant Payable by Exchequer,SE18 6BU,"195,232.00",Yes
Communities & Local Government,DCLG,16/01/2012,Current (non AEF) Grants to Local Authorities,Localism,LONDON BOROUGH OF HACKNEY,,,,5000185819,Grant Payable by Exchequer,E8 4RU,"189,936.00",Yes
Communities & Local Government,DCLG,16/01/2012,Current (non AEF) Grants to Local Authorities,Localism,HAMMERSMITH & FULHAM LB,,,,5000185820,Grant Payable by Exchequer,W6 9JU,"161,948.00",Yes
Communities & Local Government,DCLG,16/01/2012,Current (non AEF) Grants to Local Authorities,Localism,HAMPSHIRE COUNTY COUNCIL,,,,5000185821,Grant Payable by Exchequer,SO23 8UB,"1,316,068.00",Yes
Communities & Local Government,DCLG,16/01/2012,Current (non AEF) Grants to Local Authorities,Localism,HARINGEY LB,,,,5000185822,Grant Payable by Exchequer,N22 4TR,"256,249.00",Yes
Communities & Local Government,DCLG,16/01/2012,Current (non AEF) Grants to Local Authorities,Localism,HARLOW DISTRICT COUNCIL,,,,5000185823,Grant Payable by Exchequer,CM20 1WG,"18,021.00",Yes
Communities & Local Government,DCLG,16/01/2012,Current (non AEF) Grants to Local Authorities,Localism,HARROW LB,,,,5000185824,Grant Payable by Exchequer,HA1 2UZ,"258,514.00",Yes
Communities & Local Government,DCLG,16/01/2012,Current (non AEF) Grants to Local Authorities,Localism,HART DC,,,,5000185825,Grant Payable by Exchequer,GU13 8AE,"14,412.00",Yes
Communities & Local Government,DCLG,16/01/2012,Current (non AEF) Grants to Local Authorities,Localism,HARTLEPOOL BOROUGH COUNCIL,,,,5000185826,Grant Payable by Exchequer,TS24 7BT,"99,173.00",Yes
Communities & Local Government,DCLG,16/01/2012,Current (non AEF) Grants to Local Authorities,Localism,HASTINGS BC,,,,5000185827,Grant Payable by Exchequer,TN34 3WN,"17,371.00",Yes
Communities & Local Government,DCLG,16/01/2012,Current (non AEF) Grants to Local Authorities,Localism,HAVANT BC,,,,5000185828,Grant Payable by Exchequer,PO9 2AX,"20,688.00",Yes
Communities & Local Government,DCLG,16/01/2012,Current (non AEF) Grants to Local Authorities,Localism,HAVERING LB,,,,5000185829,Grant Payable by Exchequer,RM1 3BB,"268,019.00",Yes
Communities & Local Government,DCLG,16/01/2012,Current (non AEF) Grants to Local Authorities,Localism,HERTFORDSHIRE COUNTY CNCL,,,,5000185830,Grant Payable by Exchequer,SG13 8DQ,"1,256,657.00",Yes
Communities & Local Government,DCLG,16/01/2012,Current (non AEF) Grants to Local Authorities,Localism,HERTSMERE BC,,,,5000185831,Grant Payable by Exchequer,WD6 1WA,"16,464.00",Yes
Communities & Local Government,DCLG,16/01/2012,Current (non AEF) Grants to Local Authorities,Localism,HILLINGDON LB,,,,5000185832,Grant Payable by Exchequer,UB8 1UW,"275,779.00",Yes
Communities & Local Government,DCLG,16/01/2012,Current (non AEF) Grants to Local Authorities,Localism,HOUNSLOW LB,,,,5000185833,Grant Payable by Exchequer,TW3 4DN,"236,774.00",Yes
Communities & Local Government,DCLG,16/01/2012,Current (non AEF) Grants to Local Authorities,Localism,HYNDBURN BC,,,,5000185834,Grant Payable by Exchequer,BB5 1EZ,"13,551.00",Yes
Communities & Local Government,DCLG,16/01/2012,Current (non AEF) Grants to Local Authorities,Localism,IPSWICH BC,,,,5000185835,Grant Payable by Exchequer,IP1 2EE,"32,363.00",Yes
Communities & Local Government,DCLG,16/01/2012,Current (non AEF) Grants to Local Authorities,Localism,ISLE OF WIGHT CNCL,,,,5000185836,Grant Payable by Exchequer,PO30 1UD,"178,776.00",Yes
Communities & Local Government,DCLG,16/01/2012,Current (non AEF) Grants to Local Authorities,Localism,ISLES OF SCILLY COUNCIL,,,,5000185837,Grant Payable by Exchequer,TR21 0LW,"3,059.00",Yes
Communities & Local Government,DCLG,16/01/2012,Current (non AEF) Grants to Local Authorities,Localism,ISLINGTON LB,,,,5000185838,Grant Payable by Exchequer,N1 1XR,"211,535.00",Yes
Communities & Local Government,DCLG,16/01/2012,Current (non AEF) Grants to Local Authorities,Localism,ROYAL BOROUGH OF KENSINGTON & CHELS,,,,5000185839,Grant Payable by Exchequer,W8 7NX,"194,725.00",Yes
Communities & Local Government,DCLG,16/01/2012,Current (non AEF) Grants to Local Authorities,Localism,KENT COUNTY CNCL,,,,5000185840,Grant Payable by Exchequer,ME14 1XQ,"1,434,222.00",Yes
Communities & Local Government,DCLG,16/01/2012,Current (non AEF) Grants to Local Authorities,Localism,KETTERING BC,,,,5000185841,Grant Payable by Exchequer,NN15 7QX,"15,972.00",Yes
Communities & Local Government,DCLG,16/01/2012,Current (non AEF) Grants to Local Authorities,Localism,HULL CITY COUNCIL,,,,5000185842,Grant Payable by Exchequer,HU1 2AA,"192,851.00",Yes
Communities & Local Government,DCLG,16/01/2012,Current (non AEF) Grants to Local Authorities,Localism,KNOWSLEY MBC,,,,5000185843,Grant Payable by Exchequer,L36 9YZ,"131,256.00",Yes
Communities & Local Government,DCLG,16/01/2012,Current (non AEF) Grants to Local Authorities,Localism,LONDON BOROUGH OF LAMBETH,,,,5000185844,Grant Payable by Exchequer,SW2 1RL,"246,264.00",Yes
Communities & Local Government,DCLG,16/01/2012,Current (non AEF) Grants to Local Authorities,Localism,LANCASHIRE COUNTY CNCL,,,,5000185845,Grant Payable by Exchequer,PR1 8RD,"1,061,826.00",Yes
Communities & Local Government,DCLG,16/01/2012,Current (non AEF) Grants to Local Authorities,Localism,LEEDS CITY CNCL,,,,5000185846,Grant Payable by Exchequer,LS1 1JF,"669,170.00",Yes
Communities & Local Government,DCLG,16/01/2012,Current (non AEF) Grants to Local Authorities,Localism,LEICESTERSHIRE COUNTY CNCL,,,,5000185847,Grant Payable by Exchequer,LE3 8RB,"597,053.00",Yes
Communities & Local Government,DCLG,16/01/2012,Current (non AEF) Grants to Local Authorities,Localism,LICHFIELD DC,,,,5000185848,Grant Payable by Exchequer,WS13 6YX,"13,473.00",Yes
Communities & Local Government,DCLG,16/01/2012,Current (non AEF) Grants to Local Authorities,Localism,CITY OF LINCOLN COUNCIL,,,,5000185849,Grant Payable by Exchequer,LN1 1DB,"15,685.00",Yes
Communities & Local Government,DCLG,16/01/2012,Current (non AEF) Grants to Local Authorities,Localism,LINCOLNSHIRE COUNTY CNCL,,,,5000185850,Grant Payable by Exchequer,LN1 1YG,"629,300.00",Yes
Communities & Local Government,DCLG,16/01/2012,Current (non AEF) Grants to Local Authorities,Localism,LIVERPOOL CITY COUNCIL,,,,5000185851,Grant Payable by Exchequer,L1 6JD,"406,818.00",Yes
Communities & Local Government,DCLG,16/01/2012,Current (non AEF) Grants to Local Authorities,Localism,LUTON BC,,,,5000185852,Grant Payable by Exchequer,LU1 1DX,"157,365.00",Yes
Communities & Local Government,DCLG,16/01/2012,Current (non AEF) Grants to Local Authorities,Localism,MALVERN HILLS DC,,,,5000185853,Grant Payable by Exchequer,WR14 3AF,"10,100.00",Yes
Communities & Local Government,DCLG,16/01/2012,Current (non AEF) Grants to Local Authorities,Localism,MANSFIELD DC,,,,5000185854,Grant Payable by Exchequer,NG19 7BH,"14,602.00",Yes
Communities & Local Government,DCLG,16/01/2012,Current (non AEF) Grants to Local Authorities,Localism,MERTON LB,,,,5000185855,Grant Payable by Exchequer,SM4 5DX,"206,060.00",Yes
Communities & Local Government,DCLG,16/01/2012,Current (non AEF) Grants to Local Authorities,Localism,MIDDLESBROUGH BC,,,,5000185856,Grant Payable by Exchequer,TS1 2QQ,"125,279.00",Yes
Communities & Local Government,DCLG,16/01/2012,Current (non AEF) Grants to Local Authorities,Localism,MILTON KEYNES BC,,,,5000185857,Grant Payable by Exchequer,MK9 3WJ,"231,267.00",Yes
Communities & Local Government,DCLG,16/01/2012,Current (non AEF) Grants to Local Authorities,Localism,NEWCASTLE UNDER LYME BC,,,,5000185858,Grant Payable by Exchequer,ST5 2AG,"17,278.00",Yes
Communities & Local Government,DCLG,16/01/2012,Current (non AEF) Grants to Local Authorities,Localism,NEWCASTLE UPON TYNE DC,,,,5000185859,Grant Payable by Exchequer,NE99 1RD,"264,982.00",Yes
